Workbook

Sheet Main
B10: 2018-12-28
B12: Sheet No. | C12: Template Name | D12: Summary
B13: 1 | C13: Future Intra | D13: For Intraday trading in F&O segment
B14: 2 | C14: Cash Intra | D14: For Intraday trading in cash market segment
B15: 3 | C15: Mid-cap Intra | D15: For Intraday trading in Mid-cap stocks
B16: 4 | C16: Bulk Deals | D16: Reveals Bulk Deals carried on NSE & BSE
B17: 5 | C17: Call Tracker

Sheet Future Intra
M5: Back to Main Page
A6: FOR INTRA DAY TRADING | L6: =Main!B10 -> 2018-12-28
A9: Sr.no | B9: Sector | C9: Scrip | D9: CLOSE RATE | E9: Pivot Point | F9: Supports | I9: Resistances
B10: Sector | D10: Point | E10: Point | F10: S1 | G10: S2 | H10: S3 | I10: R1 | J10: R2 | K10: R3 | L10: HIGH | M10: LOW | N10: OI | O10: % Change in OI
A11: 1 | B11: Index | C11: BANKNIFTY | D11: 27030.50 | E11: 27133.38 | F11: 26898.12 | G11: 26765.73 | H11: 26530.47 | I11: 27265.77 | J11: 27501.03 | K11: 27633.42 | L11: 27368.65 | M11: 27001 | N11: 1148960 | O11: -36.47%
A12: 2 | B12: Index | C12: NIFTY | D12: 10809.85 | E12: 10829.93 | F12: 10779.97 | G12: 10750.08 | H12: 10700.12 | I12: 10859.82 | J12: 10909.78 | K12: 10939.67 | L12: 10879.9 | M12: 10800.05 | N12: 22331850 | O12: -22.77%
A13: 3 | B13: Index | C13: NIFTYIT | D13: 14400.00 | E13: 14414.33 | F13: 14320.67 | G13: 14241.33 | H13: 14147.67 | I13: 14493.67 | J13: 14587.33 | K13: 14666.67 | L13: 14508 | M13: 14335 | N13: 16250 | O13: -28.88%
A14: 4 | B14: Cement | C14: ACC | D14: 1467.40 | E14: 1478.83 | F14: 1453.17 | G14: 1438.93 | H14: 1413.27 | I14: 1493.07 | J14: 1518.73 | K14: 1532.97 | L14: 1504.5 | M14: 1464.6 | N14: 1275200 | O14: -14.67%
A15: 5 | B15: Others | C15: ADANIENT | D15: 163.15 | E15: 164.35 | F15: 159.80 | G15: 156.45 | H15: 151.90 | I15: 167.70 | J15: 172.25 | K15: 175.60 | L15: 168.9 | M15: 161 | N15: 34460000 | O15: -10.94%
A16: 6 | B16: Others | C16: ADANIPORTS | D16: 386.50 | E16: 383.43 | F16: 378.87 | G16: 371.23 | H16: 366.67 | I16: 391.07 | J16: 395.63 | K16: 403.27 | L16: 388 | M16: 375.8 | N16: 22692500 | O16: -9.51%
A17: 7 | B17: Power | C17: ADANIPOWER | D17: 52.00 | E17: 51.97 | F17: 51.53 | G17: 51.07 | H17: 50.63 | I17: 52.43 | J17: 52.87 | K17: 53.33 | L17: 52.4 | M17: 51.5 | N17: 161260000 | O17: -1.49%
A18: 8 | B18: Pharma | C18: AJANTPHARM | D18: 1185.40 | E18: 1169.13 | F18: 1148.27 | G18: 1111.13 | H18: 1090.27 | I18: 1206.27 | J18: 1227.13 | K18: 1264.27 | L18: 1190 | M18: 1132 | N18: 583500 | O18: 5.52%
A19: 9 | B19: Banking | C19: ALBK | D19: 46.80 | E19: 46.50 | F19: 46.10 | G19: 45.40 | H19: 45.00 | I19: 47.20 | J19: 47.60 | K19: 48.30 | L19: 46.9 | M19: 45.8 | N19: 18655000 | O19: -6.14%
A20: 10 | B20: Automobile | C20: AMARAJABAT | D20: 739.70 | E20: 739.63 | F20: 735.07 | G20: 730.43 | H20: 725.87 | I20: 744.27 | J20: 748.83 | K20: 753.47 | L20: 744.2 | M20: 735 | N20: 977200 | O20: -17.54%
A21: 11 | B21: Cement | C21: AMBUJACEM | D21: 217.95 | E21: 219.78 | F21: 215.57 | G21: 213.18 | H21: 208.97 | I21: 222.17 | J21: 226.38 | K21: 228.77 | L21: 224 | M21: 217.4 | N21: 14590000 | O21: -12.19%
A22: 12 | B22: Others | C22: APOLLOHOSP | D22: 1248.90 | E22: 1261.02 | F22: 1232.03 | G22: 1215.17 | H22: 1186.18 | I22: 1277.88 | J22: 1306.87 | K22: 1323.73 | L22: 1290 | M22: 1244.15 | N22: 814500 | O22: -18.91%
A23: 13 | B23: Automobile | C23: APOLLOTYRE | D23: 232.55 | E23: 233.53 | F23: 230.57 | G23: 228.58 | H23: 225.62 | I23: 235.52 | J23: 238.48 | K23: 240.47 | L23: 236.5 | M23: 231.55 | N23: 8625000 | O23: -12.83%
A24: 14 | B24: Textile | C24: ARVIND | D24: 96.95 | E24: 97.17 | F24: 96.23 | G24: 95.52 | H24: 94.58 | I24: 97.88 | J24: 98.82 | K24: 99.53 | L24: 98.1 | M24: 96.45 | N24: 5598000 | O24: -22.72%
A25: 15 | B25: Automobile | C25: ASHOKLEY | D25: 103.80 | E25: 104.28 | F25: 102.97 | G25: 102.13 | H25: 100.82 | I25: 105.12 | J25: 106.43 | K25: 107.27 | L25: 105.6 | M25: 103.45 | N25: 56960000 | O25: -7.53%
A26: 16 | B26: FMCG | C26: ASIANPAINT | D26: 1377.55 | E26: 1375.10 | F26: 1365.65 | G26: 1353.75 | H26: 1344.30 | I26: 1387.00 | J26: 1396.45 | K26: 1408.35 | L26: 1384.55 | M26: 1363.2 | N26: 4809600 | O26: -19.90%
A27: 17 | B27: Pharma | C27: AUROPHARMA | D27: 716.20 | E27: 720.53 | F27: 710.17 | G27: 704.13 | H27: 693.77 | I27: 726.57 | J27: 736.93 | K27: 742.97 | L27: 730.9 | M27: 714.5 | N27: 21212000 | O27: -13.02%
A28: 18 | B28: Banking | C28: AXISBANK | D28: 621.40 | E28: 623.40 | F28: 617.60 | G28: 613.80 | H28: 608.00 | I28: 627.20 | J28: 633.00 | K28: 636.80 | L28: 629.2 | M28: 619.6 | N28: 32492400 | O28: -18.62%
A29: 19 | B29: Automobile | C29: BAJAJ-AUTO | D29: 2753.40 | E29: 2750.07 | F29: 2718.33 | G29: 2683.27 | H29: 2651.53 | I29: 2785.13 | J29: 2816.87 | K29: 2851.93 | L29: 2781.8 | M29: 2715 | N29: 2079750 | O29: -12.61%
A30: 20 | B30: Others | C30: BAJAJFINSV | D30: 6426.75 | E30: 6469.93 | F30: 6359.87 | G30: 6292.98 | H30: 6182.92 | I30: 6536.82 | J30: 6646.88 | K30: 6713.77 | L30: 6580 | M30: 6403.05 | N30: 605500 | O30: -10.41%
A31: 21 | B31: Finance | C31: BAJFINANCE | D31: 2593.70 | E31: 2601.82 | F31: 2574.18 | G31: 2554.67 | H31: 2527.03 | I31: 2621.33 | J31: 2648.97 | K31: 2668.48 | L31: 2629.45 | M31: 2582.3 | N31: 5694500 | O31: -9.23%
A32: 22 | B32: Others | C32: BALKRISIND | D32: 908.85 | E32: 911.30 | F32: 898.60 | G32: 888.35 | H32: 875.65 | I32: 921.55 | J32: 934.25 | K32: 944.50 | L32: 924 | M32: 901.05 | N32: 2615200 | O32: -13.40%
A33: 23 | B33: Banking | C33: BANKBARODA | D33: 116.85 | E33: 117.73 | F33: 115.47 | G33: 114.08 | H33: 111.82 | I33: 119.12 | J33: 121.38 | K33: 122.77 | L33: 120 | M33: 116.35 | N33: 55664000 | O33: -19.61%
A34: 24 | B34: Banking | C34: BANKINDIA | D34: 102.35 | E34: 102.68 | F34: 101.22 | G34: 100.08 | H34: 98.62 | I34: 103.82 | J34: 105.28 | K34: 106.42 | L34: 104.15 | M34: 101.55 | N34: 23910000 | O34: -11.76%
A35: 25 | B35: FMCG | C35: BATAINDIA | D35: 1120.15 | E35: 1115.23 | F35: 1107.12 | G35: 1094.08 | H35: 1085.97 | I35: 1128.27 | J35: 1136.38 | K35: 1149.42 | L35: 1123.35 | M35: 1102.2 | N35: 1947000 | O35: -17.29%
A36: 26 | B36: Capital_Goods | C36: BEL | D36: 85.60 | E36: 86.78 | F36: 83.92 | G36: 82.23 | H36: 79.37 | I36: 88.47 | J36: 91.33 | K36: 93.02 | L36: 89.65 | M36: 85.1 | N36: 33144000 | O36: -23.47%
A37: 27 | B37: Infrastructure | C37: BEML | D37: 905.55 | E37: 909.58 | F37: 894.92 | G37: 884.28 | H37: 869.62 | I37: 920.22 | J37: 934.88 | K37: 945.52 | L37: 924.25 | M37: 898.95 | N37: 1388800 | O37: -19.72%
A38: 28 | B38: Others | C38: BERGEPAINT | D38: 329.50 | E38: 326.52 | F38: 322.68 | G38: 315.87 | H38: 312.03 | I38: 333.33 | J38: 337.17 | K38: 343.98 | L38: 330.35 | M38: 319.7 | N38: 1764400 | O38: -24.12%
A39: 29 | B39: Finance | C39: BHARATFIN | D39: 1000.65 | E39: 1003.55 | F39: 994.75 | G39: 988.85 | H39: 980.05 | I39: 1009.45 | J39: 1018.25 | K39: 1024.15 | L39: 1012.35 | M39: 997.65 | N39: 4376000 | O39: -20.31%
A40: 30 | B40: Automobile | C40: BHARATFORG | D40: 503.60 | E40: 507.20 | F40: 498.50 | G40: 493.40 | H40: 484.70 | I40: 512.30 | J40: 521.00 | K40: 526.10 | L40: 515.9 | M40: 502.1 | N40: 10303200 | O40: -5.13%
A41: 31 | B41: Telecom | C41: BHARTIARTL | D41: 317.70 | E41: 319.23 | F41: 314.37 | G41: 311.03 | H41: 306.17 | I41: 322.57 | J41: 327.43 | K41: 330.77 | L41: 324.1 | M41: 315.9 | N41: 32337400 | O41: -20.34%
A42: 32 | B42: Capital_Goods | C42: BHEL | D42: 70.20 | E42: 70.93 | F42: 69.27 | G42: 68.33 | H42: 66.67 | I42: 71.87 | J42: 73.53 | K42: 74.47 | L42: 72.6 | M42: 70 | N42: 44257500 | O42: -27.39%
A43: 33 | B43: Pharma | C43: BIOCON | D43: 615.45 | E43: 617.95 | F43: 611.70 | G43: 607.95 | H43: 601.70 | I43: 621.70 | J43: 627.95 | K43: 631.70 | L43: 624.2 | M43: 614.2 | N43: 4905000 | O43: -11.02%
A44: 34 | B44: Automobile | C44: BOSCHLTD | D44: 19528.35 | E44: 19592.37 | F44: 19316.48 | G44: 19104.62 | H44: 18828.73 | I44: 19804.23 | J44: 20080.12 | K44: 20291.98 | L44: 19868.25 | M44: 19380.5 | N44: 128340 | O44: -11.52%
A45: 35 | B45: Oil_Gas | C45: BPCL | D45: 354.85 | E45: 353.38 | F45: 349.72 | G45: 344.58 | H45: 340.92 | I45: 358.52 | J45: 362.18 | K45: 367.32 | L45: 357.05 | M45: 348.25 | N45: 10350000 | O45: -33.71%
A46: 36 | B46: FMCG | C46: BRITANNIA | D46: 3095.60 | E46: 3105.10 | F46: 3073.60 | G46: 3051.60 | H46: 3020.10 | I46: 3127.10 | J46: 3158.60 | K46: 3180.60 | L46: 3136.6 | M46: 3083.1 | N46: 2652200 | O46: -10.48%
A47: 37 | B47: Pharma | C47: CADILAHC | D47: 340.60 | E47: 341.62 | F47: 338.78 | G47: 336.97 | H47: 334.13 | I47: 343.43 | J47: 346.27 | K47: 348.08 | L47: 344.45 | M47: 339.8 | N47: 8281600 | O47: -7.93%
A48: 38 | B48: Banking | C48: CANBK | D48: 273.90 | E48: 273.95 | F48: 271.55 | G48: 269.20 | H48: 266.80 | I48: 276.30 | J48: 278.70 | K48: 281.05 | L48: 276.35 | M48: 271.6 | N48: 10072000 | O48: -11.85%
A49: 39 | B49: Others | C49: CANFINHOME | D49: 290.80 | E49: 289.52 | F49: 284.03 | G49: 277.27 | H49: 271.78 | I49: 296.28 | J49: 301.77 | K49: 308.53 | L49: 295 | M49: 282.75 | N49: 4446000 | O49: -5.59%
A50: 40 | B50: Oil_Gas | C50: CASTROLIND | D50: 154.70 | E50: 154.23 | F50: 152.17 | G50: 149.63 | H50: 147.57 | I50: 156.77 | J50: 158.83 | K50: 161.37 | L50: 156.3 | M50: 151.7 | N50: 6854400 | O50: -7.87%
A51: 41 | B51: Automobile | C51: CEATLTD | D51: 1283.05 | E51: 1275.53 | F51: 1262.12 | G51: 1241.18 | H51: 1227.77 | I51: 1296.47 | J51: 1309.88 | K51: 1330.82 | L51: 1288.95 | M51: 1254.6 | N51: 716800 | O51: -19.33%
A52: 42 | B52: Textile | C52: CENTURYTEX | D52: 902.30 | E52: 906.50 | F52: 892.85 | G52: 883.40 | H52: 869.75 | I52: 915.95 | J52: 929.60 | K52: 939.05 | L52: 920.15 | M52: 897.05 | N52: 4343400 | O52: -6.36%
A53: 43 | B53: Power | C53: CESC | D53: 674.20 | E53: 675.25 | F53: 668.95 | G53: 663.70 | H53: 657.40 | I53: 680.50 | J53: 686.80 | K53: 692.05 | L53: 681.55 | M53: 670 | N53: 1722050 | O53: -13.17%
A54: 44 | B54: Power | C54: CGPOWER | D54: 44.30 | E54: 44.47 | F54: 43.73 | G54: 43.17 | H54: 42.43 | I54: 45.03 | J54: 45.77 | K54: 46.33 | L54: 45.2 | M54: 43.9 | N54: 40164000 | O54: -12.70%
A55: 45 | B55: Others | C55: CHENNPETRO | D55: 286.15 | E55: 283.63 | F55: 278.47 | G55: 270.78 | H55: 265.62 | I55: 291.32 | J55: 296.48 | K55: 304.17 | L55: 288.8 | M55: 275.95 | N55: 1015200 | O55: -19.70%
A56: 46 | B56: Others | C56: CHOLAFIN | D56: 1237.35 | E56: 1242.75 | F56: 1215.75 | G56: 1194.15 | H56: 1167.15 | I56: 1264.35 | J56: 1291.35 | K56: 1312.95 | L56: 1269.75 | M56: 1221.15 | N56: 1188500 | O56: -13.25%
A57: 47 | B57: Pharma | C57: CIPLA | D57: 521.30 | E57: 520.25 | F57: 517.40 | G57: 513.50 | H57: 510.65 | I57: 524.15 | J57: 527.00 | K57: 530.90 | L57: 523.1 | M57: 516.35 | N57: 7422000 | O57: -10.91%
A58: 48 | B58: Others | C58: COALINDIA | D58: 239.65 | E58: 239.78 | F58: 236.77 | G58: 233.88 | H58: 230.87 | I58: 242.67 | J58: 245.68 | K58: 248.57 | L58: 242.8 | M58: 236.9 | N58: 28338200 | O58: -13.14%
A59: 49 | B59: FMCG | C59: COLPAL | D59: 1305.05 | E59: 1309.80 | F59: 1295.25 | G59: 1285.45 | H59: 1270.90 | I59: 1319.60 | J59: 1334.15 | K59: 1343.95 | L59: 1324.35 | M59: 1300 | N59: 1136800 | O59: -30.03%
A60: 50 | B60: Others | C60: CONCOR | D60: 667.90 | E60: 670.97 | F60: 657.93 | G60: 647.97 | H60: 634.93 | I60: 680.93 | J60: 693.97 | K60: 703.93 | L60: 684 | M60: 661 | N60: 2073750 | O60: -48.45%
A61: 51 | B61: Capital_Goods | C61: CUMMINSIND | D61: 831.50 | E61: 827.50 | F61: 812.00 | G61: 792.50 | H61: 777.00 | I61: 847.00 | J61: 862.50 | K61: 882.00 | L61: 843 | M61: 808 | N61: 1472800 | O61: -20.63%
A62: 52 | B62: FMCG | C62: DABUR | D62: 432.80 | E62: 430.80 | F62: 427.25 | G62: 421.70 | H62: 418.15 | I62: 436.35 | J62: 439.90 | K62: 445.45 | L62: 434.35 | M62: 425.25 | N62: 9978750 | O62: -12.72%
A63: 53 | B63: Banking | C63: DCBBANK | D63: 163.75 | E63: 163.98 | F63: 161.77 | G63: 159.78 | H63: 157.57 | I63: 165.97 | J63: 168.18 | K63: 170.17 | L63: 166.2 | M63: 162 | N63: 3816000 | O63: -15.12%
A64: 54 | B64: Finance | C64: DHFL | D64: 237.80 | E64: 238.57 | F64: 235.23 | G64: 232.67 | H64: 229.33 | I64: 241.13 | J64: 244.47 | K64: 247.03 | L64: 241.9 | M64: 236 | N64: 17341500 | O64: -18.84%
A65: 55 | B65: Media | C65: DISHTV | D65: 37.80 | E65: 37.52 | F65: 37.03 | G65: 36.27 | H65: 35.78 | I65: 38.28 | J65: 38.77 | K65: 39.53 | L65: 38 | M65: 36.75 | N65: 52024000 | O65: -13.60%
A66: 56 | B66: Pharma | C66: DIVISLAB | D66: 1479.90 | E66: 1474.43 | F66: 1462.77 | G66: 1445.63 | H66: 1433.97 | I66: 1491.57 | J66: 1503.23 | K66: 1520.37 | L66: 1486.1 | M66: 1457.3 | N66: 3047200 | O66: -21.42%
A67: 57 | B67: Realty | C67: DLF | D67: 176.60 | E67: 178.28 | F67: 174.37 | G67: 172.13 | H67: 168.22 | I67: 180.52 | J67: 184.43 | K67: 186.67 | L67: 182.2 | M67: 176.05 | N67: 23296000 | O67: -6.80%
A68: 58 | B68: Pharma | C68: DRREDDY | D68: 2604.10 | E68: 2620.75 | F68: 2583.35 | G68: 2562.60 | H68: 2525.20 | I68: 2641.50 | J68: 2678.90 | K68: 2699.65 | L68: 2658.15 | M68: 2600 | N68: 3609750 | O68: -4.65%
A69: 59 | B69: Automobile | C69: EICHERMOT | D69: 23120.10 | E69: 23223.37 | F69: 22946.73 | G69: 22773.37 | H69: 22496.73 | I69: 23396.73 | J69: 23673.37 | K69: 23846.73 | L69: 23500 | M69: 23050 | N69: 249525 | O69: -13.82%
A70: 60 | B70: Infrastructure | C70: ENGINERSIN | D70: 125.15 | E70: 124.02 | F70: 122.13 | G70: 119.12 | H70: 117.23 | I70: 127.03 | J70: 128.92 | K70: 131.93 | L70: 125.9 | M70: 121 | N70: 7498900 | O70: -27.62%
A71: 61 | B71: Finance | C71: EQUITAS | D71: 125.10 | E71: 126.67 | F71: 122.93 | G71: 120.77 | H71: 117.03 | I71: 128.83 | J71: 132.57 | K71: 134.73 | L71: 130.4 | M71: 124.5 | N71: 7860000 | O71: -15.56%
A72: 62 | B72: Automobile | C72: ESCORTS | D72: 690.20 | E72: 694.07 | F72: 683.63 | G72: 677.07 | H72: 666.63 | I72: 700.63 | J72: 711.07 | K72: 717.63 | L72: 704.5 | M72: 687.5 | N72: 4006200 | O72: -12.16%
A73: 63 | B73: Automobile | C73: EXIDEIND | D73: 268.40 | E73: 266.52 | F73: 263.48 | G73: 258.57 | H73: 255.53 | I73: 271.43 | J73: 274.47 | K73: 279.38 | L73: 269.55 | M73: 261.6 | N73: 4688000 | O73: -16.97%
A74: 64 | B74: Banking | C74: FEDERALBNK | D74: 94.75 | E74: 93.78 | F74: 92.62 | G74: 90.48 | H74: 89.32 | I74: 95.92 | J74: 97.08 | K74: 99.22 | L74: 94.95 | M74: 91.65 | N74: 39018000 | O74: -15.94%
A75: 65 | B75: Oil_Gas | C75: GAIL | D75: 354.00 | E75: 355.50 | F75: 349.50 | G75: 345.00 | H75: 339.00 | I75: 360.00 | J75: 366.00 | K75: 370.50 | L75: 361.5 | M75: 351 | N75: 10337292 | O75: -55.11%
A76: 66 | B76: Pharma | C76: GLENMARK | D76: 687.00 | E76: 681.40 | F76: 673.20 | G76: 659.40 | H76: 651.20 | I76: 695.20 | J76: 703.40 | K76: 717.20 | L76: 689.6 | M76: 667.6 | N76: 3423000 | O76: -16.00%
A77: 67 | B77: Infrastructure | C77: GMRINFRA | D77: 16.10 | E77: 16.25 | F77: 15.85 | G77: 15.60 | H77: 15.20 | I77: 16.50 | J77: 16.90 | K77: 17.15 | L77: 16.65 | M77: 16 | N77: 170235000 | O77: -19.51%
A78: 68 | B78: Others | C78: GODFRYPHLP | D78: 876.65 | E78: 869.55 | F78: 854.70 | G78: 832.75 | H78: 817.90 | I78: 891.50 | J78: 906.35 | K78: 928.30 | L78: 884.4 | M78: 847.6 | N78: 555100 | O78: -4.80%
A79: 69 | B79: FMCG | C79: GODREJCP | D79: 818.15 | E79: 814.28 | F79: 806.77 | G79: 795.38 | H79: 787.87 | I79: 825.67 | J79: 833.18 | K79: 844.57 | L79: 821.8 | M79: 802.9 | N79: 4200000 | O79: -13.26%
A80: 70 | B80: FMCG | C80: GODREJIND | D80: 534.05 | E80: 530.10 | F80: 523.40 | G80: 512.75 | H80: 506.05 | I80: 540.75 | J80: 547.45 | K80: 558.10 | L80: 536.8 | M80: 519.45 | N80: 1936500 | O80: -16.11%
A81: 71 | B81: Cement | C81: GRASIM | D81: 819.10 | E81: 821.90 | F81: 813.45 | G81: 807.80 | H81: 799.35 | I81: 827.55 | J81: 836.00 | K81: 841.65 | L81: 830.35 | M81: 816.25 | N81: 9393000 | O81: -9.05%
A82: 72 | B82: Others | C82: GSFC | D82: 109.65 | E82: 109.90 | F82: 108.40 | G82: 107.15 | H82: 105.65 | I82: 111.15 | J82: 112.65 | K82: 113.90 | L82: 111.4 | M82: 108.65 | N82: 15232700 | O82: -0.98%
A83: 73 | B83: Others | C83: HAVELLS | D83: 687.60 | E83: 688.28 | F83: 680.77 | G83: 673.93 | H83: 666.42 | I83: 695.12 | J83: 702.63 | K83: 709.47 | L83: 695.8 | M83: 681.45 | N83: 4466000 | O83: -12.02%
A84: 74 | B84: Technology | C84: HCLTECH | D84: 952.30 | E84: 954.33 | F84: 944.27 | G84: 936.23 | H84: 926.17 | I84: 962.37 | J84: 972.43 | K84: 980.47 | L84: 964.4 | M84: 946.3 | N84: 9052400 | O84: -12.96%
A85: 75 | B85: Finance | C85: HDFC | D85: 1957.00 | E85: 1954.02 | F85: 1944.03 | G85: 1931.07 | H85: 1921.08 | I85: 1966.98 | J85: 1976.97 | K85: 1989.93 | L85: 1964 | M85: 1941.05 | N85: 24924500 | O85: -9.15%
A86: 76 | B86: Banking | C86: HDFCBANK | D86: 2117.95 | E86: 2126.27 | F86: 2103.98 | G86: 2090.02 | H86: 2067.73 | I86: 2140.23 | J86: 2162.52 | K86: 2176.48 | L86: 2148.55 | M86: 2112.3 | N86: 11390750 | O86: -23.97%
A87: 77 | B87: Automobile | C87: HEROMOTOCO | D87: 3142.90 | E87: 3165.40 | F87: 3108.50 | G87: 3074.10 | H87: 3017.20 | I87: 3199.80 | J87: 3256.70 | K87: 3291.10 | L87: 3222.3 | M87: 3131 | N87: 1308000 | O87: -6.58%
A88: 78 | B88: Technology | C88: HEXAWARE | D88: 326.50 | E88: 323.68 | F88: 319.37 | G88: 312.23 | H88: 307.92 | I88: 330.82 | J88: 335.13 | K88: 342.27 | L88: 328 | M88: 316.55 | N88: 2820000 | O88: -3.14%
A89: 79 | B89: Metals | C89: HINDALCO | D89: 221.80 | E89: 222.53 | F89: 220.37 | G89: 218.93 | H89: 216.77 | I89: 223.97 | J89: 226.13 | K89: 227.57 | L89: 224.7 | M89: 221.1 | N89: 28182000 | O89: -10.47%
A90: 80 | B90: Oil_Gas | C90: HINDPETRO | D90: 245.95 | E90: 243.37 | F90: 239.98 | G90: 234.02 | H90: 230.63 | I90: 249.33 | J90: 252.72 | K90: 258.68 | L90: 246.75 | M90: 237.4 | N90: 14361900 | O90: -42.11%
A91: 81 | B91: FMCG | C91: HINDUNILVR | D91: 1824.40 | E91: 1819.48 | F91: 1808.97 | G91: 1793.53 | H91: 1783.02 | I91: 1834.92 | J91: 1845.43 | K91: 1860.87 | L91: 1830 | M91: 1804.05 | N91: 9666600 | O91: -9.47%
A92: 82 | B92: Metals | C92: HINDZINC | D92: 274.80 | E92: 274.02 | F92: 272.03 | G92: 269.27 | H92: 267.28 | I92: 276.78 | J92: 278.77 | K92: 281.53 | L92: 276 | M92: 271.25 | N92: 5196800 | O92: -11.35%
A93: 83 | B93: Finance | C93: IBULHSGFIN | D93: 842.20 | E93: 843.18 | F93: 829.27 | G93: 816.33 | H93: 802.42 | I93: 856.12 | J93: 870.03 | K93: 882.97 | L93: 857.1 | M93: 830.25 | N93: 12159000 | O93: -35.31%
A94: 84 | B94: Banking | C94: ICICIBANK | D94: 357.15 | E94: 358.85 | F94: 354.90 | G94: 352.65 | H94: 348.70 | I94: 361.10 | J94: 365.05 | K94: 367.30 | L94: 362.8 | M94: 356.6 | N94: 73271000 | O94: -16.49%
A95: 85 | B95: Others | C95: ICICIPRULI | D95: 325.10 | E95: 325.68 | F95: 322.22 | G95: 319.33 | H95: 315.87 | I95: 328.57 | J95: 332.03 | K95: 334.92 | L95: 329.15 | M95: 322.8 | N95: 3574500 | O95: -9.34%
A96: 86 | B96: Banking | C96: IDBI | D96: 61.45 | E96: 61.48 | F96: 61.22 | G96: 60.98 | H96: 60.72 | I96: 61.72 | J96: 61.98 | K96: 62.22 | L96: 61.75 | M96: 61.25 | N96: 28060000 | O96: -21.07%
A97: 87 | B97: Telecom | C97: IDEA | D97: 37.40 | E97: 37.60 | F97: 37.00 | G97: 36.60 | H97: 36.00 | I97: 38.00 | J97: 38.60 | K97: 39.00 | L97: 38.2 | M97: 37.2 | N97: 135756000 | O97: -16.85%
A98: 88 | B98: Finance | C98: IDFC | D98: 43.10 | E98: 43.40 | F98: 42.65 | G98: 42.20 | H98: 41.45 | I98: 43.85 | J98: 44.60 | K98: 45.05 | L98: 44.15 | M98: 42.95 | N98: 99937200 | O98: -24.87%
A99: 89 | B99: Banking | C99: IDFCBANK | D99: 42.65 | E99: 42.92 | F99: 42.13 | G99: 41.62 | H99: 40.83 | I99: 43.43 | J99: 44.22 | K99: 44.73 | L99: 43.7 | M99: 42.4 | N99: 159708000 | O99: -2.68%
A100: 90 | B100: Finance | C100: IFCI | D100: 15.05 | E100: 15.03 | F100: 14.62 | G100: 14.18 | H100: 13.77 | I100: 15.47 | J100: 15.88 | K100: 16.32 | L100: 15.45 | M100: 14.6 | N100: 52045000 | O100: 1.89%
A101: 91 | B101: Oil_Gas | C101: IGL | D101: 265.85 | E101: 265.93 | F101: 262.12 | G101: 258.38 | H101: 254.57 | I101: 269.67 | J101: 273.48 | K101: 277.22 | L101: 269.75 | M101: 262.2 | N101: 5280000 | O101: -25.12%
A102: 92 | B102: Cement | C102: INDIACEM | D102: 93.65 | E102: 93.97 | F102: 92.58 | G102: 91.52 | H102: 90.13 | I102: 95.03 | J102: 96.42 | K102: 97.48 | L102: 95.35 | M102: 92.9 | N102: 16200000 | O102: -3.35%
A103: 93 | B103: Banking | C103: INDIANB | D103: 240.80 | E103: 242.22 | F103: 237.43 | G103: 234.07 | H103: 229.28 | I103: 245.58 | J103: 250.37 | K103: 253.73 | L103: 247 | M103: 238.85 | N103: 3872000 | O103: -6.29%
A104: 94 | B104: Others | C104: INDIGO | D104: 1166.90 | E104: 1162.07 | F104: 1151.38 | G104: 1135.87 | H104: 1125.18 | I104: 1177.58 | J104: 1188.27 | K104: 1203.78 | L104: 1172.75 | M104: 1146.55 | N104: 2313000 | O104: -22.92%
A105: 95 | B105: Banking | C105: INDUSINDBK | D105: 1573.95 | E105: 1582.15 | F105: 1562.30 | G105: 1550.65 | H105: 1530.80 | I105: 1593.80 | J105: 1613.65 | K105: 1625.30 | L105: 1602 | M105: 1570.5 | N105: 5812200 | O105: -15.16%
A106: 96 | B106: Technology | C106: INFIBEAM | D106: 47.20 | E106: 46.97 | F106: 45.73 | G106: 44.27 | H106: 43.03 | I106: 48.43 | J106: 49.67 | K106: 51.13 | L106: 48.2 | M106: 45.5 | N106: 11620000 | O106: -15.92%
A107: 97 | B107: Telecom | C107: INFRATEL | D107: 268.25 | E107: 266.93 | F107: 264.22 | G107: 260.18 | H107: 257.47 | I107: 270.97 | J107: 273.68 | K107: 277.72 | L107: 269.65 | M107: 262.9 | N107: 8424000 | O107: -29.27%
A108: 98 | B108: Technology | C108: INFY | D108: 658.65 | E108: 658.30 | F108: 651.70 | G108: 644.75 | H108: 638.15 | I108: 665.25 | J108: 671.85 | K108: 678.80 | L108: 664.9 | M108: 651.35 | N108: 42399600 | O108: -17.08%
A109: 99 | B109: Oil_Gas | C109: IOC | D109: 134.10 | E109: 133.67 | F109: 132.18 | G109: 130.27 | H109: 128.78 | I109: 135.58 | J109: 137.07 | K109: 138.98 | L109: 135.15 | M109: 131.75 | N109: 54666500 | O109: -26.32%
A110: 100 | B110: Infrastructure | C110: IRB | D110: 159.55 | E110: 160.78 | F110: 157.02 | G110: 154.48 | H110: 150.72 | I110: 163.32 | J110: 167.08 | K110: 169.62 | L110: 164.55 | M110: 158.25 | N110: 6828800 | O110: -9.15%
A111: 101 | B111: FMCG | C111: ITC | D111: 281.80 | E111: 280.97 | F111: 279.58 | G111: 277.37 | H111: 275.98 | I111: 283.18 | J111: 284.57 | K111: 286.78 | L111: 282.35 | M111: 278.75 | N111: 72640800 | O111: -12.00%
A112: 102 | B112: Others | C112: JETAIRWAYS | D112: 267.15 | E112: 263.83 | F112: 256.52 | G112: 245.88 | H112: 238.57 | I112: 274.47 | J112: 281.78 | K112: 292.42 | L112: 271.15 | M112: 253.2 | N112: 5535200 | O112: -6.43%
A113: 103 | B113: Metals | C113: JINDALSTEL | D113: 159.20 | E113: 161.05 | F113: 156.45 | G113: 153.70 | H113: 149.10 | I113: 163.80 | J113: 168.40 | K113: 171.15 | L113: 165.65 | M113: 158.3 | N113: 20524500 | O113: -18.87%
A114: 104 | B114: Others | C114: JISLJALEQS | D114: 67.40 | E114: 67.42 | F114: 66.68 | G114: 65.97 | H114: 65.23 | I114: 68.13 | J114: 68.87 | K114: 69.58 | L114: 68.15 | M114: 66.7 | N114: 31779000 | O114: -13.65%
A115: 105 | B115: Realty | C115: JPASSOCIAT | D115: 7.70 | E115: 7.62 | F115: 7.33 | G115: 6.97 | H115: 6.68 | I115: 7.98 | J115: 8.27 | K115: 8.63 | L115: 7.9 | M115: 7.25 | N115: 115775000 | O115: -4.45%
A116: 106 | B116: Metals | C116: JSWSTEEL | D116: 294.90 | E116: 297.08 | F116: 292.17 | G116: 289.43 | H116: 284.52 | I116: 299.82 | J116: 304.73 | K116: 307.47 | L116: 302 | M116: 294.35 | N116: 46966500 | O116: -17.55%
A117: 107 | B117: Others | C117: JUBLFOOD | D117: 1240.05 | E117: 1240.62 | F117: 1220.98 | G117: 1201.92 | H117: 1182.28 | I117: 1259.68 | J117: 1279.32 | K117: 1298.38 | L117: 1260.25 | M117: 1221.55 | N117: 2242500 | O117: -15.07%
A118: 108 | B118: Others | C118: JUSTDIAL | D118: 504.40 | E118: 501.53 | F118: 492.07 | G118: 479.73 | H118: 470.27 | I118: 513.87 | J118: 523.33 | K118: 535.67 | L118: 511 | M118: 489.2 | N118: 2380000 | O118: -5.71%
A119: 109 | B119: Others | C119: KAJARIACER | D119: 493.10 | E119: 493.37 | F119: 489.03 | G119: 484.97 | H119: 480.63 | I119: 497.43 | J119: 501.77 | K119: 505.83 | L119: 497.7 | M119: 489.3 | N119: 2319200 | O119: -12.57%
A120: 110 | B120: Banking | C120: KOTAKBANK | D120: 1247.75 | E120: 1252.90 | F120: 1238.15 | G120: 1228.55 | H120: 1213.80 | I120: 1262.50 | J120: 1277.25 | K120: 1286.85 | L120: 1267.65 | M120: 1243.3 | N120: 10601600 | O120: -20.40%
A121: 111 | B121: Technology | C121: KPIT | D121: 221.80 | E121: 221.02 | F121: 218.18 | G121: 214.57 | H121: 211.73 | I121: 224.63 | J121: 227.47 | K121: 231.08 | L121: 223.85 | M121: 217.4 | N121: 5040000 | O121: -5.92%
A122: 112 | B122: Others | C122: KSCL | D122: 571.55 | E122: 557.08 | F122: 534.47 | G122: 497.38 | H122: 474.77 | I122: 594.17 | J122: 616.78 | K122: 653.87 | L122: 579.7 | M122: 520 | N122: 1039500 | O122: -12.17%
A123: 113 | B123: Banking | C123: KTKBANK | D123: 110.75 | E123: 111.98 | F123: 108.87 | G123: 106.98 | H123: 103.87 | I123: 113.87 | J123: 116.98 | K123: 118.87 | L123: 115.1 | M123: 110.1 | N123: 15162200 | O123: -2.01%
A124: 114 | B124: Finance | C124: L&TFH | D124: 153.95 | E124: 154.92 | F124: 152.38 | G124: 150.82 | H124: 148.28 | I124: 156.48 | J124: 159.02 | K124: 160.58 | L124: 157.45 | M124: 153.35 | N124: 16821000 | O124: -20.70%
A125: 115 | B125: Finance | C125: LICHSGFIN | D125: 481.20 | E125: 484.77 | F125: 475.48 | G125: 469.77 | H125: 460.48 | I125: 490.48 | J125: 499.77 | K125: 505.48 | L125: 494.05 | M125: 479.05 | N125: 8074000 | O125: -4.93%
A126: 116 | B126: Capital_Goods | C126: LT | D126: 1432.80 | E126: 1430.27 | F126: 1418.53 | G126: 1404.27 | H126: 1392.53 | I126: 1444.53 | J126: 1456.27 | K126: 1470.53 | L126: 1442 | M126: 1416 | N126: 9361875 | O126: -14.44%
A127: 117 | B127: Pharma | C127: LUPIN | D127: 842.60 | E127: 840.73 | F127: 836.47 | G127: 830.33 | H127: 826.07 | I127: 846.87 | J127: 851.13 | K127: 857.27 | L127: 845 | M127: 834.6 | N127: 8465800 | O127: -10.67%
A128: 118 | B128: Automobile | C128: M&M | D128: 796.85 | E128: 798.23 | F128: 791.47 | G128: 786.08 | H128: 779.32 | I128: 803.62 | J128: 810.38 | K128: 815.77 | L128: 805 | M128: 792.85 | N128: 12520000 | O128: -7.38%
A129: 119 | B129: Finance | C129: M&MFIN | D129: 466.55 | E129: 471.68 | F129: 457.62 | G129: 448.68 | H129: 434.62 | I129: 480.62 | J129: 494.68 | K129: 503.62 | L129: 485.75 | M129: 462.75 | N129: 9476250 | O129: -20.74%
A130: 120 | B130: Others | C130: MANAPPURAM | D130: 90.55 | E130: 91.28 | F130: 89.57 | G130: 88.58 | H130: 86.87 | I130: 92.27 | J130: 93.98 | K130: 94.97 | L130: 93 | M130: 90.3 | N130: 11454000 | O130: -17.22%
A131: 121 | B131: FMCG | C131: MARICO | D131: 377.90 | E131: 376.52 | F131: 372.78 | G131: 367.67 | H131: 363.93 | I131: 381.63 | J131: 385.37 | K131: 390.48 | L131: 380.25 | M131: 371.4 | N131: 7729800 | O131: -9.39%
A132: 122 | B132: Automobile | C132: MARUTI | D132: 7537.05 | E132: 7587.33 | F132: 7474.72 | G132: 7412.38 | H132: 7299.77 | I132: 7649.67 | J132: 7762.28 | K132: 7824.62 | L132: 7699.95 | M132: 7525 | N132: 2112075 | O132: -6.49%
A133: 123 | B133: FMCG | C133: MCDOWELL-N | D133: 634.30 | E133: 630.30 | F133: 624.50 | G133: 614.70 | H133: 608.90 | I133: 640.10 | J133: 645.90 | K133: 655.70 | L133: 636.1 | M133: 620.5 | N133: 10270000 | O133: -9.84%
A134: 124 | B134: Others | C134: MCX | D134: 728.45 | E134: 725.73 | F134: 716.67 | G134: 704.88 | H134: 695.82 | I134: 737.52 | J134: 746.58 | K134: 758.37 | L134: 734.8 | M134: 713.95 | N134: 2353400 | O134: -4.52%
A135: 125 | B135: Finance | C135: MFSL | D135: 439.00 | E135: 441.83 | F135: 433.72 | G135: 428.43 | H135: 420.32 | I135: 447.12 | J135: 455.23 | K135: 460.52 | L135: 449.95 | M135: 436.55 | N135: 2151600 | O135: -17.90%
A136: 126 | B136: Others | C136: MGL | D136: 897.95 | E136: 891.80 | F136: 881.65 | G136: 865.35 | H136: 855.20 | I136: 908.10 | J136: 918.25 | K136: 934.55 | L136: 901.95 | M136: 875.5 | N136: 674400 | O136: -32.94%
A137: 127 | B137: Technology | C137: MINDTREE | D137: 864.70 | E137: 866.40 | F137: 854.80 | G137: 844.90 | H137: 833.30 | I137: 876.30 | J137: 887.90 | K137: 897.80 | L137: 878 | M137: 856.5 | N137: 2193600 | O137: -13.65%
A138: 128 | B138: Automobile | C138: MOTHERSUMI | D138: 163.45 | E138: 164.00 | F138: 161.55 | G138: 159.65 | H138: 157.20 | I138: 165.90 | J138: 168.35 | K138: 170.25 | L138: 166.45 | M138: 162.1 | N138: 21651450 | O138: -13.47%
A139: 129 | B139: Automobile | C139: MRF | D139: 67144.75 | E139: 67361.58 | F139: 66783.17 | G139: 66421.58 | H139: 65843.17 | I139: 67723.17 | J139: 68301.58 | K139: 68663.17 | L139: 67940 | M139: 67000 | N139: 23970 | O139: -14.39%
A140: 130 | B140: Others | C140: MRPL | D140: 75.10 | E140: 75.05 | F140: 74.20 | G140: 73.30 | H140: 72.45 | I140: 75.95 | J140: 76.80 | K140: 77.70 | L140: 75.9 | M140: 74.15 | N140: 5264000 | O140: -17.08%
A141: 131 | B141: Finance | C141: MUTHOOTFIN | D141: 494.25 | E141: 496.93 | F141: 490.27 | G141: 486.28 | H141: 479.62 | I141: 500.92 | J141: 507.58 | K141: 511.57 | L141: 503.6 | M141: 492.95 | N141: 1948500 | O141: -38.90%
A142: 132 | B142: Others | C142: NATIONALUM | D142: 62.15 | E142: 62.58 | F142: 61.22 | G142: 60.28 | H142: 58.92 | I142: 63.52 | J142: 64.88 | K142: 65.82 | L142: 63.95 | M142: 61.65 | N142: 23880000 | O142: -27.48%
A143: 133 | B143: Others | C143: NBCC | D143: 54.25 | E143: 54.83 | F143: 53.47 | G143: 52.68 | H143: 51.32 | I143: 55.62 | J143: 56.98 | K143: 57.77 | L143: 56.2 | M143: 54.05 | N143: 36232000 | O143: -5.79%
A144: 134 | B144: Infrastructure | C144: NCC | D144: 84.50 | E144: 85.10 | F144: 83.20 | G144: 81.90 | H144: 80.00 | I144: 86.40 | J144: 88.30 | K144: 89.60 | L144: 87 | M144: 83.8 | N144: 46328000 | O144: -5.25%
A145: 135 | B145: Others | C145: NESTLEIND | D145: 11011.40 | E145: 10975.98 | F145: 10914.82 | G145: 10818.23 | H145: 10757.07 | I145: 11072.57 | J145: 11133.73 | K145: 11230.32 | L145: 11037.15 | M145: 10879.4 | N145: 272450 | O145: -12.08%
A146: 136 | B146: Power | C146: NHPC | D146: 25.80 | E146: 25.83 | F146: 25.62 | G146: 25.43 | H146: 25.22 | I146: 26.02 | J146: 26.23 | K146: 26.42 | L146: 26.05 | M146: 25.65 | N146: 20682000 | O146: -11.65%
A147: 137 | B147: Technology | C147: NIITTECH | D147: 1154.85 | E147: 1149.07 | F147: 1134.83 | G147: 1114.82 | H147: 1100.58 | I147: 1169.08 | J147: 1183.32 | K147: 1203.33 | L147: 1163.3 | M147: 1129.05 | N147: 1464000 | O147: -14.12%
A148: 138 | B148: Metals | C148: NMDC | D148: 91.90 | E148: 92.97 | F148: 90.38 | G148: 88.87 | H148: 86.28 | I148: 94.48 | J148: 97.07 | K148: 98.58 | L148: 95.55 | M148: 91.45 | N148: 19620000 | O148: -19.08%
A149: 139 | B149: Power | C149: NTPC | D149: 145.70 | E149: 145.22 | F149: 143.63 | G149: 141.57 | H149: 139.98 | I149: 147.28 | J149: 148.87 | K149: 150.93 | L149: 146.8 | M149: 143.15 | N149: 40472000 | O149: -20.66%
A150: 140 | B150: Technology | C150: OFSS | D150: 3685.25 | E150: 3639.38 | F150: 3578.82 | G150: 3472.38 | H150: 3411.82 | I150: 3745.82 | J150: 3806.38 | K150: 3912.82 | L150: 3699.95 | M150: 3532.95 | N150: 108000 | O150: -38.57%
A151: 141 | B151: Oil_Gas | C151: OIL | D151: 168.50 | E151: 169.75 | F151: 166.15 | G151: 163.80 | H151: 160.20 | I151: 172.10 | J151: 175.70 | K151: 178.05 | L151: 173.35 | M151: 167.4 | N151: 8249373 | O151: -9.44%
A152: 142 | B152: Oil_Gas | C152: ONGC | D152: 145.65 | E152: 146.33 | F152: 143.27 | G152: 140.88 | H152: 137.82 | I152: 148.72 | J152: 151.78 | K152: 154.17 | L152: 149.4 | M152: 143.95 | N152: 46413750 | O152: -23.89%
A153: 143 | B153: Banking | C153: ORIENTBANK | D153: 95.45 | E153: 95.70 | F153: 94.25 | G153: 93.05 | H153: 91.60 | I153: 96.90 | J153: 98.35 | K153: 99.55 | L153: 97.15 | M153: 94.5 | N153: 12733000 | O153: -9.46%
A154: 144 | B154: Textile | C154: PAGEIND | D154: 23976.30 | E154: 24036.67 | F154: 23751.33 | G154: 23526.37 | H154: 23241.03 | I154: 24261.63 | J154: 24546.97 | K154: 24771.93 | L154: 24322 | M154: 23811.7 | N154: 121150 | O154: -16.28%
A155: 145 | B155: Others | C155: PCJEWELLER | D155: 85.70 | E155: 84.82 | F155: 82.88 | G155: 80.07 | H155: 78.13 | I155: 87.63 | J155: 89.57 | K155: 92.38 | L155: 86.75 | M155: 82 | N155: 9613500 | O155: 18.72%
A156: 146 | B156: Pharma | C156: PEL | D156: 2302.85 | E156: 2313.65 | F156: 2270.20 | G156: 2237.55 | H156: 2194.10 | I156: 2346.30 | J156: 2389.75 | K156: 2422.40 | L156: 2357.1 | M156: 2281 | N156: 2581798 | O156: -10.29%
A157: 147 | B157: Oil_Gas | C157: PETRONET | D157: 223.75 | E157: 224.40 | F157: 222.35 | G157: 220.95 | H157: 218.90 | I157: 225.80 | J157: 227.85 | K157: 229.25 | L157: 226.45 | M157: 223 | N157: 10950000 | O157: -26.31%
A158: 148 | B158: Finance | C158: PFC | D158: 99.50 | E158: 100.60 | F158: 98.00 | G158: 96.50 | H158: 93.90 | I158: 102.10 | J158: 104.70 | K158: 106.20 | L158: 103.2 | M158: 99.1 | N158: 33566800 | O158: -28.36%
A159: 149 | B159: FMCG | C159: PIDILITIND | D159: 1119.65 | E159: 1118.45 | F159: 1109.65 | G159: 1099.65 | H159: 1090.85 | I159: 1128.45 | J159: 1137.25 | K159: 1147.25 | L159: 1127.25 | M159: 1108.45 | N159: 2565500 | O159: -25.12%
A160: 150 | B160: Banking | C160: PNB | D160: 78.45 | E160: 78.50 | F160: 77.70 | G160: 76.95 | H160: 76.15 | I160: 79.25 | J160: 80.05 | K160: 80.80 | L160: 79.3 | M160: 77.75 | N160: 107793000 | O160: -6.12%
A161: 151 | B161: Power | C161: POWERGRID | D161: 194.75 | E161: 194.48 | F161: 192.47 | G161: 190.18 | H161: 188.17 | I161: 196.77 | J161: 198.78 | K161: 201.07 | L161: 196.5 | M161: 192.2 | N161: 25380000 | O161: -41.57%
A162: 152 | B162: Power | C162: PTC | D162: 90.90 | E162: 90.48 | F162: 89.27 | G162: 87.63 | H162: 86.42 | I162: 92.12 | J162: 93.33 | K162: 94.97 | L162: 91.7 | M162: 88.85 | N162: 5936000 | O162: -11.88%
A163: 153 | B163: Others | C163: PVR | D163: 1588.40 | E163: 1575.80 | F163: 1557.60 | G163: 1526.80 | H163: 1508.60 | I163: 1606.60 | J163: 1624.80 | K163: 1655.60 | L163: 1594 | M163: 1545 | N163: 1434800 | O163: 5.19%
A164: 154 | B164: Cement | C164: RAMCOCEM | D164: 644.40 | E164: 637.97 | F164: 627.93 | G164: 611.47 | H164: 601.43 | I164: 654.43 | J164: 664.47 | K164: 680.93 | L164: 648 | M164: 621.5 | N164: 526400 | O164: -24.80%
A165: 155 | B165: Others | C165: RAYMOND | D165: 832.25 | E165: 838.50 | F165: 822.00 | G165: 811.75 | H165: 795.25 | I165: 848.75 | J165: 865.25 | K165: 875.50 | L165: 855 | M165: 828.25 | N165: 3619200 | O165: -8.51%
A166: 156 | B166: Banking | C166: RBLBANK | D166: 576.15 | E166: 571.17 | F166: 563.98 | G166: 551.82 | H166: 544.63 | I166: 583.33 | J166: 590.52 | K166: 602.68 | L166: 578.35 | M166: 559 | N166: 4821600 | O166: -33.03%
A167: 157 | B167: Telecom | C167: RCOM | D167: 14.60 | E167: 14.52 | F167: 14.28 | G167: 13.97 | H167: 13.73 | I167: 14.83 | J167: 15.07 | K167: 15.38 | L167: 14.75 | M167: 14.2 | N167: 88366000 | O167: -6.54%
A168: 158 | B168: Power | C168: RECLTD | D168: 115.30 | E168: 115.63 | F168: 113.22 | G168: 111.13 | H168: 108.72 | I168: 117.72 | J168: 120.13 | K168: 122.22 | L168: 118.05 | M168: 113.55 | N168: 40668000 | O168: -16.70%
A169: 159 | B169: Finance | C169: RELCAPITAL | D169: 216.00 | E169: 215.27 | F169: 212.48 | G169: 208.97 | H169: 206.18 | I169: 218.78 | J169: 221.57 | K169: 225.08 | L169: 218.05 | M169: 211.75 | N169: 11941500 | O169: -9.75%
A170: 160 | B170: Oil_Gas | C170: RELIANCE | D170: 1123.80 | E170: 1120.55 | F170: 1109.15 | G170: 1094.50 | H170: 1083.10 | I170: 1135.20 | J170: 1146.60 | K170: 1161.25 | L170: 1131.95 | M170: 1105.9 | N170: 46682500 | O170: -11.10%
A171: 161 | B171: Power | C171: RELINFRA | D171: 304.75 | E171: 305.78 | F171: 302.22 | G171: 299.68 | H171: 296.12 | I171: 308.32 | J171: 311.88 | K171: 314.42 | L171: 309.35 | M171: 303.25 | N171: 8738600 | O171: -12.62%
A172: 162 | B172: Others | C172: REPCOHOME | D172: 393.70 | E172: 400.98 | F172: 384.02 | G172: 374.33 | H172: 357.37 | I172: 410.67 | J172: 427.63 | K172: 437.32 | L172: 417.95 | M172: 391.3 | N172: 1480600 | O172: -14.11%
A173: 163 | B173: Power | C173: RPOWER | D173: 28.65 | E173: 28.55 | F173: 28.00 | G173: 27.35 | H173: 26.80 | I173: 29.20 | J173: 29.75 | K173: 30.40 | L173: 29.1 | M173: 27.9 | N173: 46784000 | O173: -3.85%
A174: 164 | B174: Metals | C174: SAIL | D174: 51.70 | E174: 52.17 | F174: 50.93 | G174: 50.17 | H174: 48.93 | I174: 52.93 | J174: 54.17 | K174: 54.93 | L174: 53.4 | M174: 51.4 | N174: 80112000 | O174: -14.63%
A175: 165 | B175: Banking | C175: SBIN | D175: 293.55 | E175: 295.13 | F175: 291.22 | G175: 288.88 | H175: 284.97 | I175: 297.47 | J175: 301.38 | K175: 303.72 | L175: 299.05 | M175: 292.8 | N175: 71628000 | O175: -13.00%
A176: 166 | B176: Cement | C176: SHREECEM | D176: 17003.15 | E176: 17108.05 | F176: 16786.25 | G176: 16569.35 | H176: 16247.55 | I176: 17324.95 | J176: 17646.75 | K176: 17863.65 | L176: 17429.85 | M176: 16891.15 | N176: 70500 | O176: -34.11%
A177: 167 | B177: Capital_Goods | C177: SIEMENS | D177: 1032.05 | E177: 1033.65 | F177: 1018.45 | G177: 1004.85 | H177: 989.65 | I177: 1047.25 | J177: 1062.45 | K177: 1076.05 | L177: 1048.85 | M177: 1020.05 | N177: 1850750 | O177: -14.07%
A178: 168 | B178: Banking | C178: SOUTHBANK | D178: 15.25 | E178: 15.28 | F178: 15.12 | G178: 14.98 | H178: 14.82 | I178: 15.42 | J178: 15.58 | K178: 15.72 | L178: 15.45 | M178: 15.15 | N178: 136209510 | O178: -14.14%
A179: 169 | B179: Others | C179: SREINFRA | D179: 35.50 | E179: 35.22 | F179: 34.58 | G179: 33.67 | H179: 33.03 | I179: 36.13 | J179: 36.77 | K179: 37.68 | L179: 35.85 | M179: 34.3 | N179: 12732000 | O179: -13.65%
A180: 170 | B180: Textile | C180: SRF | D180: 2014.10 | E180: 2008.07 | F180: 1992.43 | G180: 1970.77 | H180: 1955.13 | I180: 2029.73 | J180: 2045.37 | K180: 2067.03 | L180: 2023.7 | M180: 1986.4 | N180: 728500 | O180: -8.82%
A181: 171 | B181: Finance | C181: SRTRANSFIN | D181: 1232.35 | E181: 1229.83 | F181: 1209.67 | G181: 1186.98 | H181: 1166.82 | I181: 1252.52 | J181: 1272.68 | K181: 1295.37 | L181: 1250 | M181: 1207.15 | N181: 3607800 | O181: -6.83%
A182: 172 | B182: Pharma | C182: STAR | D182: 459.50 | E182: 461.53 | F182: 456.17 | G182: 452.83 | H182: 447.47 | I182: 464.87 | J182: 470.23 | K182: 473.57 | L182: 466.9 | M182: 458.2 | N182: 3953400 | O182: -0.03%
A183: 173 | B183: Pharma | C183: SUNPHARMA | D183: 413.85 | E183: 417.12 | F183: 409.23 | G183: 404.62 | H183: 396.73 | I183: 421.73 | J183: 429.62 | K183: 434.23 | L183: 425 | M183: 412.5 | N183: 56687400 | O183: -4.86%
A184: 174 | B184: Media | C184: SUNTV | D184: 590.60 | E184: 588.97 | F184: 582.73 | G184: 574.87 | H184: 568.63 | I184: 596.83 | J184: 603.07 | K184: 610.93 | L184: 595.2 | M184: 581.1 | N184: 6606000 | O184: -4.47%
A185: 175 | B185: Power | C185: SUZLON | D185: 5.50 | E185: 5.48 | F185: 5.42 | G185: 5.33 | H185: 5.27 | I185: 5.57 | J185: 5.63 | K185: 5.72 | L185: 5.55 | M185: 5.4 | N185: 281504000 | O185: -17.87%
A186: 176 | B186: Banking | C186: SYNDIBANK | D186: 38.25 | E186: 38.25 | F186: 37.85 | G186: 37.45 | H186: 37.05 | I186: 38.65 | J186: 39.05 | K186: 39.45 | L186: 38.65 | M186: 37.85 | N186: 22995000 | O186: -7.23%
A187: 177 | B187: Fertilisers | C187: TATACHEM | D187: 705.95 | E187: 707.15 | F187: 700.80 | G187: 695.65 | H187: 689.30 | I187: 712.30 | J187: 718.65 | K187: 723.80 | L187: 713.5 | M187: 702 | N187: 2167500 | O187: -19.94%
A188: 178 | B188: Telecom | C188: TATACOMM | D188: 524.30 | E188: 522.22 | F188: 512.08 | G188: 499.87 | H188: 489.73 | I188: 534.43 | J188: 544.57 | K188: 556.78 | L188: 532.35 | M188: 510 | N188: 2513000 | O188: -6.93%
A189: 179 | B189: Technology | C189: TATAELXSI | D189: 1017.70 | E189: 1014.93 | F189: 1003.92 | G189: 990.13 | H189: 979.12 | I189: 1028.72 | J189: 1039.73 | K189: 1053.52 | L189: 1025.95 | M189: 1001.15 | N189: 1372000 | O189: -8.66%
A190: 180 | B190: FMCG | C190: TATAGLOBAL | D190: 221.60 | E190: 222.20 | F190: 215.70 | G190: 209.80 | H190: 203.30 | I190: 228.10 | J190: 234.60 | K190: 240.50 | L190: 228.7 | M190: 216.3 | N190: 10323000 | O190: -33.67%
A191: 181 | B191: Automobile | C191: TATAMOTORS | D191: 169.40 | E191: 170.80 | F191: 167.45 | G191: 165.50 | H191: 162.15 | I191: 172.75 | J191: 176.10 | K191: 178.05 | L191: 174.15 | M191: 168.85 | N191: 57138000 | O191: -9.75%
A192: 182 | B192: Automobile | C192: TATAMTRDVR | D192: 91.70 | E192: 92.53 | F192: 90.47 | G192: 89.23 | H192: 87.17 | I192: 93.77 | J192: 95.83 | K192: 97.07 | L192: 94.6 | M192: 91.3 | N192: 26603800 | O192: -10.29%
A193: 183 | B193: Power | C193: TATAPOWER | D193: 77.35 | E193: 77.12 | F193: 76.08 | G193: 74.82 | H193: 73.78 | I193: 78.38 | J193: 79.42 | K193: 80.68 | L193: 78.15 | M193: 75.85 | N193: 41769000 | O193: -26.06%
A194: 184 | B194: Metals | C194: TATASTEEL | D194: 509.70 | E194: 513.40 | F194: 504.40 | G194: 499.10 | H194: 490.10 | I194: 518.70 | J194: 527.70 | K194: 533.00 | L194: 522.4 | M194: 508.1 | N194: 31423637 | O194: -4.58%
A195: 185 | B195: Technology | C195: TCS | D195: 1913.10 | E195: 1920.78 | F195: 1898.32 | G195: 1883.53 | H195: 1861.07 | I195: 1935.57 | J195: 1958.03 | K195: 1972.82 | L195: 1943.25 | M195: 1906 | N195: 11623250 | O195: -9.29%
A196: 186 | B196: Technology | C196: TECHM | D196: 712.95 | E196: 710.07 | F196: 703.03 | G196: 693.12 | H196: 686.08 | I196: 719.98 | J196: 727.02 | K196: 736.93 | L196: 717.1 | M196: 700.15 | N196: 11689200 | O196: -14.49%
A197: 187 | B197: FMCG | C197: TITAN | D197: 893.75 | E197: 894.48 | F197: 886.32 | G197: 878.88 | H197: 870.72 | I197: 901.92 | J197: 910.08 | K197: 917.52 | L197: 902.65 | M197: 887.05 | N197: 14613750 | O197: -6.72%
A198: 188 | B198: Pharma | C198: TORNTPHARM | D198: 1745.75 | E198: 1747.57 | F198: 1725.18 | G198: 1704.62 | H198: 1682.23 | I198: 1768.13 | J198: 1790.52 | K198: 1811.08 | L198: 1769.95 | M198: 1727 | N198: 309500 | O198: -28.69%
A199: 189 | B199: Power | C199: TORNTPOWER | D199: 259.95 | E199: 261.82 | F199: 256.63 | G199: 253.32 | H199: 248.13 | I199: 265.13 | J199: 270.32 | K199: 273.63 | L199: 267 | M199: 258.5 | N199: 2001000 | O199: -14.05%
A200: 190 | B200: Media | C200: TV18BRDCST | D200: 37.70 | E200: 37.48 | F200: 36.82 | G200: 35.93 | H200: 35.27 | I200: 38.37 | J200: 39.03 | K200: 39.92 | L200: 38.15 | M200: 36.6 | N200: 51688000 | O200: -6.17%
A201: 191 | B201: Automobile | C201: TVSMOTOR | D201: 552.20 | E201: 557.35 | F201: 543.90 | G201: 535.60 | H201: 522.15 | I201: 565.65 | J201: 579.10 | K201: 587.40 | L201: 570.8 | M201: 549.05 | N201: 3848000 | O201: -42.80%
A202: 192 | B202: FMCG | C202: UBL | D202: 1373.50 | E202: 1371.30 | F202: 1356.60 | G202: 1339.70 | H202: 1325.00 | I202: 1388.20 | J202: 1402.90 | K202: 1419.80 | L202: 1386 | M202: 1354.4 | N202: 1890700 | O202: -9.30%
A203: 193 | B203: Finance | C203: UJJIVAN | D203: 273.40 | E203: 276.82 | F203: 268.53 | G203: 263.67 | H203: 255.38 | I203: 281.68 | J203: 289.97 | K203: 294.83 | L203: 285.1 | M203: 271.95 | N203: 2953600 | O203: -28.81%
A204: 194 | B204: Cement | C204: ULTRACEMCO | D204: 3992.90 | E204: 4001.22 | F204: 3965.93 | G204: 3938.97 | H204: 3903.68 | I204: 4028.18 | J204: 4063.47 | K204: 4090.43 | L204: 4036.5 | M204: 3974.25 | N204: 1603400 | O204: -16.82%
A205: 195 | B205: Banking | C205: UNIONBANK | D205: 84.40 | E205: 84.52 | F205: 83.18 | G205: 81.97 | H205: 80.63 | I205: 85.73 | J205: 87.07 | K205: 88.28 | L205: 85.85 | M205: 83.3 | N205: 36995000 | O205: -8.72%
A206: 196 | B206: Fertilisers | C206: UPL | D206: 754.10 | E206: 755.75 | F206: 747.75 | G206: 741.40 | H206: 733.40 | I206: 762.10 | J206: 770.10 | K206: 776.45 | L206: 763.75 | M206: 749.4 | N206: 17366400 | O206: -10.51%
... 22 more rows

Sheet Cash Intra
M5: Back to Main Page
A6: FOR INTRA DAY TRADING | K6: =Main!B10 -> 2018-12-28
A8: Sr.no | B8: Scrip | C8: CLOSE RATE | D8: Pivot Point | E8: Supports | H8: Resistances
C9: Point | E9: S1 | F9: S2 | G9: S3 | H9: R1 | I9: R2 | J9: R3 | K9: HIGH | L9: LOW | M9: Total Trade Quanity in Lakhs
A10: 1 | B10: Nifty 50 | C10: 10779.8 | D10: 10792.82 | E10: 10751.43 | F10: 10723.07 | G10: 10681.68 | H10: 10821.18 | I10: 10862.57 | J10: 10890.93 | K10: 10834.2 | L10: 10764.45
A11: 2 | B11: Nifty Bank | C11: 26878.55 | D11: 26987.87 | E11: 26735.78 | F11: 26593.02 | G11: 26340.93 | H11: 27130.63 | I11: 27382.72 | J11: 27525.48 | K11: 27239.95 | L11: 26845.1
A12: 3 | B12: Nifty CPSE | C12: 2049.25 | D12: 2044.33 | E12: 2032.32 | F12: 2015.38 | G12: 2003.37 | H12: 2061.27 | I12: 2073.28 | J12: 2090.22 | K12: 2056.35 | L12: 2027.4
A13: 4 | B13: Nifty Infra | C13: 3154.1 | D13: 3147.78 | E13: 3134.72 | F13: 3115.33 | G13: 3102.27 | H13: 3167.17 | I13: 3180.23 | J13: 3199.62 | K13: 3160.85 | L13: 3128.4
A14: 5 | B14: Nifty IT | C14: 14354.5 | D14: 14363.02 | E14: 14265.33 | F14: 14176.17 | G14: 14078.48 | H14: 14452.18 | I14: 14549.87 | J14: 14639.03 | K14: 14460.7 | L14: 14273.85
A15: 6 | B15: Nifty PSE | C15: 3356.5 | D15: 3349.70 | E15: 3332.75 | F15: 3309.00 | G15: 3292.05 | H15: 3373.45 | I15: 3390.40 | J15: 3414.15 | K15: 3366.65 | L15: 3325.95
A16: 7 | B16: Nifty Midcap 50 | C16: 4853.9 | D16: 4847.67 | E16: 4826.28 | F16: 4798.67 | G16: 4777.28 | H16: 4875.28 | I16: 4896.67 | J16: 4924.28 | K16: 4869.05 | L16: 4820.05
A17: 8 | B17: ABB | C17: 1309 | D17: 1311.48 | E17: 1299.97 | F17: 1290.93 | G17: 1279.42 | H17: 1320.52 | I17: 1332.03 | J17: 1341.07 | K17: 1323 | L17: 1302.45 | M17: 0.72902
A18: 9 | B18: ACC | C18: 1459.2 | D18: 1470.68 | E18: 1442.37 | F18: 1425.53 | G18: 1397.22 | H18: 1487.52 | I18: 1515.83 | J18: 1532.67 | K18: 1499 | L18: 1453.85 | M18: 5.54317
A19: 10 | B19: AIAENG | C19: 1690.45 | D19: 1675.48 | E19: 1635.97 | F19: 1581.48 | G19: 1541.97 | H19: 1729.97 | I19: 1769.48 | J19: 1823.97 | K19: 1715 | L19: 1621 | M19: 0.32339
A20: 11 | B20: AUBANK | C20: 595.45 | D20: 596.62 | E20: 584.83 | F20: 574.22 | G20: 562.43 | H20: 607.23 | I20: 619.02 | J20: 629.63 | K20: 608.4 | L20: 586 | M20: 0.89749
A21: 12 | B21: ADANIENT | C21: 162.35 | D21: 163.33 | E21: 158.87 | F21: 155.38 | G21: 150.92 | H21: 166.82 | I21: 171.28 | J21: 174.77 | K21: 167.8 | L21: 159.85 | M21: 108.82426
A22: 13 | B22: ADANIPORTS | C22: 384 | D22: 381.15 | E22: 376.50 | F22: 369.00 | G22: 364.35 | H22: 388.65 | I22: 393.30 | J22: 400.80 | K22: 385.8 | L22: 373.65 | M22: 50.43675
A23: 14 | B23: ADANIPOWER | C23: 51.35 | D23: 51.45 | E23: 50.90 | F23: 50.45 | G23: 49.90 | H23: 51.90 | I23: 52.45 | J23: 52.90 | K23: 52 | L23: 51 | M23: 105.25643
A24: 15 | B24: ABFRL | C24: 204.9 | D24: 207.38 | E24: 201.52 | F24: 198.13 | G24: 192.27 | H24: 210.77 | I24: 216.63 | J24: 220.02 | K24: 213.25 | L24: 204 | M24: 16.52016
A25: 16 | B25: AJANTPHARM | C25: 1177.75 | D25: 1162.92 | E25: 1140.83 | F25: 1103.92 | G25: 1081.83 | H25: 1199.83 | I25: 1221.92 | J25: 1258.83 | K25: 1185 | L25: 1126 | M25: 5.17054
A26: 17 | B26: ALKEM | C26: 1862.65 | D26: 1867.57 | E26: 1850.23 | F26: 1837.82 | G26: 1820.48 | H26: 1879.98 | I26: 1897.32 | J26: 1909.73 | K26: 1884.9 | L26: 1855.15 | M26: 0.21154
A27: 18 | B27: AMARAJABAT | C27: 735.9 | D27: 735.30 | E27: 730.90 | F27: 725.90 | G27: 721.50 | H27: 740.30 | I27: 744.70 | J27: 749.70 | K27: 739.7 | L27: 730.3 | M27: 2.6907
A28: 19 | B28: AMBUJACEM | C28: 216.85 | D28: 218.57 | E28: 214.33 | F28: 211.82 | G28: 207.58 | H28: 221.08 | I28: 225.32 | J28: 227.83 | K28: 222.8 | L28: 216.05 | M28: 16.84054
A29: 20 | B29: APOLLOHOSP | C29: 1242.8 | D29: 1253.67 | E29: 1224.83 | F29: 1206.87 | G29: 1178.03 | H29: 1271.63 | I29: 1300.47 | J29: 1318.43 | K29: 1282.5 | L29: 1235.7 | M29: 7.15199
A30: 21 | B30: APOLLOTYRE | C30: 231.05 | D30: 232.15 | E30: 229.00 | F30: 226.95 | G30: 223.80 | H30: 234.20 | I30: 237.35 | J30: 239.40 | K30: 235.3 | L30: 230.1 | M30: 19.16532
A31: 22 | B31: ARVIND | C31: 96.35 | D31: 96.82 | E31: 95.53 | F31: 94.72 | G31: 93.43 | H31: 97.63 | I31: 98.92 | J31: 99.73 | K31: 98.1 | L31: 96 | M31: 23.13882
A32: 23 | B32: ASHOKLEY | C32: 103 | D32: 103.57 | E32: 102.13 | F32: 101.27 | G32: 99.83 | H32: 104.43 | I32: 105.87 | J32: 106.73 | K32: 105 | L32: 102.7 | M32: 106.05851
A33: 24 | B33: ASIANPAINT | C33: 1372.5 | D33: 1370.52 | E33: 1356.28 | F33: 1340.07 | G33: 1325.83 | H33: 1386.73 | I33: 1400.97 | J33: 1417.18 | K33: 1384.75 | L33: 1354.3 | M33: 21.7409
A34: 25 | B34: AUROPHARMA | C34: 711.85 | D34: 716.30 | E34: 705.60 | F34: 699.35 | G34: 688.65 | H34: 722.55 | I34: 733.25 | J34: 739.50 | K34: 727 | L34: 710.05 | M34: 22.32649
A35: 26 | B35: DMART | C35: 1570.15 | D35: 1568.73 | E35: 1559.47 | F35: 1548.78 | G35: 1539.52 | H35: 1579.42 | I35: 1588.68 | J35: 1599.37 | K35: 1578 | L35: 1558.05 | M35: 2.60792
A36: 27 | B36: AXISBANK | C36: 617.55 | D36: 619.72 | E36: 613.43 | F36: 609.32 | G36: 603.03 | H36: 623.83 | I36: 630.12 | J36: 634.23 | K36: 626 | L36: 615.6 | M36: 123.04812
A37: 28 | B37: BAJAJ-AUTO | C37: 2737 | D37: 2732.53 | E37: 2701.07 | F37: 2665.13 | G37: 2633.67 | H37: 2768.47 | I37: 2799.93 | J37: 2835.87 | K37: 2764 | L37: 2696.6 | M37: 5.58049
A38: 29 | B38: BAJFINANCE | C38: 2587.15 | D38: 2594.63 | E38: 2562.52 | F38: 2537.88 | G38: 2505.77 | H38: 2619.27 | I38: 2651.38 | J38: 2676.02 | K38: 2626.75 | L38: 2570 | M38: 16.26301
A39: 30 | B39: BAJAJFINSV | C39: 6405.05 | D39: 6435.02 | E39: 6320.03 | F39: 6235.02 | G39: 6120.03 | H39: 6520.03 | I39: 6635.02 | J39: 6720.03 | K39: 6550 | L39: 6350 | M39: 2.97717
A40: 31 | B40: BALKRISIND | C40: 902.55 | D40: 905.25 | E40: 893.30 | F40: 884.05 | G40: 872.10 | H40: 914.50 | I40: 926.45 | J40: 935.70 | K40: 917.2 | L40: 896 | M40: 5.36421
A41: 32 | B41: BANKBARODA | C41: 116.4 | D41: 117.20 | E41: 115.00 | F41: 113.60 | G41: 111.40 | H41: 118.60 | I41: 120.80 | J41: 122.20 | K41: 119.4 | L41: 115.8 | M41: 144.3239
A42: 33 | B42: BANKINDIA | C42: 101.8 | D42: 102.18 | E42: 100.67 | F42: 99.53 | G42: 98.02 | H42: 103.32 | I42: 104.83 | J42: 105.97 | K42: 103.7 | L42: 101.05 | M42: 208.01965
A43: 34 | B43: BATAINDIA | C43: 1129.9 | D43: 1122.98 | E43: 1109.02 | F43: 1088.13 | G43: 1074.17 | H43: 1143.87 | I43: 1157.83 | J43: 1178.72 | K43: 1136.95 | L43: 1102.1 | M43: 15.29162
A44: 35 | B44: BERGEPAINT | C44: 328.35 | D44: 328.23 | E44: 325.27 | F44: 322.18 | G44: 319.22 | H44: 331.32 | I44: 334.28 | J44: 337.37 | K44: 331.2 | L44: 325.15 | M44: 4.25546
A45: 36 | B45: BEL | C45: 86.15 | D45: 87.43 | E45: 84.37 | F45: 82.58 | G45: 79.52 | H45: 89.22 | I45: 92.28 | J45: 94.07 | K45: 90.5 | L45: 85.65 | M45: 248.98982
A46: 37 | B46: BHARATFIN | C46: 999.9 | D46: 1001.10 | E46: 993.95 | F46: 988.00 | G46: 980.85 | H46: 1007.05 | I46: 1014.20 | J46: 1020.15 | K46: 1008.25 | L46: 995.15 | M46: 7.96468
A47: 38 | B47: BHARATFORG | C47: 500.2 | D47: 503.95 | E47: 494.40 | F47: 488.60 | G47: 479.05 | H47: 509.75 | I47: 519.30 | J47: 525.10 | K47: 513.5 | L47: 498.15 | M47: 14.64279
A48: 39 | B48: BHEL | C48: 70 | D48: 70.72 | E48: 69.03 | F48: 68.07 | G48: 66.38 | H48: 71.68 | I48: 73.37 | J48: 74.33 | K48: 72.4 | L48: 69.75 | M48: 227.42988
A49: 40 | B49: BPCL | C49: 364.6 | D49: 362.75 | E49: 356.75 | F49: 348.90 | G49: 342.90 | H49: 370.60 | I49: 376.60 | J49: 384.45 | K49: 368.75 | L49: 354.9 | M49: 73.12769
A50: 41 | B50: BHARTIARTL | C50: 316.7 | D50: 318.13 | E50: 312.57 | F50: 308.43 | G50: 302.87 | H50: 322.27 | I50: 327.83 | J50: 331.97 | K50: 323.7 | L50: 314 | M50: 78.99279
A51: 42 | B51: INFRATEL | C51: 266.8 | D51: 265.83 | E51: 262.47 | F51: 258.13 | G51: 254.77 | H51: 270.17 | I51: 273.53 | J51: 277.87 | K51: 269.2 | L51: 261.5 | M51: 12.09883
A52: 43 | B52: BIOCON | C52: 611.45 | D52: 614.17 | E52: 607.33 | F52: 603.22 | G52: 596.38 | H52: 618.28 | I52: 625.12 | J52: 629.23 | K52: 621 | L52: 610.05 | M52: 15.15713
A53: 44 | B53: BOSCHLTD | C53: 19409.15 | D53: 19466.60 | E53: 19194.00 | F53: 18978.85 | G53: 18706.25 | H53: 19681.75 | I53: 19954.35 | J53: 20169.50 | K53: 19739.2 | L53: 19251.45 | M53: 0.30265
A54: 45 | B54: BRITANNIA | C54: 3075.4 | D54: 3087.45 | E54: 3049.95 | F54: 3024.50 | G54: 2987.00 | H54: 3112.90 | I54: 3150.40 | J54: 3175.85 | K54: 3124.95 | L54: 3062 | M54: 2.40314
A55: 46 | B55: CRISIL | C55: 1615.65 | D55: 1621.55 | E55: 1600.65 | F55: 1585.65 | G55: 1564.75 | H55: 1636.55 | I55: 1657.45 | J55: 1672.45 | K55: 1642.45 | L55: 1606.55 | M55: 0.02689
A56: 47 | B56: CADILAHC | C56: 338.8 | D56: 339.93 | E56: 336.87 | F56: 334.93 | G56: 331.87 | H56: 341.87 | I56: 344.93 | J56: 346.87 | K56: 343 | L56: 338 | M56: 5.37841
A57: 48 | B57: CANBK | C57: 272.25 | D57: 272.35 | E57: 270.00 | F57: 267.75 | G57: 265.40 | H57: 274.60 | I57: 276.95 | J57: 279.20 | K57: 274.7 | L57: 270.1 | M57: 50.02091
A58: 49 | B58: CASTROLIND | C58: 153.65 | D58: 153.27 | E58: 151.03 | F58: 148.42 | G58: 146.18 | H58: 155.88 | I58: 158.12 | J58: 160.73 | K58: 155.5 | L58: 150.65 | M58: 23.17548
A59: 50 | B59: CENTRALBK | C59: 36.25 | D59: 36.12 | E59: 34.73 | F59: 33.22 | G59: 31.83 | H59: 37.63 | I59: 39.02 | J59: 40.53 | K59: 37.5 | L59: 34.6 | M59: 69.3106
A60: 51 | B60: CENTURYTEX | C60: 896.6 | D60: 901.53 | E60: 886.32 | F60: 876.03 | G60: 860.82 | H60: 911.82 | I60: 927.03 | J60: 937.32 | K60: 916.75 | L60: 891.25 | M60: 7.13739
A61: 52 | B61: CHOLAFIN | C61: 1228.75 | D61: 1235.73 | E61: 1207.67 | F61: 1186.58 | G61: 1158.52 | H61: 1256.82 | I61: 1284.88 | J61: 1305.97 | K61: 1263.8 | L61: 1214.65 | M61: 4.53787
A62: 53 | B62: CIPLA | C62: 517.9 | D62: 517.63 | E62: 514.27 | F62: 510.63 | G62: 507.27 | H62: 521.27 | I62: 524.63 | J62: 528.27 | K62: 521 | L62: 514 | M62: 13.51636
A63: 54 | B63: COALINDIA | C63: 250.2 | D63: 249.35 | E63: 244.70 | F63: 239.20 | G63: 234.55 | H63: 254.85 | I63: 259.50 | J63: 265.00 | K63: 254 | L63: 243.85 | M63: 260.11475
A64: 55 | B64: COLPAL | C64: 1300.35 | D64: 1305.77 | E64: 1287.58 | F64: 1274.82 | G64: 1256.63 | H64: 1318.53 | I64: 1336.72 | J64: 1349.48 | K64: 1323.95 | L64: 1293 | M64: 8.90033
A65: 56 | B65: CONCOR | C65: 666.45 | D65: 668.82 | E65: 655.73 | F65: 645.02 | G65: 631.93 | H65: 679.53 | I65: 692.62 | J65: 703.33 | K65: 681.9 | L65: 658.1 | M65: 48.63923
A66: 57 | B66: COROMANDEL | C66: 445.55 | D66: 445.60 | E66: 443.00 | F66: 440.45 | G66: 437.85 | H66: 448.15 | I66: 450.75 | J66: 453.30 | K66: 448.2 | L66: 443.05 | M66: 0.50297
A67: 58 | B67: CROMPTON | C67: 225 | D67: 226.08 | E67: 222.97 | F67: 220.93 | G67: 217.82 | H67: 228.12 | I67: 231.23 | J67: 233.27 | K67: 229.2 | L67: 224.05 | M67: 1.67895
A68: 59 | B68: CUMMINSIND | C68: 833.35 | D68: 828.18 | E68: 808.37 | F68: 783.38 | G68: 763.57 | H68: 853.17 | I68: 872.98 | J68: 897.97 | K68: 848 | L68: 803.2 | M68: 10.33735
A69: 60 | B69: DLF | C69: 175.65 | D69: 177.32 | E69: 173.23 | F69: 170.82 | G69: 166.73 | H69: 179.73 | I69: 183.82 | J69: 186.23 | K69: 181.4 | L69: 174.9 | M69: 61.83377
A70: 61 | B70: DABUR | C70: 429.95 | D70: 428.10 | E70: 424.20 | F70: 418.45 | G70: 414.55 | H70: 433.85 | I70: 437.75 | J70: 443.50 | K70: 432 | L70: 422.35 | M70: 33.86941
A71: 62 | B71: DHFL | C71: 239.65 | D71: 240.17 | E71: 236.98 | F71: 234.32 | G71: 231.13 | H71: 242.83 | I71: 246.02 | J71: 248.68 | K71: 243.35 | L71: 237.5 | M71: 101.26105
A72: 63 | B72: DISHTV | C72: 37.55 | D72: 37.38 | E72: 36.87 | F72: 36.18 | G72: 35.67 | H72: 38.07 | I72: 38.58 | J72: 39.27 | K72: 37.9 | L72: 36.7 | M72: 133.33486
A73: 64 | B73: DIVISLAB | C73: 1471.15 | D73: 1466.43 | E73: 1452.87 | F73: 1434.58 | G73: 1421.02 | H73: 1484.72 | I73: 1498.28 | J73: 1516.57 | K73: 1480 | L73: 1448.15 | M73: 4.34791
A74: 65 | B74: LALPATHLAB | C74: 929.75 | D74: 935.52 | E74: 919.88 | F74: 910.02 | G74: 894.38 | H74: 945.38 | I74: 961.02 | J74: 970.88 | K74: 951.15 | L74: 925.65 | M74: 0.28745
A75: 66 | B75: DRREDDY | C75: 2587.45 | D75: 2604.60 | E75: 2564.20 | F75: 2540.95 | G75: 2500.55 | H75: 2627.85 | I75: 2668.25 | J75: 2691.50 | K75: 2645 | L75: 2581.35 | M75: 5.87578
A76: 67 | B76: EDELWEISS | C76: 181.7 | D76: 184.27 | E76: 178.68 | F76: 175.67 | G76: 170.08 | H76: 187.28 | I76: 192.87 | J76: 195.88 | K76: 189.85 | L76: 181.25 | M76: 9.12639
A77: 68 | B77: EICHERMOT | C77: 22994.5 | D77: 23088.47 | E77: 22793.93 | F77: 22593.37 | G77: 22298.83 | H77: 23289.03 | I77: 23583.57 | J77: 23784.13 | K77: 23383 | L77: 22887.9 | M77: 0.47478
A78: 69 | B78: EMAMILTD | C78: 405.25 | D78: 405.72 | E78: 401.58 | F78: 397.92 | G78: 393.78 | H78: 409.38 | I78: 413.52 | J78: 417.18 | K78: 409.85 | L78: 402.05 | M78: 1.40756
A79: 70 | B79: ENDURANCE | C79: 1176.5 | D79: 1175.50 | E79: 1166.10 | F79: 1155.70 | G79: 1146.30 | H79: 1185.90 | I79: 1195.30 | J79: 1205.70 | K79: 1184.9 | L79: 1165.1 | M79: 0.11818
A80: 71 | B80: ENGINERSIN | C80: 126.25 | D80: 125.68 | E80: 123.37 | F80: 120.48 | G80: 118.17 | H80: 128.57 | I80: 130.88 | J80: 133.77 | K80: 128 | L80: 122.8 | M80: 51.81159
A81: 72 | B81: EXIDEIND | C81: 268.2 | D81: 265.95 | E81: 262.40 | F81: 256.60 | G81: 253.05 | H81: 271.75 | I81: 275.30 | J81: 281.10 | K81: 269.5 | L81: 260.15 | M81: 12.45606
A82: 73 | B82: FEDERALBNK | C82: 94.1 | D82: 93.17 | E82: 91.93 | F82: 89.77 | G82: 88.53 | H82: 95.33 | I82: 96.57 | J82: 98.73 | K82: 94.4 | L82: 91 | M82: 146.86963
A83: 74 | B83: GAIL | C83: 356.45 | D83: 357.42 | E83: 351.33 | F83: 346.22 | G83: 340.13 | H83: 362.53 | I83: 368.62 | J83: 373.73 | K83: 363.5 | L83: 352.3 | M83: 182.18808
A84: 75 | B84: GMRINFRA | C84: 15.95 | D84: 16.12 | E84: 15.68 | F84: 15.42 | G84: 14.98 | H84: 16.38 | I84: 16.82 | J84: 17.08 | K84: 16.55 | L84: 15.85 | M84: 157.58928
A85: 76 | B85: GSKCONS | C85: 7605.05 | D85: 7588.37 | E85: 7531.73 | F85: 7458.42 | G85: 7401.78 | H85: 7661.68 | I85: 7718.32 | J85: 7791.63 | K85: 7645 | L85: 7515.05 | M85: 0.1969
A86: 77 | B86: GLAXO | C86: 1505.65 | D86: 1497.55 | E86: 1480.10 | F86: 1454.55 | G86: 1437.10 | H86: 1523.10 | I86: 1540.55 | J86: 1566.10 | K86: 1515 | L86: 1472 | M86: 0.15565
A87: 78 | B87: GLENMARK | C87: 683.1 | D87: 677.92 | E87: 667.83 | F87: 652.57 | G87: 642.48 | H87: 693.18 | I87: 703.27 | J87: 718.53 | K87: 688 | L87: 662.65 | M87: 10.26004
A88: 79 | B88: GODREJCP | C88: 815.35 | D88: 810.37 | E88: 802.23 | F88: 789.12 | G88: 780.98 | H88: 823.48 | I88: 831.62 | J88: 844.73 | K88: 818.5 | L88: 797.25 | M88: 8.42644
A89: 80 | B89: GODREJIND | C89: 531.5 | D89: 526.90 | E89: 519.70 | F89: 507.90 | G89: 500.70 | H89: 538.70 | I89: 545.90 | J89: 557.70 | K89: 534.1 | L89: 515.1 | M89: 3.94751
A90: 81 | B90: GRUH | C90: 312.05 | D90: 312.98 | E90: 307.72 | F90: 303.38 | G90: 298.12 | H90: 317.32 | I90: 322.58 | J90: 326.92 | K90: 318.25 | L90: 308.65 | M90: 2.86477
A91: 82 | B91: GPPL | C91: 101.5 | D91: 102.37 | E91: 100.23 | F91: 98.97 | G91: 96.83 | H91: 103.63 | I91: 105.77 | J91: 107.03 | K91: 104.5 | L91: 101.1 | M91: 0.55809
A92: 83 | B92: GSPL | C92: 176.35 | D92: 175.50 | E92: 173.70 | F92: 171.05 | G92: 169.25 | H92: 178.15 | I92: 179.95 | J92: 182.60 | K92: 177.3 | L92: 172.85 | M92: 1.59943
A93: 84 | B93: HCLTECH | C93: 948.8 | D93: 950.48 | E93: 940.97 | F93: 933.13 | G93: 923.62 | H93: 958.32 | I93: 967.83 | J93: 975.67 | K93: 960 | L93: 942.65 | M93: 25.48404
A94: 85 | B94: HDFCBANK | C94: 2105.05 | D94: 2113.90 | E94: 2089.60 | F94: 2074.15 | G94: 2049.85 | H94: 2129.35 | I94: 2153.65 | J94: 2169.10 | K94: 2138.2 | L94: 2098.45 | M94: 29.09967
A95: 86 | B95: HAVELLS | C95: 684.85 | D95: 685.13 | E95: 677.72 | F95: 670.58 | G95: 663.17 | H95: 692.27 | I95: 699.68 | J95: 706.82 | K95: 692.55 | L95: 678 | M95: 14.82409
A96: 87 | B96: HEROMOTOCO | C96: 3128.8 | D96: 3151.15 | E96: 3092.30 | F96: 3055.80 | G96: 2996.95 | H96: 3187.65 | I96: 3246.50 | J96: 3283.00 | K96: 3210 | L96: 3114.65 | M96: 3.57087
A97: 88 | B97: HEXAWARE | C97: 325.1 | D97: 323.12 | E97: 318.78 | F97: 312.47 | G97: 308.13 | H97: 329.43 | I97: 333.77 | J97: 340.08 | K97: 327.45 | L97: 316.8 | M97: 11.82016
A98: 89 | B98: HINDALCO | C98: 220.6 | D98: 221.37 | E98: 218.83 | F98: 217.07 | G98: 214.53 | H98: 223.13 | I98: 225.67 | J98: 227.43 | K98: 223.9 | L98: 219.6 | M98: 79.47144
A99: 90 | B99: HINDPETRO | C99: 252.7 | D99: 249.33 | E99: 244.92 | F99: 237.13 | G99: 232.72 | H99: 257.12 | I99: 261.53 | J99: 269.32 | K99: 253.75 | L99: 241.55 | M99: 185.1132
A100: 91 | B100: HINDUNILVR | C100: 1814.9 | D100: 1810.35 | E100: 1797.70 | F100: 1780.50 | G100: 1767.85 | H100: 1827.55 | I100: 1840.20 | J100: 1857.40 | K100: 1823 | L100: 1793.15 | M100: 15.16851
A101: 92 | B101: HINDZINC | C101: 275.15 | D101: 273.98 | E101: 270.77 | F101: 266.38 | G101: 263.17 | H101: 278.37 | I101: 281.58 | J101: 285.97 | K101: 277.2 | L101: 269.6 | M101: 22.22952
A102: 93 | B102: HUDCO | C102: 43.05 | D102: 43.35 | E102: 42.60 | F102: 42.15 | G102: 41.40 | H102: 43.80 | I102: 44.55 | J102: 45.00 | K102: 44.1 | L102: 42.9 | M102: 3.66036
A103: 94 | B103: HDFC | C103: 1948.85 | D103: 1944.62 | E103: 1934.23 | F103: 1919.62 | G103: 1909.23 | H103: 1959.23 | I103: 1969.62 | J103: 1984.23 | K103: 1955 | L103: 1930 | M103: 16.45443
A104: 95 | B104: ITC | C104: 280.75 | D104: 279.90 | E104: 278.15 | F104: 275.55 | G104: 273.80 | H104: 282.50 | I104: 284.25 | J104: 286.85 | K104: 281.65 | L104: 277.3 | M104: 114.41104
A105: 96 | B105: ICICIBANK | C105: 355.65 | D105: 357.10 | E105: 353.45 | F105: 351.25 | G105: 347.60 | H105: 359.30 | I105: 362.95 | J105: 365.15 | K105: 360.75 | L105: 354.9 | M105: 101.22458
A106: 97 | B106: ICICIPRULI | C106: 322.85 | D106: 323.72 | E106: 319.88 | F106: 316.92 | G106: 313.08 | H106: 326.68 | I106: 330.52 | J106: 333.48 | K106: 327.55 | L106: 320.75 | M106: 12.22379
A107: 98 | B107: IDBI | C107: 61.15 | D107: 61.20 | E107: 61.00 | F107: 60.85 | G107: 60.65 | H107: 61.35 | I107: 61.55 | J107: 61.70 | K107: 61.4 | L107: 61.05 | M107: 19.09708
A108: 99 | B108: IDFCBANK | C108: 42.75 | D108: 42.88 | E108: 42.17 | F108: 41.58 | G108: 40.87 | H108: 43.47 | I108: 44.18 | J108: 44.77 | K108: 43.6 | L108: 42.3 | M108: 243.44889
A109: 100 | B109: IDFC | C109: 42.85 | D109: 43.13 | E109: 42.22 | F109: 41.58 | G109: 40.67 | H109: 43.77 | I109: 44.68 | J109: 45.32 | K109: 44.05 | L109: 42.5 | M109: 41.07116
A110: 101 | B110: IRB | C110: 158.5 | D110: 159.87 | E110: 155.73 | F110: 152.97 | G110: 148.83 | H110: 162.63 | I110: 166.77 | J110: 169.53 | K110: 164 | L110: 157.1 | M110: 28.17174
A111: 102 | B111: IDEA | C111: 37.15 | D111: 37.37 | E111: 36.73 | F111: 36.32 | G111: 35.68 | H111: 37.78 | I111: 38.42 | J111: 38.83 | K111: 38 | L111: 36.95 | M111: 148.22902
A112: 103 | B112: IBULHSGFIN | C112: 845.1 | D112: 844.05 | E112: 831.15 | F112: 817.20 | G112: 804.30 | H112: 858.00 | I112: 870.90 | J112: 884.85 | K112: 856.95 | L112: 830.1 | M112: 114.73837
A113: 104 | B113: INDIANB | C113: 239.15 | D113: 241.68 | E113: 235.47 | F113: 231.78 | G113: 225.57 | H113: 245.37 | I113: 251.58 | J113: 255.27 | K113: 247.9 | L113: 238 | M113: 11.50023
A114: 105 | B114: INDHOTEL | C114: 147.6 | D114: 148.30 | E114: 145.65 | F114: 143.70 | G114: 141.05 | H114: 150.25 | I114: 152.90 | J114: 154.85 | K114: 150.95 | L114: 146.35 | M114: 21.62683
A115: 106 | B115: IOC | C115: 133.9 | D115: 133.37 | E115: 131.53 | F115: 129.17 | G115: 127.33 | H115: 135.73 | I115: 137.57 | J115: 139.93 | K115: 135.2 | L115: 131 | M115: 467.04031
A116: 107 | B116: IGL | C116: 265.05 | D116: 264.75 | E116: 261.30 | F116: 257.55 | G116: 254.10 | H116: 268.50 | I116: 271.95 | J116: 275.70 | K116: 268.2 | L116: 261 | M116: 12.89864
A117: 108 | B117: INDUSINDBK | C117: 1564 | D117: 1572.38 | E117: 1551.32 | F117: 1538.63 | G117: 1517.57 | H117: 1585.07 | I117: 1606.13 | J117: 1618.82 | K117: 1593.45 | L117: 1559.7 | M117: 18.80388
A118: 109 | B118: NAUKRI | C118: 1485.65 | D118: 1493.98 | E118: 1466.92 | F118: 1448.18 | G118: 1421.12 | H118: 1512.72 | I118: 1539.78 | J118: 1558.52 | K118: 1521.05 | L118: 1475.25 | M118: 0.94754
A119: 110 | B119: INFY | C119: 656.8 | D119: 656.35 | E119: 649.45 | F119: 642.10 | G119: 635.20 | H119: 663.70 | I119: 670.60 | J119: 677.95 | K119: 663.25 | L119: 649 | M119: 153.33902
A120: 111 | B120: INDIGO | C120: 1163.8 | D120: 1159.82 | E120: 1143.88 | F120: 1123.97 | G120: 1108.03 | H120: 1179.73 | I120: 1195.67 | J120: 1215.58 | K120: 1175.75 | L120: 1139.9 | M120: 10.09596
A121: 112 | B121: IPCALAB | C121: 783.8 | D121: 784.63 | E121: 779.27 | F121: 774.73 | G121: 769.37 | H121: 789.17 | I121: 794.53 | J121: 799.07 | K121: 790 | L121: 780.1 | M121: 0.39004
A122: 113 | B122: JSWENERGY | C122: 66.6 | D122: 67.18 | E122: 65.57 | F122: 64.53 | G122: 62.92 | H122: 68.22 | I122: 69.83 | J122: 70.87 | K122: 68.8 | L122: 66.15 | M122: 12.71332
A123: 114 | B123: JSWSTEEL | C123: 292.95 | D123: 295.23 | E123: 289.82 | F123: 286.68 | G123: 281.27 | H123: 298.37 | I123: 303.78 | J123: 306.92 | K123: 300.65 | L123: 292.1 | M123: 51.60751
A124: 115 | B124: JINDALSTEL | C124: 158.5 | D124: 160.38 | E124: 155.77 | F124: 153.03 | G124: 148.42 | H124: 163.12 | I124: 167.73 | J124: 170.47 | K124: 165 | L124: 157.65 | M124: 94.27164
A125: 116 | B125: JUBLFOOD | C125: 1233.4 | D125: 1234.93 | E125: 1213.97 | F125: 1194.53 | G125: 1173.57 | H125: 1254.37 | I125: 1275.33 | J125: 1294.77 | K125: 1255.9 | L125: 1215.5 | M125: 30.99448
A126: 117 | B126: JUBILANT | C126: 707.65 | D126: 710.55 | E126: 701.80 | F126: 695.95 | G126: 687.20 | H126: 716.40 | I126: 725.15 | J126: 731.00 | K126: 719.3 | L126: 704.7 | M126: 1.32196
A127: 118 | B127: KARURVYSYA | C127: 86.15 | D127: 86.15 | E127: 85.50 | F127: 84.85 | G127: 84.20 | H127: 86.80 | I127: 87.45 | J127: 88.10 | K127: 86.8 | L127: 85.5 | M127: 8.05609
A128: 119 | B128: KOTAKBANK | C128: 1240.25 | D128: 1244.75 | E128: 1230.85 | F128: 1221.45 | G128: 1207.55 | H128: 1254.15 | I128: 1268.05 | J128: 1277.45 | K128: 1258.65 | L128: 1235.35 | M128: 26.53738
A129: 120 | B129: L&TFH | C129: 154.25 | D129: 154.78 | E129: 152.67 | F129: 151.08 | G129: 148.97 | H129: 156.37 | I129: 158.48 | J129: 160.07 | K129: 156.9 | L129: 153.2 | M129: 64.70996
A130: 121 | B130: LICHSGFIN | C130: 478.2 | D130: 482.38 | E130: 472.77 | F130: 467.33 | G130: 457.72 | H130: 487.82 | I130: 497.43 | J130: 502.87 | K130: 492 | L130: 476.95 | M130: 19.02919
A131: 122 | B131: LT | C131: 1425.05 | D131: 1422.63 | E131: 1410.92 | F131: 1396.78 | G131: 1385.07 | H131: 1436.77 | I131: 1448.48 | J131: 1462.62 | K131: 1434.35 | L131: 1408.5 | M131: 18.72745
A132: 123 | B132: LUPIN | C132: 838.7 | D132: 836.90 | E132: 831.90 | F132: 825.10 | G132: 820.10 | H132: 843.70 | I132: 848.70 | J132: 855.50 | K132: 841.9 | L132: 830.1 | M132: 12.17908
A133: 124 | B133: MRF | C133: 66686.35 | D133: 66970.45 | E133: 66241.90 | F133: 65797.45 | G133: 65068.90 | H133: 67414.90 | I133: 68143.45 | J133: 68587.90 | K133: 67699 | L133: 66526 | M133: 0.08775
A134: 125 | B134: MGL | C134: 895.1 | D134: 889.85 | E134: 877.35 | F134: 859.60 | G134: 847.10 | H134: 907.60 | I134: 920.10 | J134: 937.85 | K134: 902.35 | L134: 872.1 | M134: 3.92491
A135: 126 | B135: M&MFIN | C135: 463.25 | D135: 468.85 | E135: 453.70 | F135: 444.15 | G135: 429.00 | H135: 478.40 | I135: 493.55 | J135: 503.10 | K135: 484 | L135: 459.3 | M135: 33.57073
A136: 127 | B136: M&M | C136: 795.65 | D136: 795.25 | E136: 788.50 | F136: 781.35 | G136: 774.60 | H136: 802.40 | I136: 809.15 | J136: 816.30 | K136: 802 | L136: 788.1 | M136: 31.5613
A137: 128 | B137: MANAPPURAM | C137: 89.95 | D137: 90.65 | E137: 88.90 | F137: 87.85 | G137: 86.10 | H137: 91.70 | I137: 93.45 | J137: 94.50 | K137: 92.4 | L137: 89.6 | M137: 22.12844
A138: 129 | B138: MRPL | C138: 74.95 | D138: 74.97 | E138: 74.08 | F138: 73.22 | G138: 72.33 | H138: 75.83 | I138: 76.72 | J138: 77.58 | K138: 75.85 | L138: 74.1 | M138: 20.149
A139: 130 | B139: MARICO | C139: 376.85 | D139: 374.85 | E139: 370.70 | F139: 364.55 | G139: 360.40 | H139: 381.00 | I139: 385.15 | J139: 391.30 | K139: 379 | L139: 368.7 | M139: 18.41056
A140: 131 | B140: MARUTI | C140: 7499.95 | D140: 7549.37 | E140: 7429.88 | F140: 7359.82 | G140: 7240.33 | H140: 7619.43 | I140: 7738.92 | J140: 7808.98 | K140: 7668.85 | L140: 7479.3 | M140: 7.04523
A141: 132 | B141: MFSL | C141: 436.8 | D141: 440.87 | E141: 429.73 | F141: 422.67 | G141: 411.53 | H141: 447.93 | I141: 459.07 | J141: 466.13 | K141: 452 | L141: 433.8 | M141: 3.78724
A142: 133 | B142: MINDTREE | C142: 861.85 | D142: 862.58 | E142: 852.27 | F142: 842.68 | G142: 832.37 | H142: 872.17 | I142: 882.48 | J142: 892.07 | K142: 872.9 | L142: 853 | M142: 12.51109
A143: 134 | B143: MOTHERSUMI | C143: 162.45 | D143: 163.20 | E143: 160.70 | F143: 158.95 | G143: 156.45 | H143: 164.95 | I143: 167.45 | J143: 169.20 | K143: 165.7 | L143: 161.45 | M143: 65.9267
A144: 135 | B144: MPHASIS | C144: 982.25 | D144: 986.92 | E144: 964.33 | F144: 946.42 | G144: 923.83 | H144: 1004.83 | I144: 1027.42 | J144: 1045.33 | K144: 1009.5 | L144: 969 | M144: 6.64879
A145: 136 | B145: MUTHOOTFIN | C145: 493.1 | D145: 496.48 | E145: 488.07 | F145: 483.03 | G145: 474.62 | H145: 501.52 | I145: 509.93 | J145: 514.97 | K145: 504.9 | L145: 491.45 | M145: 8.95299
A146: 137 | B146: NATCOPHARM | C146: 685.05 | D146: 683.03 | E146: 674.07 | F146: 663.08 | G146: 654.12 | H146: 694.02 | I146: 702.98 | J146: 713.97 | K146: 692 | L146: 672.05 | M146: 1.35886
A147: 138 | B147: NBCC | C147: 53.9 | D147: 54.48 | E147: 53.07 | F147: 52.23 | G147: 50.82 | H147: 55.32 | I147: 56.73 | J147: 57.57 | K147: 55.9 | L147: 53.65 | M147: 215.27626
A148: 139 | B148: NHPC | C148: 26.2 | D148: 26.20 | E148: 25.95 | F148: 25.70 | G148: 25.45 | H148: 26.45 | I148: 26.70 | J148: 26.95 | K148: 26.45 | L148: 25.95 | M148: 61.53436
A149: 140 | B149: NMDC | C149: 92.3 | D149: 93.32 | E149: 90.78 | F149: 89.27 | G149: 86.73 | H149: 94.83 | I149: 97.37 | J149: 98.88 | K149: 95.85 | L149: 91.8 | M149: 155.72583
A150: 141 | B150: NTPC | C150: 148.3 | D150: 147.42 | E150: 145.08 | F150: 141.87 | G150: 139.53 | H150: 150.63 | I150: 152.97 | J150: 156.18 | K150: 149.75 | L150: 144.2 | M150: 274.21548
A151: 142 | B151: NATIONALUM | C151: 62.7 | D151: 63.05 | E151: 61.85 | F151: 61.00 | G151: 59.80 | H151: 63.90 | I151: 65.10 | J151: 65.95 | K151: 64.25 | L151: 62.2 | M151: 182.3755
A152: 143 | B152: OBEROIRLTY | C152: 450.85 | D152: 452.12 | E152: 444.83 | F152: 438.82 | G152: 431.53 | H152: 458.13 | I152: 465.42 | J152: 471.43 | K152: 459.4 | L152: 446.1 | M152: 1.64909
A153: 144 | B153: ONGC | C153: 149.7 | D153: 149.03 | E153: 146.67 | F153: 143.63 | G153: 141.27 | H153: 152.07 | I153: 154.43 | J153: 157.47 | K153: 151.4 | L153: 146 | M153: 443.56763
A154: 145 | B154: OIL | C154: 170.75 | D154: 171.60 | E154: 167.70 | F154: 164.65 | G154: 160.75 | H154: 174.65 | I154: 178.55 | J154: 181.60 | K154: 175.5 | L154: 168.55 | M154: 51.71771
A155: 146 | B155: OFSS | C155: 3663.55 | D155: 3638.52 | E155: 3595.03 | F155: 3526.52 | G155: 3483.03 | H155: 3707.03 | I155: 3750.52 | J155: 3819.03 | K155: 3682 | L155: 3570 | M155: 0.39169
A156: 147 | B156: PCJEWELLER | C156: 85.15 | D156: 84.42 | E156: 82.48 | F156: 79.82 | G156: 77.88 | H156: 87.08 | I156: 89.02 | J156: 91.68 | K156: 86.35 | L156: 81.75 | M156: 261.57963
A157: 148 | B157: PIIND | C157: 854.6 | D157: 855.72 | E157: 847.28 | F157: 839.97 | G157: 831.53 | H157: 863.03 | I157: 871.47 | J157: 878.78 | K157: 864.15 | L157: 848.4 | M157: 0.8397
A158: 149 | B158: PNBHOUSING | C158: 916.3 | D158: 925.18 | E158: 902.37 | F158: 888.43 | G158: 865.62 | H158: 939.12 | I158: 961.93 | J158: 975.87 | K158: 948 | L158: 911.25 | M158: 1.03382
A159: 150 | B159: PAGEIND | C159: 23848.3 | D159: 23918.27 | E159: 23610.28 | F159: 23372.27 | G159: 23064.28 | H159: 24156.28 | I159: 24464.27 | J159: 24702.28 | K159: 24226.25 | L159: 23680.25 | M159: 0.3898
A160: 151 | B160: PETRONET | C160: 222.5 | D160: 223.08 | E160: 221.02 | F160: 219.53 | G160: 217.47 | H160: 224.57 | I160: 226.63 | J160: 228.12 | K160: 225.15 | L160: 221.6 | M160: 30.97399
A161: 152 | B161: PIDILITIND | C161: 1113.7 | D161: 1112.65 | E161: 1102.15 | F161: 1090.60 | G161: 1080.10 | H161: 1124.20 | I161: 1134.70 | J161: 1146.25 | K161: 1123.15 | L161: 1101.1 | M161: 7.04527
A162: 153 | B162: PEL | C162: 2290.9 | D162: 2303.28 | E162: 2258.62 | F162: 2226.33 | G162: 2181.67 | H162: 2335.57 | I162: 2380.23 | J162: 2412.52 | K162: 2347.95 | L162: 2271 | M162: 5.14861
A163: 154 | B163: PFC | C163: 100.6 | D163: 101.08 | E163: 98.72 | F163: 96.83 | G163: 94.47 | H163: 102.97 | I163: 105.33 | J163: 107.22 | K163: 103.45 | L163: 99.2 | M163: 281.27479
A164: 155 | B164: POWERGRID | C164: 196.55 | D164: 196.52 | E164: 193.53 | F164: 190.52 | G164: 187.53 | H164: 199.53 | I164: 202.52 | J164: 205.53 | K164: 199.5 | L164: 193.5 | M164: 261.48646
A165: 156 | B165: PRESTIGE | C165: 207.7 | D165: 207.62 | E165: 205.33 | F165: 202.97 | G165: 200.68 | H165: 209.98 | I165: 212.27 | J165: 214.63 | K165: 209.9 | L165: 205.25 | M165: 0.94472
A166: 157 | B166: PGHH | C166: 9793.15 | D166: 9766.07 | E166: 9732.13 | F166: 9671.12 | G166: 9637.18 | H166: 9827.08 | I166: 9861.02 | J166: 9922.03 | K166: 9800 | L166: 9705.05 | M166: 0.03072
A167: 158 | B167: PNB | C167: 77.95 | D167: 78.03 | E167: 77.22 | F167: 76.48 | G167: 75.67 | H167: 78.77 | I167: 79.58 | J167: 80.32 | K167: 78.85 | L167: 77.3 | M167: 247.09123
A168: 159 | B168: RBLBANK | C168: 576.9 | D168: 572.03 | E168: 564.07 | F168: 551.23 | G168: 543.27 | H168: 584.87 | I168: 592.83 | J168: 605.67 | K168: 580 | L168: 559.2 | M168: 22.50025
A169: 160 | B169: RAJESHEXPO | C169: 572.7 | D169: 573.73 | E169: 568.52 | F169: 564.33 | G169: 559.12 | H169: 577.92 | I169: 583.13 | J169: 587.32 | K169: 578.95 | L169: 569.55 | M169: 4.08291
A170: 161 | B170: RELCAPITAL | C170: 214.7 | D170: 214.00 | E170: 211.35 | F170: 208.00 | G170: 205.35 | H170: 217.35 | I170: 220.00 | J170: 223.35 | K170: 216.65 | L170: 210.65 | M170: 55.076
A171: 162 | B171: RCOM | C171: 14.5 | D171: 14.43 | E171: 14.22 | F171: 13.93 | G171: 13.72 | H171: 14.72 | I171: 14.93 | J171: 15.22 | K171: 14.65 | L171: 14.15 | M171: 690.81337
A172: 163 | B172: RELIANCE | C172: 1120.2 | D172: 1117.07 | E172: 1107.13 | F172: 1094.07 | G172: 1084.13 | H172: 1130.13 | I172: 1140.07 | J172: 1153.13 | K172: 1127 | L172: 1104 | M172: 124.78
A173: 164 | B173: RELINFRA | C173: 302.8 | D173: 304.08 | E173: 300.27 | F173: 297.73 | G173: 293.92 | H173: 306.62 | I173: 310.43 | J173: 312.97 | K173: 307.9 | L173: 301.55 | M173: 25.05387
A174: 165 | B174: RPOWER | C174: 28.45 | D174: 28.35 | E174: 27.80 | F174: 27.15 | G174: 26.60 | H174: 29.00 | I174: 29.55 | J174: 30.20 | K174: 28.9 | L174: 27.7 | M174: 133.82122
A175: 166 | B175: RECLTD | C175: 116.2 | D175: 116.50 | E175: 113.85 | F175: 111.50 | G175: 108.85 | H175: 118.85 | I175: 121.50 | J175: 123.85 | K175: 119.15 | L175: 114.15 | M175: 347.3241
A176: 167 | B176: SRF | C176: 2000.65 | D176: 1996.23 | E176: 1979.97 | F176: 1959.28 | G176: 1943.02 | H176: 2016.92 | I176: 2033.18 | J176: 2053.87 | K176: 2012.5 | L176: 1975.55 | M176: 9.25797
A177: 168 | B177: SHREECEM | C177: 16947.4 | D177: 17048.80 | E177: 16698.60 | F177: 16449.80 | G177: 16099.60 | H177: 17297.60 | I177: 17647.80 | J177: 17896.60 | K177: 17399 | L177: 16800 | M177: 0.69346
A178: 169 | B178: SRTRANSFIN | C178: 1226.7 | D178: 1230.28 | E178: 1211.92 | F178: 1197.13 | G178: 1178.77 | H178: 1245.07 | I178: 1263.43 | J178: 1278.22 | K178: 1248.65 | L178: 1215.5 | M178: 8.26888
A179: 170 | B179: SIEMENS | C179: 1032 | D179: 1034.00 | E179: 1019.00 | F179: 1006.00 | G179: 991.00 | H179: 1047.00 | I179: 1062.00 | J179: 1075.00 | K179: 1049 | L179: 1021 | M179: 9.28648
A180: 171 | B180: SBIN | C180: 292.15 | D180: 293.75 | E180: 289.90 | F180: 287.65 | G180: 283.80 | H180: 296.00 | I180: 299.85 | J180: 302.10 | K180: 297.6 | L180: 291.5 | M180: 153.04564
A181: 172 | B181: SAIL | C181: 51.5 | D181: 51.97 | E181: 50.68 | F181: 49.87 | G181: 48.58 | H181: 52.78 | I181: 54.07 | J181: 54.88 | K181: 53.25 | L181: 51.15 | M181: 380.66993
A182: 173 | B182: SPARC | C182: 194.1 | D182: 196.93 | E182: 189.77 | F182: 185.43 | G182: 178.27 | H182: 201.27 | I182: 208.43 | J182: 212.77 | K182: 204.1 | L182: 192.6 | M182: 4.8524
A183: 174 | B183: SUNPHARMA | C183: 411.15 | D183: 414.82 | E183: 406.33 | F183: 401.52 | G183: 393.03 | H183: 419.63 | I183: 428.12 | J183: 432.93 | K183: 423.3 | L183: 410 | M183: 128.39897
A184: 175 | B184: SUNTV | C184: 586.2 | D184: 584.93 | E184: 578.52 | F184: 570.83 | G184: 564.42 | H184: 592.62 | I184: 599.03 | J184: 606.72 | K184: 591.35 | L184: 577.25 | M184: 14.79694
A185: 176 | B185: SUZLON | C185: 5.45 | D185: 5.45 | E185: 5.40 | F185: 5.35 | G185: 5.30 | H185: 5.50 | I185: 5.55 | J185: 5.60 | K185: 5.5 | L185: 5.4 | M185: 237.10659
A186: 177 | B186: SYNDIBANK | C186: 38.05 | D186: 38.18 | E186: 37.62 | F186: 37.18 | G186: 36.62 | H186: 38.62 | I186: 39.18 | J186: 39.62 | K186: 38.75 | L186: 37.75 | M186: 72.92225
A187: 178 | B187: SYNGENE | C187: 565.65 | D187: 563.22 | E187: 557.43 | F187: 549.22 | G187: 543.43 | H187: 571.43 | I187: 577.22 | J187: 585.43 | K187: 569 | L187: 555 | M187: 0.5516
A188: 179 | B188: TV18BRDCST | C188: 37.45 | D188: 37.22 | E188: 36.53 | F188: 35.62 | G188: 34.93 | H188: 38.13 | I188: 38.82 | J188: 39.73 | K188: 37.9 | L188: 36.3 | M188: 64.25816
A189: 180 | B189: TVSMOTOR | C189: 549.95 | D189: 554.68 | E189: 541.97 | F189: 533.98 | G189: 521.27 | H189: 562.67 | I189: 575.38 | J189: 583.37 | K189: 567.4 | L189: 546.7 | M189: 25.9776
A190: 181 | B190: TATACHEM | C190: 701.85 | D190: 703.62 | E190: 696.28 | F190: 690.72 | G190: 683.38 | H190: 709.18 | I190: 716.52 | J190: 722.08 | K190: 710.95 | L190: 698.05 | M190: 8.4168
A191: 182 | B191: TATACOMM | C191: 520.75 | D191: 518.50 | E191: 508.05 | F191: 495.35 | G191: 484.90 | H191: 531.20 | I191: 541.65 | J191: 554.35 | K191: 528.95 | L191: 505.8 | M191: 7.56078
A192: 183 | B192: TCS | C192: 1908.95 | D192: 1907.58 | E192: 1873.47 | F192: 1837.98 | G192: 1803.87 | H192: 1943.07 | I192: 1977.18 | J192: 2012.67 | K192: 1941.7 | L192: 1872.1 | M192: 49.68201
A193: 184 | B193: TATAGLOBAL | C193: 220.05 | D193: 220.05 | E193: 215.20 | F193: 210.35 | G193: 205.50 | H193: 224.90 | I193: 229.75 | J193: 234.60 | K193: 224.9 | L193: 215.2 | M193: 95.09683
A194: 185 | B194: TATAMTRDVR | C194: 91.1 | D194: 92.22 | E194: 89.43 | F194: 87.77 | G194: 84.98 | H194: 93.88 | I194: 96.67 | J194: 98.33 | K194: 95 | L194: 90.55 | M194: 27.19079
A195: 186 | B195: TATAMOTORS | C195: 168.25 | D195: 169.78 | E195: 166.17 | F195: 164.08 | G195: 160.47 | H195: 171.87 | I195: 175.48 | J195: 177.57 | K195: 173.4 | L195: 167.7 | M195: 152.31581
A196: 187 | B196: TATAPOWER | C196: 77 | D196: 76.73 | E196: 75.77 | F196: 74.53 | G196: 73.57 | H196: 77.97 | I196: 78.93 | J196: 80.17 | K196: 77.7 | L196: 75.5 | M196: 129.9732
A197: 188 | B197: TATASTEEL | C197: 506.5 | D197: 510.42 | E197: 501.03 | F197: 495.57 | G197: 486.18 | H197: 515.88 | I197: 525.27 | J197: 530.73 | K197: 519.8 | L197: 504.95 | M197: 50.16931
A198: 189 | B198: TECHM | C198: 708.9 | D198: 706.18 | E198: 698.87 | F198: 688.83 | G198: 681.52 | H198: 716.22 | I198: 723.53 | J198: 733.57 | K198: 713.5 | L198: 696.15 | M198: 30.18106
A199: 190 | B199: RAMCOCEM | C199: 640.35 | D199: 634.35 | E199: 623.70 | F199: 607.05 | G199: 596.40 | H199: 651.00 | I199: 661.65 | J199: 678.30 | K199: 645 | L199: 617.7 | M199: 3.41581
A200: 191 | B200: TITAN | C200: 887.65 | D200: 888.98 | E200: 880.17 | F200: 872.68 | G200: 863.87 | H200: 896.47 | I200: 905.28 | J200: 912.77 | K200: 897.8 | L200: 881.5 | M200: 21.60188
A201: 192 | B201: TORNTPHARM | C201: 1739.6 | D201: 1746.45 | E201: 1719.35 | F201: 1699.10 | G201: 1672.00 | H201: 1766.70 | I201: 1793.80 | J201: 1814.05 | K201: 1773.55 | L201: 1726.2 | M201: 1.22208
A202: 193 | B202: TORNTPOWER | C202: 259 | D202: 260.60 | E202: 255.80 | F202: 252.60 | G202: 247.80 | H202: 263.80 | I202: 268.60 | J202: 271.80 | K202: 265.4 | L202: 257.4 | M202: 14.32931
A203: 194 | B203: UPL | C203: 749.65 | D203: 751.30 | E203: 743.60 | F203: 737.55 | G203: 729.85 | H203: 757.35 | I203: 765.05 | J203: 771.10 | K203: 759 | L203: 745.25 | M203: 11.67096
A204: 195 | B204: ULTRACEMCO | C204: 3982.5 | D204: 3986.00 | E204: 3951.50 | F204: 3920.50 | G204: 3886.00 | H204: 4017.00 | I204: 4051.50 | J204: 4082.50 | K204: 4020.5 | L204: 3955 | M204: 2.55449
A205: 196 | B205: UNIONBANK | C205: 83.9 | D205: 84.02 | E205: 82.78 | F205: 81.67 | G205: 80.43 | H205: 85.13 | I205: 86.37 | J205: 87.48 | K205: 85.25 | L205: 82.9 | M205: 103.80223
... 29 more rows

Sheet MidCap Intra
L5: Back To Main Page
A6: FOR INTRA DAY TRADING | K6: =Main!B10 -> 2018-12-28
A9: Sr.no | B9: Scrip | C9: CLOSE RATE | D9: Pivot Point | E9: Supports | H9: Resistances
C10: Point | E10: S1 | F10: S2 | G10: S3 | H10: R1 | I10: R2 | J10: R3 | K10: HIGH | L10: LOW | M10: Total Trade Quanity in Lakhs
A11: 1 | B11: 3MINDIA | C11: 20258.7 | D11: 20468.70 | E11: 19940.00 | F11: 19621.30 | G11: 19092.60 | H11: 20787.40 | I11: 21316.10 | J11: 21634.80 | K11: 20997.4 | L11: 20150 | M11: 0.02164
A12: 2 | B12: 8KMILES | C12: 144.75 | D12: 145.88 | E12: 141.77 | F12: 138.78 | G12: 134.67 | H12: 148.87 | I12: 152.98 | J12: 155.97 | K12: 150 | L12: 142.9 | M12: 2.6867
A13: 3 | B13: AARTIIND | C13: 1423.25 | D13: 1431.97 | E13: 1406.73 | F13: 1390.22 | G13: 1364.98 | H13: 1448.48 | I13: 1473.72 | J13: 1490.23 | K13: 1457.2 | L13: 1415.45 | M13: 0.5363
A14: 4 | B14: ABAN | C14: 74.6 | D14: 75.08 | E14: 73.17 | F14: 71.73 | G14: 69.82 | H14: 76.52 | I14: 78.43 | J14: 79.87 | K14: 77 | L14: 73.65 | M14: 8.84427
A15: 5 | B15: ABB | C15: 1309 | D15: 1311.48 | E15: 1299.97 | F15: 1290.93 | G15: 1279.42 | H15: 1320.52 | I15: 1332.03 | J15: 1341.07 | K15: 1323 | L15: 1302.45 | M15: 0.72902
A16: 6 | B16: ABCAPITAL | C16: 98.15 | D16: 98.10 | E16: 97.80 | F16: 97.45 | G16: 97.15 | H16: 98.45 | I16: 98.75 | J16: 99.10 | K16: 98.4 | L16: 97.75 | M16: 8.68657
A17: 7 | B17: ABFRL | C17: 204.9 | D17: 207.38 | E17: 201.52 | F17: 198.13 | G17: 192.27 | H17: 210.77 | I17: 216.63 | J17: 220.02 | K17: 213.25 | L17: 204 | M17: 16.52016
A18: 8 | B18: ACC | C18: 1459.2 | D18: 1470.68 | E18: 1442.37 | F18: 1425.53 | G18: 1397.22 | H18: 1487.52 | I18: 1515.83 | J18: 1532.67 | K18: 1499 | L18: 1453.85 | M18: 5.54317
A19: 9 | B19: ADANIPORTS | C19: 384 | D19: 381.15 | E19: 376.50 | F19: 369.00 | G19: 364.35 | H19: 388.65 | I19: 393.30 | J19: 400.80 | K19: 385.8 | L19: 373.65 | M19: 50.43675
A20: 10 | B20: ADANIPOWER | C20: 51.35 | D20: 51.45 | E20: 50.90 | F20: 50.45 | G20: 49.90 | H20: 51.90 | I20: 52.45 | J20: 52.90 | K20: 52 | L20: 51 | M20: 105.25643
A21: 11 | B21: ADANITRANS | C21: 196.15 | D21: 197.12 | E21: 194.03 | F21: 191.92 | G21: 188.83 | H21: 199.23 | I21: 202.32 | J21: 204.43 | K21: 200.2 | L21: 195 | M21: 2.23691
A22: 12 | B22: ADVENZYMES | C22: 178.9 | D22: 180.55 | E22: 175.80 | F22: 172.70 | G22: 167.95 | H22: 183.65 | I22: 188.40 | J22: 191.50 | K22: 185.3 | L22: 177.45 | M22: 0.59733
A23: 13 | B23: AEGISCHEM | C23: 189 | D23: 191.92 | E23: 185.38 | F23: 181.77 | G23: 175.23 | H23: 195.53 | I23: 202.07 | J23: 205.68 | K23: 198.45 | L23: 188.3 | M23: 1.65997
A24: 14 | B24: AIAENG | C24: 1690.45 | D24: 1675.48 | E24: 1635.97 | F24: 1581.48 | G24: 1541.97 | H24: 1729.97 | I24: 1769.48 | J24: 1823.97 | K24: 1715 | L24: 1621 | M24: 0.32339
A25: 15 | B25: AJANTPHARM | C25: 1177.75 | D25: 1162.92 | E25: 1140.83 | F25: 1103.92 | G25: 1081.83 | H25: 1199.83 | I25: 1221.92 | J25: 1258.83 | K25: 1185 | L25: 1126 | M25: 5.17054
A26: 16 | B26: AKZOINDIA | C26: 1636.1 | D26: 1630.20 | E26: 1615.85 | F26: 1595.60 | G26: 1581.25 | H26: 1650.45 | I26: 1664.80 | J26: 1685.05 | K26: 1644.55 | L26: 1609.95 | M26: 2.03293
A27: 17 | B27: ALBK | C27: 46.45 | D27: 46.20 | E27: 45.75 | F27: 45.05 | G27: 44.60 | H27: 46.90 | I27: 47.35 | J27: 48.05 | K27: 46.65 | L27: 45.5 | M27: 43.58492
A28: 18 | B28: ALKEM | C28: 1862.65 | D28: 1867.57 | E28: 1850.23 | F28: 1837.82 | G28: 1820.48 | H28: 1879.98 | I28: 1897.32 | J28: 1909.73 | K28: 1884.9 | L28: 1855.15 | M28: 0.21154
A29: 19 | B29: ALLCARGO | C29: 108.8 | D29: 109.00 | E29: 107.30 | F29: 105.80 | G29: 104.10 | H29: 110.50 | I29: 112.20 | J29: 113.70 | K29: 110.7 | L29: 107.5 | M29: 2.04315
A30: 20 | B30: AMARAJABAT | C30: 735.9 | D30: 735.30 | E30: 730.90 | F30: 725.90 | G30: 721.50 | H30: 740.30 | I30: 744.70 | J30: 749.70 | K30: 739.7 | L30: 730.3 | M30: 2.6907
A31: 21 | B31: AMBUJACEM | C31: 216.85 | D31: 218.57 | E31: 214.33 | F31: 211.82 | G31: 207.58 | H31: 221.08 | I31: 225.32 | J31: 227.83 | K31: 222.8 | L31: 216.05 | M31: 16.84054
A32: 22 | B32: ANDHRABANK | C32: 29.35 | D32: 29.38 | E32: 29.22 | F32: 29.08 | G32: 28.92 | H32: 29.52 | I32: 29.68 | J32: 29.82 | K32: 29.55 | L32: 29.25 | M32: 8.77715
A33: 23 | B33: APLAPOLLO | C33: 1109.45 | D33: 1112.82 | E33: 1086.68 | F33: 1063.92 | G33: 1037.78 | H33: 1135.58 | I33: 1161.72 | J33: 1184.48 | K33: 1138.95 | L33: 1090.05 | M33: 0.32981
A34: 24 | B34: APLLTD | C34: 573.5 | D34: 571.35 | E34: 566.70 | F34: 559.90 | G34: 555.25 | H34: 578.15 | I34: 582.80 | J34: 589.60 | K34: 576 | L34: 564.55 | M34: 0.31215
A35: 25 | B35: APOLLOHOSP | C35: 1242.8 | D35: 1253.67 | E35: 1224.83 | F35: 1206.87 | G35: 1178.03 | H35: 1271.63 | I35: 1300.47 | J35: 1318.43 | K35: 1282.5 | L35: 1235.7 | M35: 7.15199
A36: 26 | B36: APOLLOTYRE | C36: 231.05 | D36: 232.15 | E36: 229.00 | F36: 226.95 | G36: 223.80 | H36: 234.20 | I36: 237.35 | J36: 239.40 | K36: 235.3 | L36: 230.1 | M36: 19.16532
A37: 27 | B37: ARVIND | C37: 96.35 | D37: 96.82 | E37: 95.53 | F37: 94.72 | G37: 93.43 | H37: 97.63 | I37: 98.92 | J37: 99.73 | K37: 98.1 | L37: 96 | M37: 23.13882
A38: 28 | B38: ASAHIINDIA | C38: 241.2 | D38: 245.25 | E38: 236.50 | F38: 231.80 | G38: 223.05 | H38: 249.95 | I38: 258.70 | J38: 263.40 | K38: 254 | L38: 240.55 | M38: 0.08085
A39: 29 | B39: ASHOKA | C39: 124.05 | D39: 125.10 | E39: 122.20 | F39: 120.35 | G39: 117.45 | H39: 126.95 | I39: 129.85 | J39: 131.70 | K39: 128 | L39: 123.25 | M39: 1.18943
A40: 30 | B40: ASHOKLEY | C40: 103 | D40: 103.57 | E40: 102.13 | F40: 101.27 | G40: 99.83 | H40: 104.43 | I40: 105.87 | J40: 106.73 | K40: 105 | L40: 102.7 | M40: 106.05851
A41: 31 | B41: ASIANPAINT | C41: 1372.5 | D41: 1370.52 | E41: 1356.28 | F41: 1340.07 | G41: 1325.83 | H41: 1386.73 | I41: 1400.97 | J41: 1417.18 | K41: 1384.75 | L41: 1354.3 | M41: 21.7409
A42: 32 | B42: ASTRAL | C42: 1118.15 | D42: 1103.00 | E42: 1081.25 | F42: 1044.35 | G42: 1022.60 | H42: 1139.90 | I42: 1161.65 | J42: 1198.55 | K42: 1124.75 | L42: 1066.1 | M42: 1.50425
A43: 33 | B43: ATUL | C43: 3432.45 | D43: 3440.82 | E43: 3411.63 | F43: 3390.82 | G43: 3361.63 | H43: 3461.63 | I43: 3490.82 | J43: 3511.63 | K43: 3470 | L43: 3420 | M43: 0.06695
A44: 34 | B44: AUBANK | C44: 595.45 | D44: 596.62 | E44: 584.83 | F44: 574.22 | G44: 562.43 | H44: 607.23 | I44: 619.02 | J44: 629.63 | K44: 608.4 | L44: 586 | M44: 0.89749
A45: 35 | B45: AUROPHARMA | C45: 711.85 | D45: 716.30 | E45: 705.60 | F45: 699.35 | G45: 688.65 | H45: 722.55 | I45: 733.25 | J45: 739.50 | K45: 727 | L45: 710.05 | M45: 22.32649
A46: 36 | B46: AVANTIFEED | C46: 385.95 | D46: 387.67 | E46: 379.53 | F46: 373.12 | G46: 364.98 | H46: 394.08 | I46: 402.22 | J46: 408.63 | K46: 395.8 | L46: 381.25 | M46: 4.678
A47: 37 | B47: AXISBANK | C47: 617.55 | D47: 619.72 | E47: 613.43 | F47: 609.32 | G47: 603.03 | H47: 623.83 | I47: 630.12 | J47: 634.23 | K47: 626 | L47: 615.6 | M47: 123.04812
A48: 38 | B48: BAJAJ-AUTO | C48: 2737 | D48: 2732.53 | E48: 2701.07 | F48: 2665.13 | G48: 2633.67 | H48: 2768.47 | I48: 2799.93 | J48: 2835.87 | K48: 2764 | L48: 2696.6 | M48: 5.58049
A49: 39 | B49: BAJAJCORP | C49: 359.9 | D49: 361.15 | E49: 357.05 | F49: 354.20 | G49: 350.10 | H49: 364.00 | I49: 368.10 | J49: 370.95 | K49: 365.25 | L49: 358.3 | M49: 0.10521
A50: 40 | B50: BAJAJELEC | C50: 494.4 | D50: 500.07 | E50: 485.33 | F50: 476.27 | G50: 461.53 | H50: 509.13 | I50: 523.87 | J50: 532.93 | K50: 514.8 | L50: 491 | M50: 2.77928
A51: 41 | B51: BAJAJFINSV | C51: 6405.05 | D51: 6435.02 | E51: 6320.03 | F51: 6235.02 | G51: 6120.03 | H51: 6520.03 | I51: 6635.02 | J51: 6720.03 | K51: 6550 | L51: 6350 | M51: 2.97717
A52: 42 | B52: BAJAJHIND | C52: 8.75 | D52: 8.78 | E52: 8.67 | F52: 8.58 | G52: 8.47 | H52: 8.87 | I52: 8.98 | J52: 9.07 | K52: 8.9 | L52: 8.7 | M52: 11.46506
A53: 43 | B53: BAJAJHLDNG | C53: 2950.05 | D53: 2936.63 | E53: 2884.47 | F53: 2818.88 | G53: 2766.72 | H53: 3002.22 | I53: 3054.38 | J53: 3119.97 | K53: 2988.8 | L53: 2871.05 | M53: 0.59145
A54: 44 | B54: BAJFINANCE | C54: 2587.15 | D54: 2594.63 | E54: 2562.52 | F54: 2537.88 | G54: 2505.77 | H54: 2619.27 | I54: 2651.38 | J54: 2676.02 | K54: 2626.75 | L54: 2570 | M54: 16.26301
A55: 45 | B55: BALKRISIND | C55: 902.55 | D55: 905.25 | E55: 893.30 | F55: 884.05 | G55: 872.10 | H55: 914.50 | I55: 926.45 | J55: 935.70 | K55: 917.2 | L55: 896 | M55: 5.36421
A56: 46 | B56: BALLARPUR | C56: 5.4 | D56: 5.45 | E56: 5.30 | F56: 5.20 | G56: 5.05 | H56: 5.55 | I56: 5.70 | J56: 5.80 | K56: 5.6 | L56: 5.35 | M56: 5.13211
A57: 47 | B57: BALMLAWRIE | C57: 202.45 | D57: 205.22 | E57: 198.43 | F57: 194.42 | G57: 187.63 | H57: 209.23 | I57: 216.02 | J57: 220.03 | K57: 212 | L57: 201.2 | M57: 1.07321
A58: 48 | B58: BALRAMCHIN | C58: 100.9 | D58: 101.27 | E58: 100.13 | F58: 99.37 | G58: 98.23 | H58: 102.03 | I58: 103.17 | J58: 103.93 | K58: 102.4 | L58: 100.5 | M58: 8.82371
A59: 49 | B59: BANKBARODA | C59: 116.4 | D59: 117.20 | E59: 115.00 | F59: 113.60 | G59: 111.40 | H59: 118.60 | I59: 120.80 | J59: 122.20 | K59: 119.4 | L59: 115.8 | M59: 144.3239
A60: 50 | B60: BANKINDIA | C60: 101.8 | D60: 102.18 | E60: 100.67 | F60: 99.53 | G60: 98.02 | H60: 103.32 | I60: 104.83 | J60: 105.97 | K60: 103.7 | L60: 101.05 | M60: 208.01965
A61: 51 | B61: BASF | C61: 1566.35 | D61: 1570.78 | E61: 1538.57 | F61: 1510.78 | G61: 1478.57 | H61: 1598.57 | I61: 1630.78 | J61: 1658.57 | K61: 1603 | L61: 1543 | M61: 0.15928
A62: 52 | B62: BATAINDIA | C62: 1129.9 | D62: 1122.98 | E62: 1109.02 | F62: 1088.13 | G62: 1074.17 | H62: 1143.87 | I62: 1157.83 | J62: 1178.72 | K62: 1136.95 | L62: 1102.1 | M62: 15.29162
A63: 53 | B63: BBTC | C63: 1274.8 | D63: 1280.58 | E63: 1266.22 | F63: 1257.63 | G63: 1243.27 | H63: 1289.17 | I63: 1303.53 | J63: 1312.12 | K63: 1294.95 | L63: 1272 | M63: 0.38249
A64: 54 | B64: BEL | C64: 86.15 | D64: 87.43 | E64: 84.37 | F64: 82.58 | G64: 79.52 | H64: 89.22 | I64: 92.28 | J64: 94.07 | K64: 90.5 | L64: 85.65 | M64: 248.98982
A65: 55 | B65: BEML | C65: 899.95 | D65: 905.37 | E65: 888.63 | F65: 877.32 | G65: 860.58 | H65: 916.68 | I65: 933.42 | J65: 944.73 | K65: 922.1 | L65: 894.05 | M65: 39.89019
A66: 56 | B66: BERGEPAINT | C66: 328.35 | D66: 328.23 | E66: 325.27 | F66: 322.18 | G66: 319.22 | H66: 331.32 | I66: 334.28 | J66: 337.37 | K66: 331.2 | L66: 325.15 | M66: 4.25546
A67: 57 | B67: BFUTILITIE | C67: 206.5 | D67: 207.45 | E67: 204.35 | F67: 202.20 | G67: 199.10 | H67: 209.60 | I67: 212.70 | J67: 214.85 | K67: 210.55 | L67: 205.3 | M67: 2.36136
A68: 58 | B68: BGRENERGY | C68: 60.35 | D68: 60.35 | E68: 59.20 | F68: 58.05 | G68: 56.90 | H68: 61.50 | I68: 62.65 | J68: 63.80 | K68: 61.5 | L68: 59.2 | M68: 0.5312
A69: 59 | B69: BHARATFIN | C69: 999.9 | D69: 1001.10 | E69: 993.95 | F69: 988.00 | G69: 980.85 | H69: 1007.05 | I69: 1014.20 | J69: 1020.15 | K69: 1008.25 | L69: 995.15 | M69: 7.96468
A70: 60 | B70: BHARATFORG | C70: 500.2 | D70: 503.95 | E70: 494.40 | F70: 488.60 | G70: 479.05 | H70: 509.75 | I70: 519.30 | J70: 525.10 | K70: 513.5 | L70: 498.15 | M70: 14.64279
A71: 61 | B71: BHARTIARTL | C71: 316.7 | D71: 318.13 | E71: 312.57 | F71: 308.43 | G71: 302.87 | H71: 322.27 | I71: 327.83 | J71: 331.97 | K71: 323.7 | L71: 314 | M71: 78.99279
A72: 62 | B72: BHEL | C72: 70 | D72: 70.72 | E72: 69.03 | F72: 68.07 | G72: 66.38 | H72: 71.68 | I72: 73.37 | J72: 74.33 | K72: 72.4 | L72: 69.75 | M72: 227.42988
A73: 63 | B73: BIOCON | C73: 611.45 | D73: 614.17 | E73: 607.33 | F73: 603.22 | G73: 596.38 | H73: 618.28 | I73: 625.12 | J73: 629.23 | K73: 621 | L73: 610.05 | M73: 15.15713
A74: 64 | B74: BIRLACORPN | C74: 597.95 | D74: 604.62 | E74: 587.38 | F74: 576.82 | G74: 559.58 | H74: 615.18 | I74: 632.42 | J74: 642.98 | K74: 621.85 | L74: 594.05 | M74: 0.30377
A75: 65 | B75: BLISSGVS | C75: 139.55 | D75: 141.13 | E75: 135.17 | F75: 130.78 | G75: 124.82 | H75: 145.52 | I75: 151.48 | J75: 155.87 | K75: 147.1 | L75: 136.75 | M75: 32.44873
A76: 66 | B76: BLUEDART | C76: 3249.9 | D76: 3232.53 | E76: 3184.67 | F76: 3119.43 | G76: 3071.57 | H76: 3297.77 | I76: 3345.63 | J76: 3410.87 | K76: 3280.4 | L76: 3167.3 | M76: 0.03294
A77: 67 | B77: BLUESTARCO | C77: 610.75 | D77: 615.27 | E77: 602.83 | F77: 594.92 | G77: 582.48 | H77: 623.18 | I77: 635.62 | J77: 643.53 | K77: 627.7 | L77: 607.35 | M77: 0.15986
A78: 68 | B78: BOMDYEING | C78: 111.4 | D78: 112.07 | E78: 109.88 | F78: 108.37 | G78: 106.18 | H78: 113.58 | I78: 115.77 | J78: 117.28 | K78: 114.25 | L78: 110.55 | M78: 7.39671
A79: 69 | B79: BOSCHLTD | C79: 19409.15 | D79: 19466.60 | E79: 19194.00 | F79: 18978.85 | G79: 18706.25 | H79: 19681.75 | I79: 19954.35 | J79: 20169.50 | K79: 19739.2 | L79: 19251.45 | M79: 0.30265
A80: 70 | B80: BPCL | C80: 364.6 | D80: 362.75 | E80: 356.75 | F80: 348.90 | G80: 342.90 | H80: 370.60 | I80: 376.60 | J80: 384.45 | K80: 368.75 | L80: 354.9 | M80: 73.12769
A81: 71 | B81: BRFL | C81: 8.85 | D81: 8.97 | E81: 8.63 | F81: 8.42 | G81: 8.08 | H81: 9.18 | I81: 9.52 | J81: 9.73 | K81: 9.3 | L81: 8.75 | M81: 2.74892
A82: 72 | B82: BRIGADE | C82: 225.95 | D82: 229.35 | E82: 220.30 | F82: 214.65 | G82: 205.60 | H82: 235.00 | I82: 244.05 | J82: 249.70 | K82: 238.4 | L82: 223.7 | M82: 3.73324
A83: 73 | B83: BRITANNIA | C83: 3075.4 | D83: 3087.45 | E83: 3049.95 | F83: 3024.50 | G83: 2987.00 | H83: 3112.90 | I83: 3150.40 | J83: 3175.85 | K83: 3124.95 | L83: 3062 | M83: 2.40314
A84: 74 | B84: BSE | C84: 588.85 | D84: 588.32 | E84: 586.58 | F84: 584.32 | G84: 582.58 | H84: 590.58 | I84: 592.32 | J84: 594.58 | K84: 590.05 | L84: 586.05 | M84: 0.38441
A85: 75 | B85: CADILAHC | C85: 338.8 | D85: 339.93 | E85: 336.87 | F85: 334.93 | G85: 331.87 | H85: 341.87 | I85: 344.93 | J85: 346.87 | K85: 343 | L85: 338 | M85: 5.37841
A86: 77 | B86: CANBK | C86: 272.25 | D86: 272.35 | E86: 270.00 | F86: 267.75 | G86: 265.40 | H86: 274.60 | I86: 276.95 | J86: 279.20 | K86: 274.7 | L86: 270.1 | M86: 50.02091
A87: 78 | B87: CANFINHOME | C87: 288.9 | D87: 288.08 | E87: 282.17 | F87: 275.43 | G87: 269.52 | H87: 294.82 | I87: 300.73 | J87: 307.47 | K87: 294 | L87: 281.35 | M87: 25.31457
A88: 79 | B88: CAPF | C88: 587.2 | D88: 590.05 | E88: 580.25 | F88: 573.30 | G88: 563.50 | H88: 597.00 | I88: 606.80 | J88: 613.75 | K88: 599.85 | L88: 583.1 | M88: 52.05578
A89: 80 | B89: CAPLIPOINT | C89: 385.25 | D89: 384.72 | E89: 380.53 | F89: 375.82 | G89: 371.63 | H89: 389.43 | I89: 393.62 | J89: 398.33 | K89: 388.9 | L89: 380 | M89: 0.25126
A90: 81 | B90: CARBORUNIV | C90: 357.4 | D90: 354.95 | E90: 350.90 | F90: 344.40 | G90: 340.35 | H90: 361.45 | I90: 365.50 | J90: 372.00 | K90: 359 | L90: 348.45 | M90: 0.49156
A91: 82 | B91: CARERATING | C91: 981.75 | D91: 977.48 | E91: 970.72 | F91: 959.68 | G91: 952.92 | H91: 988.52 | I91: 995.28 | J91: 1006.32 | K91: 984.25 | L91: 966.45 | M91: 0.42912
A92: 83 | B92: CASTROLIND | C92: 153.65 | D92: 153.27 | E92: 151.03 | F92: 148.42 | G92: 146.18 | H92: 155.88 | I92: 158.12 | J92: 160.73 | K92: 155.5 | L92: 150.65 | M92: 23.17548
A93: 84 | B93: CCL | C93: 272.6 | D93: 272.88 | E93: 271.57 | F93: 270.53 | G93: 269.22 | H93: 273.92 | I93: 275.23 | J93: 276.27 | K93: 274.2 | L93: 271.85 | M93: 0.1329
A94: 85 | B94: CDSL | C94: 220.7 | D94: 222.87 | E94: 217.73 | F94: 214.77 | G94: 209.63 | H94: 225.83 | I94: 230.97 | J94: 233.93 | K94: 228 | L94: 219.9 | M94: 2.72413
A95: 86 | B95: CEATLTD | C95: 1275.4 | D95: 1268.32 | E95: 1253.88 | F95: 1232.37 | G95: 1217.93 | H95: 1289.83 | I95: 1304.27 | J95: 1325.78 | K95: 1282.75 | L95: 1246.8 | M95: 6.76969
A96: 87 | B96: CENTRALBK | C96: 36.25 | D96: 36.12 | E96: 34.73 | F96: 33.22 | G96: 31.83 | H96: 37.63 | I96: 39.02 | J96: 40.53 | K96: 37.5 | L96: 34.6 | M96: 69.3106
A97: 88 | B97: CENTURYPLY | C97: 173.75 | D97: 173.20 | E97: 171.20 | F97: 168.65 | G97: 166.65 | H97: 175.75 | I97: 177.75 | J97: 180.30 | K97: 175.2 | L97: 170.65 | M97: 4.02359
A98: 89 | B98: CENTURYTEX | C98: 896.6 | D98: 901.53 | E98: 886.32 | F98: 876.03 | G98: 860.82 | H98: 911.82 | I98: 927.03 | J98: 937.32 | K98: 916.75 | L98: 891.25 | M98: 7.13739
A99: 90 | B99: CERA | C99: 2377.1 | D99: 2384.43 | E99: 2358.17 | F99: 2339.23 | G99: 2312.97 | H99: 2403.37 | I99: 2429.63 | J99: 2448.57 | K99: 2410.7 | L99: 2365.5 | M99: 0.02071
A100: 91 | B100: CGPOWER | C100: 43.95 | D100: 44.27 | E100: 43.53 | F100: 43.12 | G100: 42.38 | H100: 44.68 | I100: 45.42 | J100: 45.83 | K100: 45 | L100: 43.85 | M100: 70.92325
A101: 92 | B101: CHAMBLFERT | C101: 143.05 | D101: 142.85 | E101: 142.05 | F101: 141.05 | G101: 140.25 | H101: 143.85 | I101: 144.65 | J101: 145.65 | K101: 143.65 | L101: 141.85 | M101: 4.10051
A102: 93 | B102: CHENNPETRO | C102: 287.6 | D102: 285.43 | E102: 279.92 | F102: 272.23 | G102: 266.72 | H102: 293.12 | I102: 298.63 | J102: 306.32 | K102: 290.95 | L102: 277.75 | M102: 9.29165
A103: 94 | B103: CHOLAFIN | C103: 1228.75 | D103: 1235.73 | E103: 1207.67 | F103: 1186.58 | G103: 1158.52 | H103: 1256.82 | I103: 1284.88 | J103: 1305.97 | K103: 1263.8 | L103: 1214.65 | M103: 4.53787
A104: 95 | B104: CIPLA | C104: 517.9 | D104: 517.63 | E104: 514.27 | F104: 510.63 | G104: 507.27 | H104: 521.27 | I104: 524.63 | J104: 528.27 | K104: 521 | L104: 514 | M104: 13.51636
A105: 96 | B105: COALINDIA | C105: 250.2 | D105: 249.35 | E105: 244.70 | F105: 239.20 | G105: 234.55 | H105: 254.85 | I105: 259.50 | J105: 265.00 | K105: 254 | L105: 243.85 | M105: 260.11475
A106: 97 | B106: COCHINSHIP | C106: 377.15 | D106: 378.87 | E106: 374.58 | F106: 372.02 | G106: 367.73 | H106: 381.43 | I106: 385.72 | J106: 388.28 | K106: 383.15 | L106: 376.3 | M106: 0.4149
A107: 98 | B107: COFFEEDAY | C107: 269.15 | D107: 270.55 | E107: 266.70 | F107: 264.25 | G107: 260.40 | H107: 273.00 | I107: 276.85 | J107: 279.30 | K107: 274.4 | L107: 268.1 | M107: 0.84654
A108: 99 | B108: COLPAL | C108: 1300.35 | D108: 1305.77 | E108: 1287.58 | F108: 1274.82 | G108: 1256.63 | H108: 1318.53 | I108: 1336.72 | J108: 1349.48 | K108: 1323.95 | L108: 1293 | M108: 8.90033
A109: 100 | B109: CONCOR | C109: 666.45 | D109: 668.82 | E109: 655.73 | F109: 645.02 | G109: 631.93 | H109: 679.53 | I109: 692.62 | J109: 703.33 | K109: 681.9 | L109: 658.1 | M109: 48.63923
A110: 101 | B110: COROMANDEL | C110: 445.55 | D110: 445.60 | E110: 443.00 | F110: 440.45 | G110: 437.85 | H110: 448.15 | I110: 450.75 | J110: 453.30 | K110: 448.2 | L110: 443.05 | M110: 0.50297
A111: 102 | B111: COX&KINGS | C111: 157.5 | D111: 158.30 | E111: 155.45 | F111: 153.40 | G111: 150.55 | H111: 160.35 | I111: 163.20 | J111: 165.25 | K111: 161.15 | L111: 156.25 | M111: 0.25656
A112: 103 | B112: CRISIL | C112: 1615.65 | D112: 1621.55 | E112: 1600.65 | F112: 1585.65 | G112: 1564.75 | H112: 1636.55 | I112: 1657.45 | J112: 1672.45 | K112: 1642.45 | L112: 1606.55 | M112: 0.02689
A113: 104 | B113: CROMPTON | C113: 225 | D113: 226.08 | E113: 222.97 | F113: 220.93 | G113: 217.82 | H113: 228.12 | I113: 231.23 | J113: 233.27 | K113: 229.2 | L113: 224.05 | M113: 1.67895
A114: 105 | B114: CUB | C114: 185.1 | D114: 185.52 | E114: 184.08 | F114: 183.07 | G114: 181.63 | H114: 186.53 | I114: 187.97 | J114: 188.98 | K114: 186.95 | L114: 184.5 | M114: 3.70355
A115: 106 | B115: CUMMINSIND | C115: 833.35 | D115: 828.18 | E115: 808.37 | F115: 783.38 | G115: 763.57 | H115: 853.17 | I115: 872.98 | J115: 897.97 | K115: 848 | L115: 803.2 | M115: 10.33735
A116: 107 | B116: CYIENT | C116: 604 | D116: 608.17 | E116: 597.33 | F116: 590.67 | G116: 579.83 | H116: 614.83 | I116: 625.67 | J116: 632.33 | K116: 619 | L116: 601.5 | M116: 1.81001
A117: 108 | B117: DABUR | C117: 429.95 | D117: 428.10 | E117: 424.20 | F117: 418.45 | G117: 414.55 | H117: 433.85 | I117: 437.75 | J117: 443.50 | K117: 432 | L117: 422.35 | M117: 33.86941
A118: 109 | B118: DBCORP | C118: 169.15 | D118: 169.22 | E118: 165.73 | F118: 162.32 | G118: 158.83 | H118: 172.63 | I118: 176.12 | J118: 179.53 | K118: 172.7 | L118: 165.8 | M118: 0.83382
A119: 110 | B119: DBL | C119: 419.95 | D119: 423.55 | E119: 414.40 | F119: 408.85 | G119: 399.70 | H119: 429.10 | I119: 438.25 | J119: 443.80 | K119: 432.7 | L119: 418 | M119: 1.18323
A120: 111 | B120: DBREALTY | C120: 26.95 | D120: 26.80 | E120: 25.90 | F120: 24.85 | G120: 23.95 | H120: 27.85 | I120: 28.75 | J120: 29.80 | K120: 27.7 | L120: 25.75 | M120: 5.39904
A121: 112 | B121: DCAL | C121: 228.9 | D121: 230.37 | E121: 226.68 | F121: 224.47 | G121: 220.78 | H121: 232.58 | I121: 236.27 | J121: 238.48 | K121: 234.05 | L121: 228.15 | M121: 0.72347
A122: 113 | B122: DCBBANK | C122: 162.6 | D122: 162.78 | E122: 160.37 | F122: 158.13 | G122: 155.72 | H122: 165.02 | I122: 167.43 | J122: 169.67 | K122: 165.2 | L122: 160.55 | M122: 9.42939
A123: 114 | B123: DCMSHRIRAM | C123: 331.2 | D123: 337.98 | E123: 323.22 | F123: 315.23 | G123: 300.47 | H123: 345.97 | I123: 360.73 | J123: 368.72 | K123: 352.75 | L123: 330 | M123: 1.28869
A124: 115 | B124: DEEPAKFERT | C124: 150.35 | D124: 149.93 | E124: 145.92 | F124: 141.48 | G124: 137.47 | H124: 154.37 | I124: 158.38 | J124: 162.82 | K124: 153.95 | L124: 145.5 | M124: 4.66866
A125: 116 | B125: DELTACORP | C125: 243.95 | D125: 244.15 | E125: 242.30 | F125: 240.65 | G125: 238.80 | H125: 245.80 | I125: 247.65 | J125: 249.30 | K125: 246 | L125: 242.5 | M125: 6.56863
A126: 117 | B126: DEN | C126: 70.25 | D126: 70.10 | E126: 69.65 | F126: 69.05 | G126: 68.60 | H126: 70.70 | I126: 71.15 | J126: 71.75 | K126: 70.55 | L126: 69.5 | M126: 0.95217
A127: 118 | B127: DENABANK | C127: 17.1 | D127: 17.05 | E127: 16.90 | F127: 16.70 | G127: 16.55 | H127: 17.25 | I127: 17.40 | J127: 17.60 | K127: 17.2 | L127: 16.85 | M127: 15.65588
A128: 119 | B128: DHFL | C128: 239.65 | D128: 240.17 | E128: 236.98 | F128: 234.32 | G128: 231.13 | H128: 242.83 | I128: 246.02 | J128: 248.68 | K128: 243.35 | L128: 237.5 | M128: 101.26105
A129: 120 | B129: DISHTV | C129: 37.55 | D129: 37.38 | E129: 36.87 | F129: 36.18 | G129: 35.67 | H129: 38.07 | I129: 38.58 | J129: 39.27 | K129: 37.9 | L129: 36.7 | M129: 133.33486
A130: 121 | B130: DIVISLAB | C130: 1471.15 | D130: 1466.43 | E130: 1452.87 | F130: 1434.58 | G130: 1421.02 | H130: 1484.72 | I130: 1498.28 | J130: 1516.57 | K130: 1480 | L130: 1448.15 | M130: 4.34791
A131: 122 | B131: DIXON | C131: 2079.5 | D131: 2074.02 | E131: 2058.03 | F131: 2036.57 | G131: 2020.58 | H131: 2095.48 | I131: 2111.47 | J131: 2132.93 | K131: 2090 | L131: 2052.55 | M131: 0.06773
A132: 123 | B132: DLF | C132: 175.65 | D132: 177.32 | E132: 173.23 | F132: 170.82 | G132: 166.73 | H132: 179.73 | I132: 183.82 | J132: 186.23 | K132: 181.4 | L132: 174.9 | M132: 61.83377
A133: 124 | B133: DMART | C133: 1570.15 | D133: 1568.73 | E133: 1559.47 | F133: 1548.78 | G133: 1539.52 | H133: 1579.42 | I133: 1588.68 | J133: 1599.37 | K133: 1578 | L133: 1558.05 | M133: 2.60792
A134: 125 | B134: DREDGECORP | C134: 359.15 | D134: 362.90 | E134: 353.35 | F134: 347.55 | G134: 338.00 | H134: 368.70 | I134: 378.25 | J134: 384.05 | K134: 372.45 | L134: 357.1 | M134: 3.77845
A135: 126 | B135: DRREDDY | C135: 2587.45 | D135: 2604.60 | E135: 2564.20 | F135: 2540.95 | G135: 2500.55 | H135: 2627.85 | I135: 2668.25 | J135: 2691.50 | K135: 2645 | L135: 2581.35 | M135: 5.87578
A136: 127 | B136: ECLERX | C136: 1114.7 | D136: 1101.57 | E136: 1079.13 | F136: 1043.57 | G136: 1021.13 | H136: 1137.13 | I136: 1159.57 | J136: 1195.13 | K136: 1124 | L136: 1066 | M136: 0.11938
A137: 128 | B137: EDELWEISS | C137: 181.7 | D137: 184.27 | E137: 178.68 | F137: 175.67 | G137: 170.08 | H137: 187.28 | I137: 192.87 | J137: 195.88 | K137: 189.85 | L137: 181.25 | M137: 9.12639
A138: 129 | B138: EICHERMOT | C138: 22994.5 | D138: 23088.47 | E138: 22793.93 | F138: 22593.37 | G138: 22298.83 | H138: 23289.03 | I138: 23583.57 | J138: 23784.13 | K138: 23383 | L138: 22887.9 | M138: 0.47478
A139: 130 | B139: EIDPARRY | C139: 204.2 | D139: 206.08 | E139: 201.77 | F139: 199.33 | G139: 195.02 | H139: 208.52 | I139: 212.83 | J139: 215.27 | K139: 210.4 | L139: 203.65 | M139: 0.46415
A140: 131 | B140: EIHOTEL | C140: 194.55 | D140: 195.17 | E140: 192.88 | F140: 191.22 | G140: 188.93 | H140: 196.83 | I140: 199.12 | J140: 200.78 | K140: 197.45 | L140: 193.5 | M140: 1.30329
A141: 132 | B141: EMAMILTD | C141: 405.25 | D141: 405.72 | E141: 401.58 | F141: 397.92 | G141: 393.78 | H141: 409.38 | I141: 413.52 | J141: 417.18 | K141: 409.85 | L141: 402.05 | M141: 1.40756
A142: 133 | B142: ENDURANCE | C142: 1176.5 | D142: 1175.50 | E142: 1166.10 | F142: 1155.70 | G142: 1146.30 | H142: 1185.90 | I142: 1195.30 | J142: 1205.70 | K142: 1184.9 | L142: 1165.1 | M142: 0.11818
A143: 134 | B143: ENGINERSIN | C143: 126.25 | D143: 125.68 | E143: 123.37 | F143: 120.48 | G143: 118.17 | H143: 128.57 | I143: 130.88 | J143: 133.77 | K143: 128 | L143: 122.8 | M143: 51.81159
A144: 135 | B144: EQUITAS | C144: 124.35 | D144: 125.53 | E144: 122.52 | F144: 120.68 | G144: 117.67 | H144: 127.37 | I144: 130.38 | J144: 132.22 | K144: 128.55 | L144: 123.7 | M144: 30.8722
A145: 136 | B145: ERIS | C145: 670.05 | D145: 667.72 | E145: 660.63 | F145: 651.22 | G145: 644.13 | H145: 677.13 | I145: 684.22 | J145: 693.63 | K145: 674.8 | L145: 658.3 | M145: 0.07407
A146: 137 | B146: EROSMEDIA | C146: 86.6 | D146: 86.97 | E146: 85.43 | F146: 84.27 | G146: 82.73 | H146: 88.13 | I146: 89.67 | J146: 90.83 | K146: 88.5 | L146: 85.8 | M146: 4.37236
A147: 138 | B147: ESCORTS | C147: 687.3 | D147: 691.18 | E147: 680.37 | F147: 673.43 | G147: 662.62 | H147: 698.12 | I147: 708.93 | J147: 715.87 | K147: 702 | L147: 684.25 | M147: 28.78699
A148: 139 | B148: EVEREADY | C148: 188.55 | D148: 188.43 | E148: 184.42 | F148: 180.28 | G148: 176.27 | H148: 192.57 | I148: 196.58 | J148: 200.72 | K148: 192.45 | L148: 184.3 | M148: 0.63183
A149: 140 | B149: EXIDEIND | C149: 268.2 | D149: 265.95 | E149: 262.40 | F149: 256.60 | G149: 253.05 | H149: 271.75 | I149: 275.30 | J149: 281.10 | K149: 269.5 | L149: 260.15 | M149: 12.45606
A150: 141 | B150: FCONSUMER | C150: 45.9 | D150: 46.27 | E150: 45.33 | F150: 44.77 | G150: 43.83 | H150: 46.83 | I150: 47.77 | J150: 48.33 | K150: 47.2 | L150: 45.7 | M150: 10.36451
A151: 142 | B151: FEDERALBNK | C151: 94.1 | D151: 93.17 | E151: 91.93 | F151: 89.77 | G151: 88.53 | H151: 95.33 | I151: 96.57 | J151: 98.73 | K151: 94.4 | L151: 91 | M151: 146.86963
A152: 143 | B152: FINCABLES | C152: 454.25 | D152: 458.15 | E152: 448.85 | F152: 443.45 | G152: 434.15 | H152: 463.55 | I152: 472.85 | J152: 478.25 | K152: 467.45 | L152: 452.75 | M152: 0.29532
A153: 144 | B153: FINPIPE | C153: 552.05 | D153: 550.35 | E153: 537.70 | F153: 523.35 | G153: 510.70 | H153: 564.70 | I153: 577.35 | J153: 591.70 | K153: 563 | L153: 536 | M153: 0.37764
A154: 145 | B154: FLFL | C154: 393.8 | D154: 395.05 | E154: 387.75 | F154: 381.70 | G154: 374.40 | H154: 401.10 | I154: 408.40 | J154: 414.45 | K154: 402.35 | L154: 389 | M154: 0.15531
A155: 146 | B155: FSL | C155: 47.1 | D155: 47.48 | E155: 46.47 | F155: 45.83 | G155: 44.82 | H155: 48.12 | I155: 49.13 | J155: 49.77 | K155: 48.5 | L155: 46.85 | M155: 21.11157
A156: 147 | B156: GAIL | C156: 356.45 | D156: 357.42 | E156: 351.33 | F156: 346.22 | G156: 340.13 | H156: 362.53 | I156: 368.62 | J156: 373.73 | K156: 363.5 | L156: 352.3 | M156: 182.18808
A157: 148 | B157: GATI | C157: 87.75 | D157: 88.00 | E157: 86.55 | F157: 85.35 | G157: 83.90 | H157: 89.20 | I157: 90.65 | J157: 91.85 | K157: 89.45 | L157: 86.8 | M157: 6.58336
A158: 149 | B158: GDL | C158: 129.9 | D158: 130.68 | E158: 128.37 | F158: 126.83 | G158: 124.52 | H158: 132.22 | I158: 134.53 | J158: 136.07 | K158: 133 | L158: 129.15 | M158: 0.45215
A159: 150 | B159: GEPIL | C159: 825 | D159: 829.50 | E159: 820.00 | F159: 815.00 | G159: 805.50 | H159: 834.50 | I159: 844.00 | J159: 849.00 | K159: 839 | L159: 824.5 | M159: 0.01282
A160: 151 | B160: GESHIP | C160: 312.15 | D160: 315.00 | E160: 308.15 | F160: 304.15 | G160: 297.30 | H160: 319.00 | I160: 325.85 | J160: 329.85 | K160: 321.85 | L160: 311 | M160: 0.24676
A161: 152 | B161: GET&D | C161: 290.85 | D161: 287.43 | E161: 280.12 | F161: 269.38 | G161: 262.07 | H161: 298.17 | I161: 305.48 | J161: 316.22 | K161: 294.75 | L161: 276.7 | M161: 0.71206
A162: 153 | B162: GHCL | C162: 235.65 | D162: 237.42 | E162: 233.33 | F162: 231.02 | G162: 226.93 | H162: 239.73 | I162: 243.82 | J162: 246.13 | K162: 241.5 | L162: 235.1 | M162: 0.32628
A163: 154 | B163: GICRE | C163: 260.1 | D163: 260.08 | E163: 257.67 | F163: 255.23 | G163: 252.82 | H163: 262.52 | I163: 264.93 | J163: 267.37 | K163: 262.5 | L163: 257.65 | M163: 0.64017
A164: 155 | B164: GILLETTE | C164: 6498.45 | D164: 6492.83 | E164: 6485.67 | F164: 6472.88 | G164: 6465.72 | H164: 6505.62 | I164: 6512.78 | J164: 6525.57 | K164: 6500 | L164: 6480.05 | M164: 0.01687
A165: 156 | B165: GLAXO | C165: 1505.65 | D165: 1497.55 | E165: 1480.10 | F165: 1454.55 | G165: 1437.10 | H165: 1523.10 | I165: 1540.55 | J165: 1566.10 | K165: 1515 | L165: 1472 | M165: 0.15565
A166: 157 | B166: GLENMARK | C166: 683.1 | D166: 677.92 | E166: 667.83 | F166: 652.57 | G166: 642.48 | H166: 693.18 | I166: 703.27 | J166: 718.53 | K166: 688 | L166: 662.65 | M166: 10.26004
A167: 158 | B167: GMDCLTD | C167: 87 | D167: 87.37 | E167: 86.18 | F167: 85.37 | G167: 84.18 | H167: 88.18 | I167: 89.37 | J167: 90.18 | K167: 88.55 | L167: 86.55 | M167: 0.88405
A168: 159 | B168: GMRINFRA | C168: 15.95 | D168: 16.12 | E168: 15.68 | F168: 15.42 | G168: 14.98 | H168: 16.38 | I168: 16.82 | J168: 17.08 | K168: 16.55 | L168: 15.85 | M168: 157.58928
A169: 160 | B169: GNFC | C169: 339.05 | D169: 341.32 | E169: 335.73 | F169: 332.42 | G169: 326.83 | H169: 344.63 | I169: 350.22 | J169: 353.53 | K169: 346.9 | L169: 338 | M169: 2.35213
A170: 161 | B170: GODFRYPHLP | C170: 872.5 | D170: 864.62 | E170: 849.88 | F170: 827.27 | G170: 812.53 | H170: 887.23 | I170: 901.97 | J170: 924.58 | K170: 879.35 | L170: 842 | M170: 4.18341
A171: 162 | B171: GODREJAGRO | C171: 500.25 | D171: 500.45 | E171: 496.85 | F171: 493.45 | G171: 489.85 | H171: 503.85 | I171: 507.45 | J171: 510.85 | K171: 504.05 | L171: 497.05 | M171: 0.39824
A172: 163 | B172: GODREJCP | C172: 815.35 | D172: 810.37 | E172: 802.23 | F172: 789.12 | G172: 780.98 | H172: 823.48 | I172: 831.62 | J172: 844.73 | K172: 818.5 | L172: 797.25 | M172: 8.42644
A173: 164 | B173: GODREJIND | C173: 531.5 | D173: 526.90 | E173: 519.70 | F173: 507.90 | G173: 500.70 | H173: 538.70 | I173: 545.90 | J173: 557.70 | K173: 534.1 | L173: 515.1 | M173: 3.94751
A174: 165 | B174: GODREJPROP | C174: 672.1 | D174: 675.38 | E174: 664.87 | F174: 657.63 | G174: 647.12 | H174: 682.62 | I174: 693.13 | J174: 700.37 | K174: 685.9 | L174: 668.15 | M174: 7.32703
A175: 166 | B175: GPPL | C175: 101.5 | D175: 102.37 | E175: 100.23 | F175: 98.97 | G175: 96.83 | H175: 103.63 | I175: 105.77 | J175: 107.03 | K175: 104.5 | L175: 101.1 | M175: 0.55809
A176: 167 | B176: GRANULES | C176: 88.35 | D176: 88.38 | E176: 86.97 | F176: 85.58 | G176: 84.17 | H176: 89.77 | I176: 91.18 | J176: 92.57 | K176: 89.8 | L176: 87 | M176: 8.08391
A177: 168 | B177: GRAPHITE | C177: 772.25 | D177: 772.70 | E177: 764.40 | F177: 756.55 | G177: 748.25 | H177: 780.55 | I177: 788.85 | J177: 796.70 | K177: 781 | L177: 764.85 | M177: 7.21682
A178: 169 | B178: GRASIM | C178: 813.75 | D178: 817.52 | E178: 807.03 | F178: 800.32 | G178: 789.83 | H178: 824.23 | I178: 834.72 | J178: 841.43 | K178: 828 | L178: 810.8 | M178: 11.33383
A179: 170 | B179: GREAVESCOT | C179: 119.35 | D179: 119.58 | E179: 118.67 | F179: 117.98 | G179: 117.07 | H179: 120.27 | I179: 121.18 | J179: 121.87 | K179: 120.5 | L179: 118.9 | M179: 1.34191
A180: 171 | B180: GREENPLY | C180: 137.65 | D180: 138.85 | E180: 135.00 | F180: 132.35 | G180: 128.50 | H180: 141.50 | I180: 145.35 | J180: 148.00 | K180: 142.7 | L180: 136.2 | M180: 1.76727
A181: 172 | B181: GRUH | C181: 312.05 | D181: 312.98 | E181: 307.72 | F181: 303.38 | G181: 298.12 | H181: 317.32 | I181: 322.58 | J181: 326.92 | K181: 318.25 | L181: 308.65 | M181: 2.86477
A182: 173 | B182: GSFC | C182: 108.9 | D182: 109.13 | E182: 107.87 | F182: 106.83 | G182: 105.57 | H182: 110.17 | I182: 111.43 | J182: 112.47 | K182: 110.4 | L182: 108.1 | M182: 10.15963
A183: 174 | B183: GSKCONS | C183: 7605.05 | D183: 7588.37 | E183: 7531.73 | F183: 7458.42 | G183: 7401.78 | H183: 7661.68 | I183: 7718.32 | J183: 7791.63 | K183: 7645 | L183: 7515.05 | M183: 0.1969
A184: 175 | B184: GSPL | C184: 176.35 | D184: 175.50 | E184: 173.70 | F184: 171.05 | G184: 169.25 | H184: 178.15 | I184: 179.95 | J184: 182.60 | K184: 177.3 | L184: 172.85 | M184: 1.59943
A185: 176 | B185: GUJALKALI | C185: 524.6 | D185: 526.90 | E185: 513.30 | F185: 502.00 | G185: 488.40 | H185: 538.20 | I185: 551.80 | J185: 563.10 | K185: 540.5 | L185: 515.6 | M185: 0.23495
A186: 177 | B186: GUJFLUORO | C186: 875.5 | D186: 880.30 | E186: 868.70 | F186: 861.90 | G186: 850.30 | H186: 887.10 | I186: 898.70 | J186: 905.50 | K186: 891.9 | L186: 873.5 | M186: 0.14061
A187: 178 | B187: GUJGASLTD | C187: 669.35 | D187: 672.12 | E187: 664.23 | F187: 659.12 | G187: 651.23 | H187: 677.23 | I187: 685.12 | J187: 690.23 | K187: 680 | L187: 667 | M187: 0.14126
A188: 179 | B188: GULFOILLUB | C188: 819.65 | D188: 823.22 | E188: 813.43 | F188: 807.22 | G188: 797.43 | H188: 829.43 | I188: 839.22 | J188: 845.43 | K188: 833 | L188: 817 | M188: 0.14782
A189: 180 | B189: GVKPIL | C189: 7.8 | D189: 7.87 | E189: 7.73 | F189: 7.67 | G189: 7.53 | H189: 7.93 | I189: 8.07 | J189: 8.13 | K189: 8 | L189: 7.8 | M189: 7.5136
A190: 181 | B190: HATHWAY | C190: 31.25 | D190: 31.12 | E190: 30.88 | F190: 30.52 | G190: 30.28 | H190: 31.48 | I190: 31.72 | J190: 32.08 | K190: 31.35 | L190: 30.75 | M190: 5.74346
A191: 182 | B191: HATSUN | C191: 621.45 | D191: 620.90 | E191: 617.65 | F191: 613.85 | G191: 610.60 | H191: 624.70 | I191: 627.95 | J191: 631.75 | K191: 624.15 | L191: 617.1 | M191: 0.02199
A192: 183 | B192: HAVELLS | C192: 684.85 | D192: 685.13 | E192: 677.72 | F192: 670.58 | G192: 663.17 | H192: 692.27 | I192: 699.68 | J192: 706.82 | K192: 692.55 | L192: 678 | M192: 14.82409
A193: 184 | B193: HCC | C193: 11.25 | D193: 11.28 | E193: 11.12 | F193: 10.98 | G193: 10.82 | H193: 11.42 | I193: 11.58 | J193: 11.72 | K193: 11.45 | L193: 11.15 | M193: 47.38358
A194: 185 | B194: HCL-INSYS | C194: 24.9 | D194: 25.00 | E194: 24.65 | F194: 24.40 | G194: 24.05 | H194: 25.25 | I194: 25.60 | J194: 25.85 | K194: 25.35 | L194: 24.75 | M194: 5.93916
A195: 186 | B195: HCLTECH | C195: 948.8 | D195: 950.48 | E195: 940.97 | F195: 933.13 | G195: 923.62 | H195: 958.32 | I195: 967.83 | J195: 975.67 | K195: 960 | L195: 942.65 | M195: 25.48404
A196: 187 | B196: HDFC | C196: 1948.85 | D196: 1944.62 | E196: 1934.23 | F196: 1919.62 | G196: 1909.23 | H196: 1959.23 | I196: 1969.62 | J196: 1984.23 | K196: 1955 | L196: 1930 | M196: 16.45443
A197: 188 | B197: HDFCBANK | C197: 2105.05 | D197: 2113.90 | E197: 2089.60 | F197: 2074.15 | G197: 2049.85 | H197: 2129.35 | I197: 2153.65 | J197: 2169.10 | K197: 2138.2 | L197: 2098.45 | M197: 29.09967
A198: 189 | B198: HDIL | C198: 23.7 | D198: 23.50 | E198: 23.10 | F198: 22.50 | G198: 22.10 | H198: 24.10 | I198: 24.50 | J198: 25.10 | K198: 23.9 | L198: 22.9 | M198: 29.06362
A199: 190 | B199: HEG | C199: 3694.65 | D199: 3687.87 | E199: 3627.83 | F199: 3561.02 | G199: 3500.98 | H199: 3754.68 | I199: 3814.72 | J199: 3881.53 | K199: 3747.9 | L199: 3621.05 | M199: 2.14881
A200: 191 | B200: HEIDELBERG | C200: 151.1 | D200: 151.22 | E200: 149.93 | F200: 148.77 | G200: 147.48 | H200: 152.38 | I200: 153.67 | J200: 154.83 | K200: 152.5 | L200: 150.05 | M200: 0.38667
A201: 192 | B201: HERITGFOOD | C201: 550.95 | D201: 549.65 | E201: 534.30 | F201: 517.65 | G201: 502.30 | H201: 566.30 | I201: 581.65 | J201: 598.30 | K201: 565 | L201: 533 | M201: 0.5913
A202: 193 | B202: HEROMOTOCO | C202: 3128.8 | D202: 3151.15 | E202: 3092.30 | F202: 3055.80 | G202: 2996.95 | H202: 3187.65 | I202: 3246.50 | J202: 3283.00 | K202: 3210 | L202: 3114.65 | M202: 3.57087
A203: 194 | B203: HEXAWARE | C203: 325.1 | D203: 323.12 | E203: 318.78 | F203: 312.47 | G203: 308.13 | H203: 329.43 | I203: 333.77 | J203: 340.08 | K203: 327.45 | L203: 316.8 | M203: 11.82016
A204: 195 | B204: HFCL | C204: 21.05 | D204: 21.13 | E204: 20.82 | F204: 20.58 | G204: 20.27 | H204: 21.37 | I204: 21.68 | J204: 21.92 | K204: 21.45 | L204: 20.9 | M204: 14.15485
A205: 196 | B205: HIMATSEIDE | C205: 216.85 | D205: 216.88 | E205: 213.17 | F205: 209.48 | G205: 205.77 | H205: 220.57 | I205: 224.28 | J205: 227.97 | K205: 220.6 | L205: 213.2 | M205: 0.35696
A206: 197 | B206: HINDALCO | C206: 220.6 | D206: 221.37 | E206: 218.83 | F206: 217.07 | G206: 214.53 | H206: 223.13 | I206: 225.67 | J206: 227.43 | K206: 223.9 | L206: 219.6 | M206: 79.47144
... 304 more rows

Sheet Bulk Deals
E6: Back To Main Page
A7: Subject : | B7: BULK DEAL | D7: =Main!B10 -> 2018-12-28
A9: Date | B9: Scrip code | C9: Scrip Name | D9: Client Name | E9: Buy / Sell | F9: Quantity Traded | G9: Trade Price / Wt.Avg.trade price | H9: Exchange
A10: 2018-12-27 | B10: 541702 | C10: ASHNI | D10: ARPIT GIRISH MACHHI | E10: BUY | F10: 16,000 | G10: 8.6 | H10: BSE
A11: 2018-12-27 | B11: 542057 | C11: BCPL | D11: SHERWOOD SECURITIES PVT LTD | E11: SELL | F11: 92,000 | G11: 32 | H11: BSE
A12: 2018-12-27 | B12: 506197 | C12: BLISSGVS | D12: VIBHA GAGAN SHARMA | E12: SELL | F12: 550,000 | G12: 139.99 | H12: BSE
A13: 2018-12-27 | B13: 506197 | C13: BLISSGVS | D13: ARIAN INVESTMENT LTD | E13: BUY | F13: 9,510,281 | G13: 139.99 | H13: BSE
A14: 2018-12-27 | B14: 506197 | C14: BLISSGVS | D14: NARSIMHA SHIBROOR KAMATH | E14: SELL | F14: 4,000,000 | G14: 140 | H14: BSE
A15: 2018-12-27 | B15: 506197 | C15: BLISSGVS | D15: SHRUTI VISHAL RAO | E15: SELL | F15: 2,500,000 | G15: 140 | H15: BSE
A16: 2018-12-27 | B16: 506197 | C16: BLISSGVS | D16: VIBHA GAGAN SHARMA | E16: SELL | F16: 2,500,000 | G16: 140.01 | H16: BSE
A17: 2018-12-27 | B17: 538521 | C17: CROWNTOURS | D17: JAY BHAVSAR | E17: BUY | F17: 15,554 | G17: 23.01 | H17: BSE
A18: 2018-12-27 | B18: 532326 | C18: INTENTECH | D18: UTSAV PRAMODKUMAR SHRIVASTAV | E18: BUY | F18: 232,863 | G18: 41.3 | H18: BSE
A19: 2018-12-27 | B19: 532326 | C19: INTENTECH | D19: SASMEETA SRIVASTAVA | E19: SELL | F19: 230,349 | G19: 41.3 | H19: BSE
A20: 2018-12-27 | B20: 505737 | C20: INTLCOMBQ | D20: UTSAV PRAMODKUMAR SHRIVASTAV | E20: BUY | F20: 24,000 | G20: 278.1 | H20: BSE
A21: 2018-12-27 | B21: 505737 | C21: INTLCOMBQ | D21: SASMEETA SRIVASTAVA | E21: SELL | F21: 23,995 | G21: 278.1 | H21: BSE
A22: 2018-12-27 | B22: 522183 | C22: ITL | D22: UTSAV PRAMODKUMAR SHRIVASTAV | E22: BUY | F22: 33,000 | G22: 176.45 | H22: BSE
A23: 2018-12-27 | B23: 522183 | C23: ITL | D23: SASMEETA SRIVASTAVA | E23: SELL | F23: 33,000 | G23: 176.45 | H23: BSE
A24: 2018-12-27 | B24: 538765 | C24: JSHL | D24: RATAN HOUSING DEVELOPMENT LTD | E24: SELL | F24: 50,000 | G24: 5.34 | H24: BSE
A25: 2018-12-27 | B25: 531512 | C25: ORIENTTR | D25: AARTI KHETARPAL | E25: BUY | F25: 60,000 | G25: 23.75 | H25: BSE
A26: 2018-12-27 | B26: 531952 | C26: RIBATEX | D26: KABIR SHRAN DAGAR | E26: BUY | F26: 48,864 | G26: 115.23 | H26: BSE
A27: 2018-12-27 | B27: 531952 | C27: RIBATEX | D27: KABIR SHRAN DAGAR | E27: SELL | F27: 950 | G27: 115.5 | H27: BSE
A28: 2018-12-27 | B28: 534734 | C28: RMCHEM | D28: RAM ALLOY CASTINGS PRIVATE LIMITED | E28: SELL | F28: 2,100,000 | G28: 1.52 | H28: BSE
A29: 2018-12-27 | B29: 540082 | C29: RSTL | D29: MACRO COMMODEAL PRIVATE LIMITED | E29: SELL | F29: 45,000 | G29: 15.35 | H29: BSE
A30: 2018-12-27 | B30: 540082 | C30: RSTL | D30: NIMMI CHANDIRAMANI | E30: BUY | F30: 42,000 | G30: 15.35 | H30: BSE
A31: 2018-12-27 | B31: 538557 | C31: SAIBABA | D31: NIKUL JAGDISHCHANDRA PATEL | E31: SELL | F31: 816,000 | G31: 1.7 | H31: BSE
A32: 2018-12-27 | B32: 506906 | C32: SCBL | D32: RAJA RAM SHARMA | E32: BUY | F32: 61,000 | G32: 8.24 | H32: BSE
A33: 2018-12-27 | B33: 539520 | C33: SHAILJA | D33: HIRAL KIRTI SAVLA | E33: BUY | F33: 35000 | G33: 10.5 | H33: BSE
A34: 2018-12-27 | B34: 539520 | C34: SHAILJA | D34: OMKAR RAJEEV GADRE | E34: BUY | F34: 16261 | G34: 10.83 | H34: BSE
A35: 2018-12-27 | B35: 539520 | C35: SHAILJA | D35: OMKAR RAJEEV GADRE | E35: SELL | F35: 6500 | G35: 11.36 | H35: BSE
A36: 2018-12-27 | B36: 539520 | C36: SHAILJA | D36: RAMNARESH DASHADEEN NIRMAL | E36: SELL | F36: 19130 | G36: 11.36 | H36: BSE
A37: 2018-12-27 | B37: 539520 | C37: SHAILJA | D37: NAVEEN GUPTA | E37: SELL | F37: 27977 | G37: 10.93 | H37: BSE
A38: 2018-12-27 | B38: 539520 | C38: SHAILJA | D38: NAVEEN GUPTA | E38: BUY | F38: 17783 | G38: 10.79 | H38: BSE
A39: 2018-12-27 | B39: 539520 | C39: SHAILJA | D39: SWAMINATHAN KRISHNAN | E39: BUY | F39: 41837 | G39: 11.28 | H39: BSE
A40: 2018-12-27 | B40: 539520 | C40: SHAILJA | D40: SWAMINATHAN KRISHNAN | E40: SELL | F40: 41837 | G40: 10.5 | H40: BSE
A41: 2018-12-27 | B41: 539520 | C41: SHAILJA | D41: SANJAYPBHANDARIHUF | E41: SELL | F41: 19740 | G41: 10.4 | H41: BSE
A42: 2018-12-27 | B42: 539428 | C42: TEJNAKSH | D42: UTSAV PRAMODKUMAR SHRIVASTAV | E42: BUY | F42: 104880 | G42: 69.1 | H42: BSE
A43: 2018-12-27 | B43: 539428 | C43: TEJNAKSH | D43: SASMEETA SRIVASTAVA | E43: SELL | F43: 104880 | G43: 69.1 | H43: BSE
A44: 2018-12-27 | B44: 539402 | C44: VAL | D44: TARUN CHAUHAN | E44: SELL | F44: 196,000 | G44: 19 | H44: BSE
A45: 2018-12-27 | B45: 539402 | C45: VAL | D45: OVERSKUD MULTI ASSET MANAGEMENT PRIVATE LIMITED | E45: BUY | F45: 164,000 | G45: 19 | H45: BSE
A46: 2018-12-27 | B46: AJOONI | C46: Ajooni Biotech Limited | D46: ASIA BULLS SECURITY BROKERS PRIVATE LIMITED | E46: BUY | F46: 32,000 | G46: 21.78 | H46: NSE
A47: 2018-12-27 | B47: AKASH | C47: Akash Infra-Projects Ltd. | D47: SILKON TRADES LLP | E47: BUY | F47: 48,000 | G47: 100 | H47: NSE
A48: 2018-12-27 | B48: ASTRAMICRO | C48: Astra Microwave Products | D48: ADVENTZ FINANCE PRIVATE LIMITED | E48: BUY | F48: 825,000 | G48: 78.25 | H48: NSE
A49: 2018-12-27 | B49: ASTRAMICRO | C49: Astra Microwave Products | D49: TEXMACO INFRASTRUCTURE & HOLDINGS LIMITED | E49: BUY | F49: 825,000 | G49: 78.25 | H49: NSE
A50: 2018-12-27 | B50: BEML | C50: BEML Limited | D50: ALPHAGREP SECURITIES PRIVATE LIMITED | E50: BUY | F50: 344,604 | G50: 904.2 | H50: NSE
A51: 2018-12-27 | B51: DHFL | C51: Dewan Housing Fin Corp | D51: BNP PARIBAS ARBITRAGE | E51: BUY | F51: 2,547,000 | G51: 239.69 | H51: NSE
A52: 2018-12-27 | B52: HIGHGROUND | C52: High Ground Entp Ltd | D52: ARCADIA SHARE & STOCK BROKERS PRIVATE LIMITED | E52: BUY | F52: 624,587 | G52: 8.7 | H52: NSE
A53: 2018-12-27 | B53: JETAIRWAYS | C53: Jet Airways (India) Ltd. | D53: TOWER RESEARCH CAPITAL MARKETS INDIA PRIVATE LIMITED | E53: BUY | F53: 1,097,220 | G53: 269.55 | H53: NSE
A54: 2018-12-27 | B54: MOHOTAIND | C54: Mohota Industries Ltd. | D54: AGARWAL ARCHANA | E54: BUY | F54: 198,859 | G54: 81.18 | H54: NSE
A55: 2018-12-27 | B55: MOHOTAIND | C55: Mohota Industries Ltd. | D55: JHAVERI TRADING AND INVESTMENT PVT LTD | E55: BUY | F55: 117,194 | G55: 80.37 | H55: NSE
A56: 2018-12-27 | B56: RPPL | C56: Rajshree PolyPack Ltd | D56: UNIFI FINANCIAL PVT LTD | E56: BUY | F56: 92,000 | G56: 105 | H56: NSE
A57: 2018-12-27 | B57: SELAN | C57: Selan Exploration Technol | D57: CHIMANLAL P. MATALIA | E57: BUY | F57: 96,908 | G57: 194.05 | H57: NSE
A58: 2018-12-27 | B58: SELAN | C58: Selan Exploration Technol | D58: N.K. SECURITIES | E58: BUY | F58: 90,352 | G58: 193.63 | H58: NSE
A59: 2018-12-27 | B59: AKASH | C59: Akash Infra-Projects Ltd. | D59: SANGHVI ASSOCIATES | E59: SELL | F59: 48,000 | G59: 100 | H59: NSE
A60: 2018-12-27 | B60: ASTRAMICRO | C60: Astra Microwave Products | D60: RATNABALI INVESTMENT PRIVATE LIMITED | E60: SELL | F60: 1,650,000 | G60: 78.25 | H60: NSE
A61: 2018-12-27 | B61: BEML | C61: BEML Limited | D61: ALPHAGREP SECURITIES PRIVATE LIMITED | E61: SELL | F61: 344,604 | G61: 904.47 | H61: NSE
A62: 2018-12-27 | B62: CAPF | C62: Capital First Limited | D62: M/S KOTAK MAHINDRA MUTUAL FUND | E62: SELL | F62: 553,600 | G62: 587.71 | H62: NSE
A63: 2018-12-27 | B63: HIGHGROUND | C63: High Ground Entp Ltd | D63: ARCADIA SHARE & STOCK BROKERS PRIVATE LIMITED | E63: SELL | F63: 624,587 | G63: 8.71 | H63: NSE
A64: 2018-12-27 | B64: JETAIRWAYS | C64: Jet Airways (India) Ltd. | D64: TOWER RESEARCH CAPITAL MARKETS INDIA PRIVATE LIMITED | E64: SELL | F64: 1,097,220 | G64: 269.84 | H64: NSE
A65: 2018-12-27 | B65: JISLDVREQS | C65: Jain DVR Equity Shares | D65: SECURITIES HOLDINGS INDIA PVT LTD | E65: SELL | F65: 128153 | G65: 50.85 | H65: NSE
A66: 2018-12-27 | B66: MIC | C66: MIC Electronics Limited | D66: USHA RANI MAGANTI | E66: SELL | F66: 1160550 | G66: 1.45 | H66: NSE
A67: 2018-12-27 | B67: MOHOTAIND | C67: Mohota Industries Ltd. | D67: AGARWAL ARCHANA | E67: SELL | F67: 198859 | G67: 80.78 | H67: NSE
A68: 2018-12-27 | B68: MOHOTAIND | C68: Mohota Industries Ltd. | D68: JHAVERI TRADING AND INVESTMENT PVT LTD | E68: SELL | F68: 126144 | G68: 80.92 | H68: NSE
A69: 2018-12-27 | B69: SELAN | C69: Selan Exploration Technol | D69: CHIMANLAL P. MATALIA | E69: SELL | F69: 96908 | G69: 194.03 | H69: NSE
A70: 2018-12-27 | B70: SELAN | C70: Selan Exploration Technol | D70: N.K. SECURITIES | E70: SELL | F70: 90352 | G70: 193.78 | H70: NSE
A71: 2018-12-27 | B71: SELAN | C71: Selan Exploration Technol | D71: SEETHA KUMARI | E71: SELL | F71: 132736 | G71: 193.87 | H71: NSE
A72: 2018-12-27 | B72: TATAGLOBAL | C72: Tata Global Beverages Ltd | D72: UBS PRINCIPAL CAPITAL ASIA LIMITED | E72: SELL | F72: 5223483 | G72: 219.88 | H72: NSE

Sheet Call Tracker (Equity & F&O)
M5: Back To Main Page
A6: Retail Research Technical Calls & Fundamental Performance Report for the month of December -2018
M7: =Main!B10 -> 2018-12-28
B8: Positional Call
A9: Sr.no | B9: Date | D9: Company | E9: Rec | F9: Rec Price | G9: Stop Loss*** | H9: Call Closed At | I9: Target | J9: Remark | K9: Profit / Loss per Share | L9: Gain / Loss % | M9: Status | N9: Closed Date | O9: NSE Closed Price
A10: 1 | B10: 2018-11-14 | D10: ASHOKLEY | E10: Buy | F10: 108 | G10: 100.7 | H10: 111.25 | I10: 122-125 | J10: Part Profit of Rs.3.25/- | K10: =H10-F10 -> 3.25 | L10: =K10/F10 -> 3.01% | M10: Successful | N10: 2018-11-30 | R10: R
A11: 2 | B11: 2018-11-21 | D11: ADANIPORTS | E11: Sell | F11: 359.5 | G11: 377.7 | H11: 349 | I11: 322-326 | J11: Profit of Rs.10.5/- | K11: =F11-H11 -> 10.5 | L11: 2.92% | M11: Successful | N11: 2018-12-11 | R11: R
A12: 3 | B12: 2018-11-29 | D12: JSWSTEEL | E12: Buy{} | F12: 312 | G12: 297.7 | H12: =(322+296)/2 -> 309 | I12: 344-350 | J12: Loss of Rs.3/- | K12: =H12-F12 -> -3 | L12: =K12/F12 -> -0.96% | M12: Unsuccessful | N12: 2018-12-07 | R12: R
A13: 4 | B13: 2018-11-30 | D13: RAYMOND | E13: Sell | F13: 820 | G13: 861.6 | H13: 789 | I13: 745-735 | J13: Profit of Rs.31/- | K13: =F13-H13 -> 31 | L13: 3.78% | M13: Successful | N13: 2018-12-07 | R13: R
A14: 5 | B14: 2018-11-30 | D14: INFY | E14: Buy | F14: 665 | G14: 628 | H14: 685 | I14: 725 | J14: Profit of Rs.20/- | K14: 20 | L14: =K14/F14 -> 3.01% | M14: Successful | N14: 2018-12-07 | R14: H
A15: 6 | B15: 2018-12-13 | D15: JSWSTEEL | E15: Buy | F15: 301.5 | G15: 289 | H15: 310.75 | I15: 325-330 | J15: Profit of Rs.9.25/- | K15: =H15-F15 -> 9.25 | L15: =K15/F15 -> 3.07% | M15: Successful | N15: 2018-12-19 | R15: H
A16: 7 | B16: 2018-12-17 | D16: COALINDIA | E16: Buy | F16: 245.5 | G16: 233 | H16: 253.4 | I16: 260-265 | J16: Profit of Rs.7.9/- | K16: =H16-F16 -> 7.9 | L16: =K16/F16 -> 3.22% | M16: Successful | N16: 2018-12-20 | R16: H
A17: 8 | B17: 2018-12-21 | D17: TATAGLOBAL | E17: Buy | F17: 217 | G17: 209 | H17: 223.5 | I17: 235-240 | J17: Part Profit of Rs.6.25/- | K17: 6.5 | L17: 3.00% | M17: Successful | N17: 2018-12-24 | R17: H
A18: 9 | B18: 2018-12-24 | D18: JSWSTEEL | E18: Buy | F18: 299-300 | G18: 289 | I18: 320-325 | J18: Open | O18: =VLOOKUP(D18,Sheet2!A2:M1497,6,0) -> 292.95 | R18: H
A19: 10 | B19: 2018-12-24 | D19: TATAPOWER | E19: Buy | F19: 77.2-77.4 | G19: 73.7 | I19: 83-84 | J19: Open | O19: =VLOOKUP(D19,Sheet2!A3:M1498,6,0) -> 77 | R19: R
A20: 11 | B20: 2018-12-26 | D20: CONCOR | E20: Buy | F20: 640.5 | G20: 608.8 | H20: 669 | I20: 700-710 | J20: Profit of Rs.28.5/- | K20: =H20-F20 -> 28.5 | L20: =K20/F20 -> 4.45% | M20: Successful | N20: 2018-12-27 | R20: R
A21: 12 | B21: 2018-12-27 | D21: TVSMOTOR | E21: Buy | F21: 550-555 | G21: 519 | I21: 600-620 | J21: Open | O21: =VLOOKUP(D21,Sheet2!A5:M1800,6,0) -> 549.95 | R21: H
A34: CLBS = Closing Basis *** | F34: Reinitiated $
A35: Dividend adjusted <> | F35: Revised stoploss #
A36: Part book {}
A37: Master Trade High Risk
A38: Sr.no | B38: Date | D38: Company | E38: Rec | F38: Rec Price | G38: Stop Loss | H38: Call Closed At | I38: Target | J38: Remark | K38: Profit / Loss per share | L38: Gain / Loss per Lot | M38: Lot | N38: Status | O38: Closed Date
A39: 1 | B39: 2018-11-30 | D39: KOTAKBANK DEC FUT | E39: Buy | F39: 1229.5 | G39: 1195 | H39: 1202.5 | I39: 1270-1290 | J39: Loss of Rs. 15.5 /- | K39: =H39-F39 -> -27 | L39: =-15.5*800 -> -12400 | M39: 800 | N39: Unsuccessful | O39: 2018-12-07 | R39: H
D40: KOTAKBANK DEC 1260 CE | E40: Sell | F40: 23.5 | H40: 12 | K40: =F40-H40 -> 11.5 | R40: H
A41: 2 | B41: 2018-12-03 | D41: ADANIPORTS DEC FUT | E41: Sell | F41: 373 | G41: 382.5 | H41: 370 | I41: 360 | J41: Profit of Rs. 3 /- | K41: 3 | L41: 7500 | M41: 2500 | N41: Successful | O41: 2018-12-07 | R41: H
D42: ADANIPORTS DEC 360 PE | E42: Sell | F42: 9 | H42: 9 | K42: 0 | R42: H
A43: 3 | B43: 2018-12-07 | D43: NIFTY DEC FUT | E43: Sell | F43: 10657.5 | G43: 10786 | H43: 10575 | I43: 10400 | J43: Profit of Rs. 62.50 /- | K43: =F43-H43 -> 82.5 | L43: =M43*62.5 -> 4687.5 | M43: 75 | N43: Successful | O43: 2018-12-10 | R43: H
D44: NIFTY DEC 10500 PE | E44: Sell | F44: 125 | H44: 145 | K44: =F44-H44 -> -20 | R44: H
A45: 4 | B45: 2018-12-17 | D45: ADANIPORTS DEC FUT | E45: Sell | F45: 375.5 | G45: 382.5 | H45: 371.5 | I45: 360 | J45: Profit of Rs. 3 /- | K45: =F45-H45 -> 4 | L45: 7500 | M45: 2500 | N45: Successful | O45: 2018-12-17 | R45: H
D46: ADANIPORTS DEC 370 PE | E46: Sell | F46: 6.5 | H46: 7.5 | K46: =F46-H46 -> -1 | R46: H
A47: 5 | B47: 2018-12-18 | D47: COLPAL DEC FUT | E47: Sell | F47: 1312 | G47: 1335 | H47: 1335 | I47: 1260 | J47: Loss of Rs. 14.5 /- | K47: =F47-G47 -> -23 | L47: =-(700*14.5) -> -10150 | M47: 700 | N47: Unsuccessful | O47: 2018-12-19 | R47: H
D48: COLPAL DEC 1280 PE | E48: Sell | F48: 12 | H48: 3.5 | K48: =F48-H48 -> 8.5 | R48: H
A49: 6 | B49: 2018-12-19 | D49: ADANIPORTS DEC FUT | E49: Sell | F49: 375.5 | G49: 382.5 | H49: 371.5 | I49: 365 | J49: Profit of Rs. 3.5 /- | K49: =F49-H49 -> 4 | L49: =M49*3.5 -> 8750 | M49: 2500 | N49: Successful | O49: 2018-12-19 | R49: H
D50: ADANIPORTS DEC 370 PE | E50: Sell | F50: 5.25 | H50: 5.75 | K50: =F50-H50 -> -0.5 | R50: H
A51: 7 | B51: 2018-12-19 | D51: ADANIPORTS DEC FUT | E51: Sell | F51: 376.5 | G51: 382.5 | H51: 369.5 | I51: 365 | J51: Profit of Rs. 4.75 /- | K51: =F51-H51 -> 7 | L51: =M51*4.75 -> 11875 | M51: 2500 | N51: Successful | O51: 2018-12-21 | R51: H
D52: ADANIPORTS DEC 370 PE | E52: Sell | F52: 4.5 | H52: 6.75 | K52: =F52-H52 -> -2.25 | R52: H
A53: 8 | B53: 2018-12-26 | D53: NIFTY JAN FUT | E53: Buy | F53: 10582.5 | G53: 10440 | H53: 10672.5 | I53: 10800 | J53: Profit of Rs. 57.50 /- | K53: =H53-F53 -> 90 | L53: =M53*57.5 -> 4312.5 | M53: 75 | N53: Successful | O53: 2018-12-26 | R53: H
D54: Nifty JAN 10700 CE | E54: Sell | F54: 160 | H54: 192.5 | K54: =F54-H54 -> -32.5 | R54: H
A57: Master Trade Medium Risk
A58: Sr.no | B58: Date | D58: Company | E58: Rec | F58: Rec Price | G58: Stop Loss | H58: Call Closed At | I58: Target | J58: Remark | K58: Profit/ Loss per lot | L58: Gain / Loss per Lot | M58: Lot | N58: Status | O58: Closed Date
A59: 1 | B59: 2018-12-03 | D59: Nifty DEC 10900 PE | E59: Buy | F59: 180 | H59: 222.5 | J59: Profit of Rs 18.5/- | K59: =H59-F59 -> 42.5 | L59: =75*20 -> 1500 | M59: 75 | N59: Successful | O59: 2018-12-05 | R59: H
D60: Nifty DEC 10700 PE | E60: Sell | F60: 115 | H60: 139 | K60: =F60-H60 -> -24 | R60: H
A61: 2 | B61: 2018-12-04 | D61: ITC DEC 285 CE | E61: Buy | F61: 5.75 | H61: 0 | J61: Loss of Rs. 1.5 /- | K61: =H61-F61 -> -5.75 | L61: =M61*-1.5 -> -3600 | M61: 2400 | N61: Unsuccessful | O61: 2018-12-27 | R61: H
D62: ITC DEC 290 CE | E62: Sell | F62: 4.25 | H62: 0 | K62: =F62-H62 -> 4.25 | R62: H
A63: 3 | B63: 2018-12-26 | D63: NIFTY DEC 10600 CE | E63: Buy | F63: 37 | H63: 59.5 | I63: 100 | J63: Profit of Rs.22.5/- | K63: =H63-F63 -> 22.5 | L63: =M63*K63 -> 1687.5 | M63: 75 | N63: Successful | O63: 2018-12-26 | R63: R
A64: 4 | B64: 2018-12-26 | D64: BANKNIFTY DEC 26600 CE | E64: Buy | F64: 72.5 | H64: 111 | I64: 200 | J64: Profit of Rs.38.5/- | K64: =H64-F64 -> 38.5 | L64: =M64*K64 -> 770 | M64: 20 | N64: Successful | O64: 2018-12-26 | R64: R
B75: Smart Delivery Trade
A76: Sr.no | B76: Date | D76: Company | E76: Rec | F76: Rec Price | G76: Stop Loss*** | H76: Call Closed At | I76: Target | J76: Remark | K76: Profit / Loss per Share | L76: Gain / Loss % | M76: Status | N76: Closed Date | O76: NSE Closed Price
A77: 1 | B77: 2018-11-27 | D77: MGL | E77: Buy | F77: 818.5 | G77: 793.7 | H77: 847.5 | I77: 860-870 | J77: Profit of Rs.29/- | K77: =H77-F77 -> 29 | L77: =K77/F77 -> 3.54% | M77: Successful | N77: 2018-12-03 | R77: R
A78: 2 | B78: 2018-11-28 | D78: ESCORTS | E78: Buy | F78: 691 | G78: 669 | H78: 716.5 | I78: 725-735 | J78: Profit of Rs.25.5/- | K78: =H78-F78 -> 25.5 | L78: =K78/F78 -> 3.69% | M78: Successful | N78: 2018-12-03 | R78: R
A79: 3 | B79: 2018-11-28 | D79: RELIANCE | E79: Sell | F79: 1152.5 | G79: 1186 | H79: 1152.5 | I79: 1100-1090 | J79: Neutral | K79: =F79-H79 -> 0 | L79: 0.00% | M79: Neutral | N79: 2018-12-05 | R79: H
A80: 4 | B80: 2018-11-30 | D80: BAJAJ-AUTO | E80: Buy | F80: 2760 | G80: 2680 | H80: 2837 | I80: 2870-2900 | J80: Profit of Rs.77/- | K80: =H80-F80 -> 77 | L80: 2.79% | M80: Successful | N80: 2018-12-12 | R80: H
A81: 5 | B81: 2018-12-03 | D81: PVR | E81: Sell | F81: 1454 | G81: 1505 | H81: 1505 | I81: 1370-1350 | J81: Loss of Rs.51/- | K81: =F81-H81 -> -51 | L81: =K81/F81 -> -3.51% | M81: Unsuccessful | N81: 2018-12-03 | R81: H
A82: 6 | B82: 2018-12-07 | D82: TATASTEEL | E82: Buy | F82: 516 | G82: 495 | H82: 529.5 | I82: 550 | J82: Profit of Rs.13.5/- | K82: =H82-F82 -> 13.5 | L82: 2.62% | M82: Successful | N82: 2018-12-19 | R82: H
A83: 7 | B83: 2018-12-07 | D83: RAMCOCEM | E83: Buy | F83: 597.5 | G83: 580 | H83: 615 | I83: 635-640 | J83: Profit of Rs.17.5/- | K83: =H83-F83 -> 17.5 | L83: =K83/F83 -> 2.93% | M83: Successful | N83: 2018-12-12 | R83: R
A84: 8 | B84: 2018-12-10 | D84: CONCOR | E84: Buy | F84: 648 | G84: 627.7 | H84: 679 | I84: 680-690 | J84: Profit of Rs.31/- | K84: =H84-F84 -> 31 | L84: =K84/F84 -> 4.78% | M84: Successful | N84: 2018-12-10 | R84: R
A85: 9 | B85: 2018-12-12 | D85: LUPIN | E85: Buy | F85: 817.5 | G85: 788.7 | H85: 811 | I85: 865-875 | J85: Neutral | K85: -6.5 | L85: -0.80% | M85: Neutral | N85: 2018-12-13 | R85: R
A86: 10 | B86: 2018-12-17 | D86: TVSMOTOR | E86: Buy | F86: 574 | G86: 548 | H86: 577.5 | I86: 600-610 | J86: Neutral | K86: =H86-F86 -> 3.5 | L86: =K86/F86 -> 0.61% | M86: Neutral | N86: 2018-12-21 | R86: H
A87: 11 | B87: 2018-12-18 | D87: BAJFINANCE | E87: Sell | F87: 2455 | G87: 2525.25 | H87: 2525.25 | I87: 2320-2300 | J87: Loss of Rs.70.25/- | K87: =F87-H87 -> -70.25 | L87: =K87/F87 -> -2.86% | M87: Unsuccessful | N87: 2018-12-18 | R87: R
A88: 12 | B88: 2018-12-18 | D88: BHEL | E88: Sell | F88: 69.85 | G88: 72 | H88: 71.75 | I88: 66 | J88: Loss of Rs.1.9/- | K88: =F88-H88 -> -1.9 | L88: =K88/F88 -> -2.72% | M88: Unsuccessful | N88: 2018-12-24 | R88: H
A89: 13 | B89: 2018-12-19 | D89: BIOCON | E89: Buy | F89: 635 | G89: 615 | H89: 612.5 | I89: 670-680 | J89: Loss of Rs.22.5/- | K89: =H89-F89 -> -22.5 | L89: -3.54% | M89: Unsuccessful | N89: 2018-12-24 | R89: H
A90: 14 | B90: 2018-12-20 | D90: AUROPHARMA | E90: Buy | F90: 730-735 | G90: 709.3 | I90: 775-785 | J90: Open | O90: =VLOOKUP(D90,Sheet2!A74:M1569,6,0) -> 711.85 | R90: R
A91: 15 | B91: 2018-12-24 | D91: RELIANCE | E91: Buy | F91: 1093 | G91: 1057 | H91: 1124.5 | I91: 1150-1180 | J91: Profit of Rs.31.5/- | K91: =H91-F91 -> 31.5 | L91: =K91/F91 -> 2.88% | M91: Successful | N91: 2018-12-27 | R91: H
A92: 16 | B92: 2018-12-26 | D92: ACC | E92: Buy | F92: 1443 | G92: 1395 | H92: 1490 | I92: 1510-1530 | J92: Profit of Rs.47/- | K92: =H92-F92 -> 47 | L92: =K92/F92 -> 3.26% | M92: Successful | N92: 2018-12-27 | R92: H
A93: 17 | B93: 2018-12-26 | D93: TITAN | E93: Buy | F93: 885-890 | G93: 858.8 | I93: 935-945 | J93: Open | O93: =VLOOKUP(D93,Sheet2!A77:M1572,6,0) -> 887.65 | R93: R
A94: 18 | B94: 2018-12-26 | D94: ADANIPORTS | E94: Sell | F94: 374-375 | G94: 386.6 | I94: 350-355 | J94: Open | O94: =VLOOKUP(D94,Sheet2!A3:N1635,6,0) -> 384 | R94: R
A95: 19 | B95: 2018-12-27 | D95: HCLTECH | E95: Buy | F95: 944-948 | G95: 918 | I95: 1000 | J95: Open | O95: =VLOOKUP(D95,Sheet2!A4:N1636,6,0) -> 948.8 | R95: H
A103: CLBS = Closing Basis *** | F103: Reinitiated $
A104: Dividend adjusted <> | F104: Revised stoploss #
B107: Momentum Call
A108: Sr.no | B108: Date | D108: Company | E108: Rec | F108: Rec Price | G108: Stop Loss | H108: Call Closed At | I108: Target | J108: Remark | K108: Profit / Loss per Share/Lot | L108: Gain / Loss % | M108: Gain / Loss per Lot | N108: Lot | O108: Status | P108: Closed Date
A109: 1 | B109: 2018-11-29 | D109: AMARAJABAT DEC FUT | E109: Buy | F109: 723.5 | G109: 705 | H109: 705 | I109: 750 | J109: Loss of Rs.18.5/- | K109: =H109-F109 -> -18.5 | M109: =N109*K109 -> -11100 | N109: 600 | O109: Unsuccessful | P109: 2018-12-03 | R109: N
A110: 2 | B110: 2018-11-30 | D110: TATASTEEL | E110: Buy | F110: 534 | G110: 517 | H110: 549.5 | I110: 555-560 | J110: Profit of Rs.15.5/- | K110: =H110-F110 -> 15.5 | L110: =K110/F110 -> 2.90% | O110: Successful | P110: 2018-12-03 | R110: H
A111: 3 | B111: 2018-11-30 | D111: PIDILITIND DEC FUT | E111: Sell | F111: 1171 | G111: 1195 | H111: 1156.5 | I111: 1140-1130 | J111: Profit of Rs.14.5/- | K111: =F111-H111 -> 14.5 | M111: =N111*K111 -> 7250 | N111: 500 | O111: Successful | P111: 2018-12-03 | R111: H
A112: 4 | B112: 2018-12-03 | D112: UPL | E112: Buy | F112: 749 | G112: 737 | H112: 739.5 | I112: 774 | J112: Loss of Rs.9.5/- | K112: =H112-F112 -> -9.5 | M112: -11400 | N112: 1200 | O112: Unsuccessful | P112: 2018-12-03 | R112: N
A113: 5 | B113: 2018-12-03 | D113: ICICIBANK DEC FUT | E113: Sell | F113: 357.25 | G113: 362 | H113: 356 | I113: 348-346 | J113: Profit of Rs.1.25/- | K113: =F113-H113 -> 1.25 | M113: 3437.5 | N113: 2750 | O113: Neutral | P113: 2018-12-05 | R113: H
A114: 6 | B114: 2018-12-04 | D114: DRREDDY DEC FUT | E114: Sell | F114: 2721 | G114: 2760 | H114: 2692 | I114: 2650 | J114: Profit of Rs.29/- | K114: =F114-H114 -> 29 | M114: =N114*K114 -> 7250 | N114: 250 | O114: Successful | P114: 2018-12-05 | R114: R
A115: 7 | B115: 2018-12-04 | D115: TCS DEC FUT | E115: Buy | F115: 2005 | G115: 1945 | H115: 2030 | I115: 2080-2100 | J115: Profit of Rs.25/- | K115: =H115-F115 -> 25 | M115: =N115*K115 -> 6250 | N115: 250 | O115: Successful | P115: 2018-12-13 | R115: H
A116: 8 | B116: 2018-12-04 | D116: TATACHEM DEC FUT | E116: Buy | F116: 688 | G116: 673 | H116: 673 | I116: 710 | J116: Loss of Rs.15/- | K116: =H116-F116 -> -15 | M116: =N116*K116 -> -11250 | N116: 750 | O116: Unsuccessful | P116: 2018-12-05 | R116: N
A117: 9 | B117: 2018-12-04 | D117: AUROPHARMA DEC FUT | E117: Buy | F117: 824.5 | G117: 813 | H117: 813 | I117: 845-850 | J117: Loss of Rs.11.5/- | K117: =H117-F117 -> -11.5 | M117: =N117*K117 -> -11500 | N117: 1000 | O117: Unsuccessful | P117: 2018-12-05 | R117: H
A118: 10 | B118: 2018-12-05 | D118: DIVISLAB DEC FUT | E118: Sell | F118: 1507.5 | G118: 1532 | H118: 1486.5 | I118: 1460 | J118: Profit of Rs.21/- | K118: =F118-H118 -> 21 | M118: =N118*K118 -> 8400 | N118: 400 | O118: Successful | P118: 2018-12-05 | R118: R
A119: 11 | B119: 2018-12-05 | D119: PIDILITIND DEC FUT | E119: Sell | F119: 1171.5 | G119: 1192 | H119: 1145 | I119: 1130 | J119: Profit of Rs.26.5/- | K119: 26.5 | M119: =N119*K119 -> 10600 | N119: 400 | O119: Successful | P119: 2018-12-05 | R119: R
A120: 12 | B120: 2018-12-07 | D120: DRREDDY DEC FUT | E120: Sell | F120: 2707.5 | G120: 2747 | H120: 2674.5 | I120: 2630 | J120: Profit of Rs.33/- | K120: 33 | M120: 8250 | N120: 250 | O120: Successful | P120: 2018-12-07 | R120: R
A121: 13 | B121: 2018-12-07 | D121: BATAINDIA DEC FUT | E121: Sell | F121: 1062 | G121: 1083 | H121: 1037.5 | I121: 1020 | J121: Profit of Rs.24.5/- | K121: 24.5 | M121: =N121*K121 -> 13475 | N121: 550 | O121: Successful | P121: 2018-12-10 | R121: R
A122: 14 | B122: 2018-12-13 | D122: NIFTY DEC FUT | E122: Sell | F122: 10835 | G122: 10930 | H122: 10785 | I122: 10750-10700 | J122: Profit of Rs.50/- | K122: 50 | M122: 3750 | N122: 75 | O122: Successful | P122: 2018-12-13 | R122: H
A123: 15 | B123: 2018-12-13 | D123: BANKNIFTY DEC FUT | E123: Sell | F123: 26980 | G123: 27250 | H123: 26880 | I123: 26400 | J123: Profit of Rs.100/- | K123: 100 | M123: =N123*K123 -> 2000 | N123: 20 | O123: Successful | P123: 2018-12-13 | R123: H
A124: 16 | B124: 2018-12-14 | D124: NIFTY DEC FUT | E124: Sell | F124: 10800 | G124: 10905 | H124: 10905 | I124: 10650 | J124: Loss of Rs.105/- | K124: =F124-H124 -> -105 | M124: -7875 | N124: 75 | O124: Unsuccessful | P124: 2018-12-17 | R124: H
A125: 17 | B125: 2018-12-14 | D125: BATAINDIA DEC FUT | E125: Sell | F125: 1079 | G125: 1102 | H125: 1102 | I125: 1050-1040 | J125: Loss of Rs.23/- | K125: =F125-H125 -> -23 | M125: =N125*K125 -> -12650 | N125: 550 | O125: Unsuccessful | P125: 2018-12-18 | R125: R
A126: 18 | B126: 2018-12-14 | D126: PEL DEC FUT | E126: Sell | F126: 2155 | G126: 2191.3 | H126: 2132.5 | I126: 2100 | J126: Profit of Rs.22.5/- | K126: =F126-H126 -> 22.5 | M126: =N126*K126 -> 6795 | N126: 302 | O126: Successful | P126: 2018-12-14 | R126: R
A127: 19 | B127: 2018-12-17 | D127: NIITTECH DEC FUT | E127: Buy | F127: 1129 | G127: 1113 | H127: 1140 | I127: 1160 | J127: Profit of Rs.11/- | K127: =H127-F127 -> 11 | M127: 8250 | N127: 750 | O127: Successful | P127: 2018-12-17 | R127: R
A128: 20 | B128: 2018-12-17 | D128: GODREJIND DEC FUT | E128: Buy | F128: 541 | G128: 533 | H128: 549 | I128: 555 | J128: Profit of Rs.8/- | K128: =H128-F128 -> 8 | M128: =N128*K128 -> 12000 | N128: 1500 | O128: Successful | P128: 2018-12-17 | R128: N
A129: 21 | B129: 2018-12-18 | D129: BALKRISIND DEC FUT | E129: Buy | F129: 939 | G129: 922 | H129: 951.5 | I129: 968 | J129: Profit of Rs.12.5/- | K129: =H129-F129 -> 12.5 | M129: =N129*K129 -> 10000 | N129: 800 | O129: Successful | P129: 2018-12-20 | R129: R
A130: 22 | B130: 2018-12-18 | D130: HEROMOTOCO DEC FUT | E130: Sell | F130: 3270 | G130: 3325 | H130: 3325 | I130: 3180-3160 | J130: Loss of Rs.55/- | K130: =F130-H130 -> -55 | M130: =N130*K130 -> -11000 | N130: 200 | O130: Unsuccessful | P130: 2018-12-19 | R130: R
A131: 23 | B131: 2018-12-18 | D131: AJANTPHARM DEC FUT | E131: Buy | F131: 1096.5 | G131: 1074 | H131: 1118.5 | I131: 1140 | J131: Profit of Rs.22/- | K131: =H131-F131 -> 22 | M131: =N131*K131 -> 11000 | N131: 500 | O131: Successful | P131: 2018-12-18 | R131: N
A132: 24 | B132: 2018-12-18 | D132: VOLTAS DEC FUT | E132: Sell | F132: 562 | G132: 574 | H132: 571 | I132: 542 | J132: Loss of Rs.9/- | K132: =F132-H132 -> -9 | M132: -9000 | N132: 1000 | O132: Unsuccessful | P132: 2018-12-19 | R132: R
A133: 25 | B133: 2018-12-19 | D133: AMARAJABAT DEC FUT | E133: Buy | F133: 733 | G133: 716 | H133: 743 | I133: 760 | J133: Profit of Rs.10/- | K133: =H133-F133 -> 10 | M133: =N133*K133 -> 7000 | N133: 700 | O133: Successful | P133: 2018-12-19 | R133: N
A134: 26 | B134: 2018-12-19 | D134: MCDOWELL-N DEC FUT | E134: Buy | F134: 651 | G134: 641 | H134: 642.5 | I134: 672 | J134: Loss of Rs.8.5/- | K134: =H134-F134 -> -8.5 | M134: =N134*K134 -> -10625 | N134: 1250 | O134: Unsuccessful | P134: 2018-12-19 | R134: N
A135: 27 | B135: 2018-12-19 | D135: SBIN DEC FUT | E135: Buy | F135: 300.5 | G135: 296.5 | H135: 296.5 | I135: 310 | J135: Loss of Rs.4/- | K135: =H135-F135 -> -4 | M135: =N135*K135 -> -12000 | N135: 3000 | O135: Unsuccessful | P135: 2018-12-20 | R135: H
A136: 28 | B136: 2018-12-20 | D136: NIITTECH DEC FUT | E136: Buy | F136: 1141 | G136: 1125 | H136: 1125 | I136: 1175 | J136: Loss of Rs.16/- | K136: =H136-F136 -> -16 | M136: =N136*K136 -> -12000 | N136: 750 | O136: Unsuccessful | P136: 2018-12-21 | R136: R
A137: 29 | B137: 2018-12-20 | D137: GODREJIND DEC FUT | E137: Buy | F137: 540 | G137: 532 | H137: 547 | I137: 555 | J137: Profit of Rs.7/- | K137: =H137-F137 -> 7 | M137: =N137*K137 -> 10500 | N137: 1500 | O137: Successful | P137: 2018-12-21 | R137: N
A138: 30 | B138: 2018-12-20 | D138: INFRATEL DEC FUT | E138: Sell | F138: 263.5 | G138: 271 | H138: 259.5 | I138: 250 | J138: Profit of Rs.4/- | K138: =F138-H138 -> 4 | M138: =N138*K138 -> 6800 | N138: 1700 | O138: Successful | P138: 2018-12-21 | R138: N
A139: 31 | B139: 2018-12-20 | D139: COLPAL DEC FUT | E139: Sell | F139: 1325 | G139: 1341 | H139: 1313 | I139: 1300 | J139: Profit of Rs.12/- | K139: =F139-H139 -> 12 | M139: 8400 | N139: 700 | O139: Successful | P139: 2018-12-24 | R139: R
A140: 32 | B140: 2018-12-21 | D140: BATAINDIA DEC FUT | E140: Sell | F140: 1103 | G140: 1125 | H140: 1125 | I140: 1060-1050 | J140: Loss of Rs.22/- | K140: =F140-H140 -> -22 | M140: =N140*K140 -> -12100 | N140: 550 | O140: Unsuccessful | P140: 2018-12-21 | R140: R
A141: 33 | B141: 2018-12-21 | D141: TATASTEEL DEC FUT | E141: Sell | F141: 523 | G141: 534 | H141: 515.5 | I141: 500 | J141: Profit of Rs.7.5/- | K141: =F141-H141 -> 7.5 | M141: 7957.5 | N141: 1061 | O141: Successful | P141: 2018-12-24 | R141: R
A142: 34 | B142: 2018-12-21 | D142: HEROMOTOCO JAN FUT | E142: Sell | F142: 3340 | G142: 3410 | H142: 3245 | I142: 3250 | J142: Profit of Rs.95/- | K142: =F142-H142 -> 95 | M142: =N142*K142 -> 19000 | N142: 200 | O142: Successful | P142: 2018-12-24 | R142: H
A143: 35 | B143: 2018-12-24 | D143: EXIDEIND DEC FUT | E143: Buy | F143: 262.5 | G143: 256.5 | H143: 256 | I143: 275 | J143: Loss of Rs.6.5/- | K143: =H143-F143 -> -6.5 | M143: -13000 | N143: 2000 | O143: Unsuccessful | P143: 2018-12-26 | R143: N
A144: 36 | B144: 2018-12-24 | D144: GODREJIND DEC FUT | E144: Buy | F144: 521 | G144: 514 | H144: 514 | I144: 535 | J144: Loss of Rs.7/- | K144: =H144-F144 -> -7 | M144: =N144*K144 -> -10500 | N144: 1500 | O144: Unsuccessful | P144: 2018-12-26 | R144: R
A145: 37 | B145: 2018-12-26 | D145: JUBLFOOD DEC FUT | E145: Buy | F145: 1157.5 | G145: 1138 | H145: 1183 | I145: 1190 | J145: Profit of Rs.25.5/- | K145: 25.5 | M145: 12750 | N145: 500 | O145: Successful | P145: 2018-12-26 | R145: R
A146: 38 | B146: 2018-12-26 | D146: MCDOWELL-N | E146: Buy | F146: 611 | G146: 595 | H146: 620.5 | I146: 640-645 | J146: Profit of Rs.9.5/- | K146: 9.5 | L146: =K146/F146 -> 1.55% | O146: Successful | P146: 2018-12-26 | R146: H
A147: 39 | B147: 2018-12-26 | D147: AMARAJABAT JAN FUT | E147: Buy | F147: 739-741 | G147: 724 | I147: 770 | J147: Open | R147: N
A148: 40 | B148: 2018-12-27 | D148: CUMMINSIND JAN FUT | E148: Sell | F148: 818.5 | G148: 832.3 | H148: 832.3 | I148: 790 | J148: Loss of Rs.13.8/- | K148: =F148-H148 -> -13.8 | M148: =N148*K148 -> -9660 | N148: 700 | O148: Unsuccessful | P148: 2018-12-27 | R148: R
A149: 41 | B149: 2018-12-27 | D149: TATACHEM JAN FUT | E149: Buy | F149: 703-705 | G149: 688 | I149: 732 | J149: Open | R149: N
A152: CLBS = Closing Basis ***
A153: Dividend adjusted <> | F153: Reinitiated $
F154: Revised stoploss #
B155: Quick Pick Intraday
A156: Sr.no | B156: Date | D156: Company | E156: Rec | F156: Rec Price | G156: Stop Loss*** | H156: Call Closed At | I156: Target | J156: Remark | K156: Profit / Loss per Share | L156: Status | M156: Closed Date
A170: Techno -Funda (positional)
A171: Sr.no | B171: Date | D171: Company | E171: Rec | F171: Rec Price | G171: Stop Loss*** | H171: Call Closed At | I171: Target | J171: Remark | K171: Profit / Loss per Share | L171: Gain / Loss % | M171: Status | N171: Closed Date | O171: NSE Closed Price
A174: CLBS = Closing Basis *** | F174: Reinitiated $
A175: Dividend adjusted <> | F175: Revised stoploss #
B180: Investment Idea
A181: Sr.no | B181: Date | D181: Company | E181: Rec | F181: Rec Price | G181: Point of Review | H181: Close Rate | I181: Target | J181: Remark | K181: Profit / Loss per Share | L181: Gain / Loss % | M181: Status | N181: Closed Date
A182: 1 | B182: 2013-11-01 | D182: L&T Finance Holding | E182: Accu | F182: 82.00 | G182: - | H182: 100 | I182: 100.00 | J182: Target Achieved | K182: =H182-F182 -> 18.00 | L182: =K182/F182 -> 21.95% | M182: Successful | N182: 2016-10-14
A183: 2 | B183: 2014-06-04 | D183: Finolex Inds | E183: Buy | F183: 257.00 | G183: - | H183: 300 | I183: 300.00 | J183: Target Achieved | K183: =H183-F183 -> 43.00 | L183: 16.73% | M183: Successful | N183: 2014-07-02
A184: =1+A183 -> 3 | B184: 2014-07-08 | D184: JK Cement | E184: Buy | F184: 393.00 | G184: - | H184: 468 | I184: 468.00 | J184: Target Achieved | K184: =H184-F184 -> 75.00 | L184: 19.08% | M184: Successful | N184: 2014-08-12
A185: 4 | B185: 2014-08-06 | D185: Finolex Cables | E185: Buy | F185: 205.00 | G185: - | H185: 275 | I185: 250.00 | J185: Target Achieved | K185: 70.00 | L185: 34.15% | M185: Successful | N185: 2014-11-19
A186: 5 | B186: 2014-09-04 | D186: Exide Inds | E186: Buy | F186: 162.00 | G186: - | H186: 190 | I186: 190.00 | J186: Target Achieved | K186: 28.00 | L186: 17.28% | M186: Successful | N186: 2015-01-02
A187: 6 | B187: 2014-09-04 | D187: Deepak Nitrite | E187: Buy | F187: 75.00 | G187: - | H187: 91.5 | I187: 95-100 | J187: Profit of Rs.16.50/- | K187: 16.50 | L187: 22.00% | M187: Successful | N187: 2014-11-11
A188: 7 | B188: 2014-10-01 | D188: Mercks | E188: Buy | F188: 850.00 | G188: - | H188: 982.5 | I188: 1050.00 | J188: Profit of Rs.132.50/- | K188: 132.50 | L188: 15.59% | M188: Successful | N188: 2015-02-04
A189: 8 | B189: 2014-10-01 | D189: Grindwell Norton | E189: Buy | F189: 475.00 | G189: - | H189: 515 | I189: 600.00 | J189: Profit of Rs.40/- | K189: 40.00 | L189: 8.42% | M189: Successful | N189: 2014-10-27
A190: 9 | B190: 2014-10-01 | D190: Snowman Logistics | E190: Buy | F190: 86.00 | G190: - | H190: 99 | I190: 140.00 | J190: Profit of Rs.13.00/- | K190: 13.00 | L190: 15.12% | M190: Successful | N190: 2014-10-27
A191: 10 | B191: 2014-10-14 | D191: Birla Corp | E191: Buy | F191: 496.60 | G191: - | H191: 621 | I191: 580.00 | J191: Target Achieved | K191: 124.40 | L191: 25.05% | M191: Successful | N191: 2016-08-23
A192: 11 | B192: 2014-10-14 | D192: Ultratech Cem | E192: Buy | F192: 2481.90 | G192: - | H192: 2840 | I192: 2870.00 | J192: Profit of Rs.358.10/- | K192: 358.10 | L192: 14.43% | M192: Successful | N192: 2015-01-13
A193: =1+A190 -> 10 | B193: 2014-10-16 | D193: Sintex Inds | E193: Buy | F193: 84.50 | G193: - | H193: 93 | I193: 110.00 | J193: Profit of Rs.8.50/- | K193: 8.50 | L193: 10.06% | M193: Successful | N193: 2014-10-27
A194: =1+A193 -> 11 | B194: 2014-10-16 | D194: HSIL | E194: Buy | F194: 401.00 | G194: - | H194: 428 | I194: 450.00 | J194: Profit of Rs.27.00/- | K194: 27.00 | L194: 6.73% | M194: Successful | N194: 2015-01-16
A195: 12 | B195: 2014-10-16 | D195: Eveready Inds | E195: Buy | F195: 101.00 | G195: - | H195: 112 | I195: 120.00 | J195: Profit of Rs.11.00/- | K195: 11.00 | L195: 10.89% | M195: Successful | N195: 2014-10-27
A196: 13 | B196: 2014-11-11 | D196: Pennar Inds | E196: Buy | F196: 59.00 | G196: - | H196: 76 | I196: 76.00 | J196: Target Achieved | K196: 17.00 | L196: 28.81% | M196: Successful | N196: 2017-10-24
A197: 14 | B197: 2014-11-11 | D197: Snowman Logistics | E197: Buy | F197: 99.00 | G197: - | H197: 120 | I197: 120.00 | J197: Profit of Rs.21/- | K197: 21.00 | L197: 21.21% | M197: Successful | N197: 2014-11-17
A198: 15 | B198: 2014-11-13 | D198: Dharamsi Morarji Chem | E198: Buy | F198: 22.00 | G198: - | H198: 33.55 | I198: 32.00 | J198: Profit of Rs 11.55/- | K198: 11.55 | L198: 52.50% | M198: Successful | N198: 2015-07-03
A199: 16 | B199: 2014-12-03 | D199: Tatachem | E199: Buy | F199: 440.00 | G199: - | H199: 520 | I199: 520.00 | J199: Profit of Rs 80.00/- | K199: 80.00 | L199: 18.18% | M199: Successful | N199: 2015-07-23
A200: 17 | B200: 2014-12-03 | D200: Advanta | E200: Buy | F200: 360.00 | G200: - | H200: 427 | I200: 425.00 | J200: Profit of Rs.67.00/- | K200: 67.00 | L200: 18.61% | M200: Successful | N200: 2015-02-23
A201: 18 | B201: 2015-01-08 | D201: GDL | E201: Buy | F201: 360.00 | G201: - | H201: 455 | I201: 420.00 | J201: Profit of Rs.95.00/- | K201: 95.00 | L201: 26.39% | M201: Successful | N201: 2015-01-20
A202: 19 | B202: 2015-01-08 | D202: NRB Bearing | E202: Buy | F202: 130.00 | H202: 175.5 | I202: 165.00 | J202: Profit of Rs 45.50/- | K202: 45.50 | L202: 35.00% | M202: Successful | N202: 2017-12-19
A203: 20 | B203: 2015-02-05 | D203: GSFC | E203: Accu | F203: 98.00 | H203: 120 | I203: 120.00 | J203: Target Achieved | K203: 22.00 | L203: 22.45% | M203: Successful | N203: 2017-01-18
A204: 21 | B204: 2015-02-05 | D204: Sundrmfast | E204: Accu | F204: 196.00 | H204: 262 | I204: 255.00 | J204: Target Achieved | K204: 66.00 | L204: 33.67% | M204: Successful | N204: 2016-08-17
A205: 22 | B205: 2015-03-04 | D205: GPPL | E205: Accu | F205: 230-240 | I205: 280-285 | J205: Open
A206: 23 | B206: 2015-03-04 | D206: ORIENTCEM | E206: Accu | F206: 185.00 | H206: 224 | I206: 220-225 | J206: Target Achieved | K206: 39.00 | L206: =K206/F206 -> 21.08% | M206: Successful | N206: 2016-10-04
A207: 24 | B207: 2015-03-27 | D207: PFS | E207: Accu | F207: 49-50 | I207: 67.00 | J207: Open
A208: 25 | B208: 2015-03-30 | D208: Walchandnagar Ind Ltd | E208: Accu | F208: 183.50 | H208: 219 | I208: 218.00 | J208: Profit of Rs.35.50/- | K208: 35.50 | L208: =K208/F208 -> 19.35% | M208: Successful | N208: 2015-04-09
A209: 26 | B209: 2015-04-20 | D209: Kalpataru Power Transmission Ltd | E209: Accu | F209: =(227+237)/2 -> 232.00 | H209: 298 | I209: 298.00 | J209: Target Achieved | K209: 66.00 | L209: 28.45% | M209: Successful | N209: 2017-03-29
A210: 27 | B210: 2015-05-04 | D210: Mastek Ltd | E210: Buy | F210: 385.00 | H210: =212.5+331 -> 543.5 | I210: 510.00 | J210: Profit of Rs 158.50/- | K210: 158.50 | L210: 41.17% | M210: Successful | N210: 2015-08-19
A211: 28 | B211: 2015-05-04 | D211: Suprajit Eng | E211: Buy | F211: 115.50 | H211: 146 | I211: 142.00 | J211: Profit of Rs 30.50/- | K211: 30.50 | L211: 26.41% | M211: Successful | N211: 2015-07-17
A212: 29 | B212: 2015-05-27 | D212: TCI | E212: Buy | F212: 237.50 | H212: 279.5 | I212: 278.00 | J212: Target Achieved | K212: 42.00 | L212: 17.68% | M212: Successful | N212: 2015-08-06
A213: 30 | B213: 2015-06-19 | D213: HSIL | E213: Accu | F213: 340.00 | H213: 448 | I213: 448.00 | J213: Target Achieved | K213: 108.00 | L213: 31.76% | M213: Successful | N213: 2017-10-10
A214: 31 | B214: 2015-07-06 | D214: Capital First | E214: Accu | F214: 390.00 | H214: 460 | I214: 460.00 | J214: Target Achieved | K214: 70.00 | L214: 17.95% | M214: Successful | N214: 2016-04-18
A215: 32 | B215: 2015-07-10 | D215: Dolphin OffShore | E215: Accu | F215: 122.5 | H215: 61.00 | I215: 172.00 | J215: Loss of Rs.61.50/- | K215: -61.50 | L215: -50.20% | M215: Unsuccessful | N215: 2018-08-21
A216: 33 | B216: 2015-08-03 | D216: Allcargo logistics | E216: Accu | F216: 297.50 | H216: 350 | I216: 360.00 | J216: Profit of Rs 52.50/- | K216: 52.50 | L216: =K216/F216 -> 17.65% | M216: Successful | N216: 2015-08-16
A217: 34 | B217: 2015-08-03 | D217: Camline Fine | E217: Accu | F217: 115.50 | H217: 149 | I217: 140.00 | J217: Profit of Rs 33.50/- | K217: 33.50 | L217: 29.00% | M217: Successful | N217: 2017-01-05
A218: 35 | B218: 2015-09-04 | D218: TCI | E218: Accu | F218: 226.00 | H218: 292 | I218: 292.00 | J218: Target Achieved | K218: 66.00 | L218: 29.20% | M218: Successful | N218: 2015-10-09
A219: 36 | B219: 2015-09-07 | D219: Kalpataru Power Transmission Ltd | E219: Accu | F219: 232.50 | H219: 312.5 | I219: 310.00 | J219: Target Achieved | K219: 80.00 | L219: 34.41% | M219: Successful | N219: 2017-03-29
A220: 37 | B220: 2015-09-21 | D220: LLOYD ELECTRIC & ENG LTD | E220: Accu | F220: 196.50 | H220: 238 | I220: 238.00 | J220: Target Achieved | K220: 41.50 | L220: 21.12% | M220: Successful | N220: 2015-10-14
A221: 38 | B221: 2015-09-24 | D221: L&T Finance Holding | E221: Accu | F221: 65.00 | H221: 82 | I221: 82.00 | J221: Target Achieved | K221: 17.00 | L221: 26.15% | M221: Successful | N221: 2016-07-27
A222: 39 | B222: 2015-10-14 | D222: KEC International ltd | E222: Accu | F222: 144.00 | H222: 182.5 | I222: 181.00 | J222: Target Achieved | K222: 38.50 | L222: 26.74% | M222: Successful | N222: 2017-03-23
A223: 40 | B223: 2015-10-14 | D223: Gruh Finance | E223: Accu | F223: 264.00 | H223: 311 | I223: 311.00 | J223: Target Achieved | K223: 47.00 | L223: 17.80% | M223: Successful | N223: 2016-08-22
A224: 41 | B224: 2015-11-10 | D224: Pidilitind | E224: Buy | F224: 549.50 | H224: 630 | I224: 630.00 | J224: Target Achieved | K224: 80.50 | L224: 14.65% | M224: Successful | N224: 2016-02-19
A225: 42 | B225: 2015-12-04 | D225: Zensar Technology | E225: Accu | F225: 1027.50 | H225: 1315 | I225: 1250.00 | J225: Target Achieved | K225: =H225-F225 -> 287.50 | L225: 27.98% | M225: Successful | N225: 2018-05-24
A226: 43 | B226: 2015-12-29 | D226: Vinati Organics Ltd | E226: Accu | F226: 465.00 | H226: 540 | I226: 540.00 | J226: Target Achieved | K226: 75.00 | L226: =K226/F226 -> 16.13% | M226: Successful | N226: 2016-06-09
A227: 44 | B227: 2016-01-11 | D227: GSFC | E227: Buy | F227: 81.00 | H227: 110 | I227: 110.00 | J227: Target Achieved | K227: 29.00 | L227: 35.80% | M227: Successful | N227: 2017-01-10
A228: 45 | B228: 2016-01-13 | D228: SSWL | E228: Buy | F228: 417.50 | H228: 547 | I228: 535.00 | J228: Target Achieved | K228: 129.50 | L228: 31.02% | M228: Successful | N228: 2016-07-27
A229: 46 | B229: 2016-02-08 | D229: Persistent System Ltd | E229: Accu | F229: 650.00 | H229: 800 | I229: 800.00 | J229: Target Achieved | K229: 150.00 | L229: 23.08% | M229: Successful | N229: 2018-02-23
A230: 47 | B230: 2016-03-04 | D230: UPL | E230: Accu | F230: 437.50 | H230: 504.5 | I230: 522.00 | J230: Profit of Rs.67/- | K230: 67.00 | L230: 15.31% | M230: Successful | N230: 2016-04-20
A231: 48 | B231: 2016-03-09 | D231: Ashoka Buildcon Ltd | E231: Accu | F231: 189.50 | H231: 218 | I231: 218.00 | J231: Target Achieved | K231: 28.50 | L231: 15.04% | M231: Successful | N231: 2017-10-26
A232: 49 | B232: 2016-04-11 | D232: PTC INDIA FIN SERV LTD | E232: Accu | F232: 36-37 | I232: 60.00 | J232: Open
A233: 50 | B233: 2016-04-12 | D233: CAMLINFINE $ | E233: Accu | F233: 93.00 | H233: 149 | I233: 140.00 | J233: Profit of Rs 56/- | K233: 56.00 | L233: =K233/F233 -> 60.22% | M233: Successful | N233: 2017-01-05
A234: 51 | B234: 2016-04-12 | D234: Greaves Cotton Ltd. | E234: Accu | F234: 130.00 | H234: 150 | I234: 150-155 | J234: Target Achieved | K234: 20.00 | L234: 15.38% | M234: Successful | N234: 2016-07-13
A235: 52 | B235: 2016-04-13 | D235: DHFL | E235: Accu | F235: 196.00 | H235: 299 | I235: 299.00 | J235: Target Achieved | K235: 103.00 | L235: 52.55% | M235: Successful | N235: 2016-09-07
A236: 53 | B236: 2016-04-13 | D236: Magma | E236: Accu | F236: 88.00 | H236: 103 | I236: 103.00 | J236: Target Achieved | K236: 15.00 | L236: 17.05% | M236: Successful | N236: 2016-06-09
A237: 54 | B237: 2016-05-02 | D237: KEC International ltd $ | E237: Accu | F237: 127.50 | H237: 148 | I237: 148-150 | J237: Target Achieved | K237: 20.50 | L237: 16.08% | M237: Successful | N237: 2016-07-13
A238: 55 | B238: 2016-05-03 | D238: Mindtree | E238: Accu | F238: 675.00 | H238: 815 | I238: 790-800 | J238: Target Achieved | K238: 140.00 | L238: 20.74% | M238: Successful | N238: 2018-02-23
A239: 56 | B239: 2016-06-01 | D239: Atulauto | E239: Accu | F239: 495-505 | I239: 565-570 | J239: Open
A240: 57 | B240: 2016-06-06 | D240: TRITURBINE | E240: Accu | F240: 110.00 | H240: 126.5 | I240: 125.00 | J240: Profit of Rs.16.50/- | K240: 16.50 | L240: =K240/F240 -> 15.00% | M240: Successful | N240: 2016-07-01
A241: 58 | B241: 2016-06-17 | D241: Pennar Industries Ltd | E241: Accu | F241: 44.00 | H241: 69.5 | I241: 69.50 | J241: Profit of Rs.25.50/- | K241: 25.50 | L241: =K241/F241 -> 57.95% | M241: Successful | N241: 2017-08-30
A242: 59 | B242: 2016-06-28 | D242: EVEREADY INDS. IND. LTD. | E242: Accu | F242: 262.50 | H242: 340 | I242: 333.00 | J242: Profit of Rs.77.50/- | K242: 77.50 | L242: =K242/F242 -> 29.52% | M242: Successful | N242: 2017-10-09
A243: 60 | B243: 2016-06-28 | D243: FIEM INDUSTRIES LIMITED | E243: Accu | F243: 840.00 | H243: 1230 | I243: 1230.00 | J243: Target Achieved | K243: 390.00 | L243: =K243/F243 -> 46.43% | M243: Successful | N243: 2016-10-06
A244: 61 | B244: 2016-07-05 | D244: Bajaj Corp Ltd | E244: Accu | F244: 395 | H244: 468.50 | I244: 510.00 | J244: Part profit of Rs.73.50/- | K244: 73.50 | L244: =K244/F244 -> 19% | M244: Successful | N244: 2017-08-30
A245: 62 | B245: 2016-08-02 | D245: GPPL $ | E245: Buy | F245: 167-172 | I245: 198-200 | J245: Open
A246: 63 | B246: 2016-08-04 | D246: WONDERLA HOLIDAYS LTD | E246: Accu | F246: 395-405 | I246: 475.00 | J246: Open
A247: 64 | B247: 2016-08-11 | D247: CAMLINFINE | E247: Accu | F247: 86.50 | H247: 130 | I247: 130.00 | J247: Profit of Rs.43.50/- | K247: =H247-F247 -> 43.50 | L247: =K247/F247 -> 50.29% | M247: Successful | N247: 2017-12-22
A248: 65 | B248: 2016-08-18 | D248: GRANULES | E248: Accu | F248: 133.5 | H248: 126.50 | I248: 178.00 | J248: Exit | K248: -7.00 | L248: -5.24% | M248: Unsuccessful | N248: 2016-09-02
A249: 66 | B249: 2016-08-31 | D249: VA TECH WABAG | E249: Accu | F249: 560.00 | H249: 725 | I249: 725.00 | J249: Target Achieved | K249: 165.00 | L249: 29.46% | M249: Successful | N249: 2016-03-27
A250: 67 | B250: 2016-09-01 | D250: SKIPPER LIMITED | E250: Accu | F250: 160.50 | H250: 210 | I250: 210.00 | J250: Target Achieved | K250: 49.50 | L250: 30.84% | M250: Successful | N250: 2017-05-16
A251: 68 | B251: 2016-10-03 | D251: IFB Industries | E251: Accu | F251: 430.00 | H251: 596 | I251: 575.00 | J251: Profit of Rs.166/- | K251: 166.00 | L251: 38.60% | M251: Successful | N251: 2017-02-03
A252: 69 | B252: 2016-10-14 | D252: ASIANTILES | E252: Accu | F252: 280.00 | H252: 345 | I252: 345.00 | J252: Target Achieved | K252: 65.00 | L252: 23.21% | M252: Successful | N252: 2017-03-20
A253: 70 | B253: 2016-10-14 | D253: DEEPIND | E253: Accu | F253: 245.00 | H253: 325.5 | I253: 330.00 | J253: Profit of Rs.80.5/- | K253: 80.50 | L253: 32.86% | M253: Successful | N253: 2017-02-03
A254: 71 | B254: 2016-10-17 | D254: DCBBANK | E254: Accu | F254: 125.00 | H254: 160 | I254: 160.00 | J254: Target Achieved | K254: 35.00 | L254: 28.00% | M254: Successful | N254: 2017-03-09
A255: 72 | B255: 2016-10-17 | D255: ORIENTREF | E255: Accu | F255: 114.00 | H255: 145 | I255: 145.00 | J255: Target Achieved | K255: 31.00 | L255: =K255/F255 -> 27.19% | M255: Successful | N255: 2017-05-04
A256: 73 | B256: 2016-10-17 | D256: GANECOS | E256: Accu | F256: 212.00 | H256: 280 | I256: 276.00 | J256: Profit of Rs.68/- | K256: 68.00 | L256: =K256/F256 -> 32.08% | M256: Successful | N256: 2017-05-03
A257: 74 | B257: 2016-11-04 | D257: NBCC | E257: Accu | F257: 155.00 | H257: 210 | I257: 210.00 | J257: Profit of Rs.55/- | K257: 55.00 | L257: =K257/F257 -> 35.48% | M257: Successful | N257: 2017-07-28
A258: 75 | B258: 2016-12-06 | D258: PRECAM | E258: Accu | F258: 150.5 | H258: 72.50 | I258: 174.00 | J258: Loss of Rs.78/- | K258: -78.00 | L258: =K258/F258 -> -51.83% | M258: Unsuccessful | N258: 2018-08-21
... 69 more rows

Sheet Sheet2 (hidden)
A1: SYMBOL | B1: SERIES | C1: OPEN | D1: HIGH | E1: LOW | F1: CLOSE | G1: LAST | H1: PREVCLOSE | I1: TOTTRDQTY | J1: TOTTRDVAL | K1: TIMESTAMP | L1: TOTALTRADES | M1: ISIN | N1: ISIN
A2: 20MICRONS | B2: EQ | C2: 42.55 | D2: 42.55 | E2: 41.75 | F2: 41.9 | G2: 42.1 | H2: 41.8 | I2: 8160 | J2: 342896.9 | K2: 2018-12-27 | L2: 156 | M2: INE144J01027
A3: 3IINFOTECH | B3: EQ | C3: 3.6 | D3: 3.65 | E3: 3.5 | F3: 3.55 | G3: 3.55 | H3: 3.5 | I3: 4406193 | J3: 15754334 | K3: 2018-12-27 | L3: 767 | M3: INE748C01020
A4: 3MINDIA | B4: EQ | C4: 20930 | D4: 20997.4 | E4: 20150 | F4: 20258.7 | G4: 20287 | H4: 20597.55 | I4: 2164 | J4: 44662635.15 | K4: 2018-12-27 | L4: 1115 | M4: INE470A01017
A5: 3PLAND | B5: EQ | C5: 12.4 | D5: 12.4 | E5: 11.85 | F5: 11.85 | G5: 11.85 | H5: 12.4 | I5: 1974 | J5: 23446.9 | K5: 2018-12-27 | L5: 9 | M5: INE105C01023
A6: 5PAISA | B6: EQ | C6: 193 | D6: 208 | E6: 193 | F6: 203.05 | G6: 208 | H6: 193.2 | I6: 9079 | J6: 1806183.3 | K6: 2018-12-27 | L6: 333 | M6: INE618L01018
A7: 63MOONS | B7: EQ | C7: 95.6 | D7: 99.4 | E7: 94.35 | F7: 97.55 | G7: 99.05 | H7: 94.65 | I7: 397226 | J7: 38553009.6 | K7: 2018-12-27 | L7: 4332 | M7: INE111B01023
A8: 8KMILES | B8: EQ | C8: 149 | D8: 150 | E8: 142.9 | F8: 144.75 | G8: 144 | H8: 145.4 | I8: 268670 | J8: 39311678.35 | K8: 2018-12-27 | L8: 4232 | M8: INE650K01021
A9: A2ZINFRA | B9: EQ | C9: 13 | D9: 13.1 | E9: 12.9 | F9: 13 | G9: 13 | H9: 12.95 | I9: 102888 | J9: 1335246.2 | K9: 2018-12-27 | L9: 235 | M9: INE619I01012
A10: AARTIDRUGS | B10: EQ | C10: 574.95 | D10: 575.95 | E10: 563 | F10: 567.6 | G10: 569 | H10: 574.4 | I10: 10646 | J10: 6029144 | K10: 2018-12-27 | L10: 2224 | M10: INE767A01016
A11: AARTIIND | B11: EQ | C11: 1435 | D11: 1457.2 | E11: 1415.45 | F11: 1423.25 | G11: 1427 | H11: 1427.25 | I11: 53630 | J11: 76633526.95 | K11: 2018-12-27 | L11: 6856 | M11: INE769A01020
A12: AARVEEDEN | B12: EQ | C12: 24.4 | D12: 27.4 | E12: 24.4 | F12: 25.2 | G12: 25.55 | H12: 23.75 | I12: 34985 | J12: 911203.15 | K12: 2018-12-27 | L12: 330 | M12: INE273D01019
A13: AAVAS | B13: EQ | C13: 819.75 | D13: 836 | E13: 792.1 | F13: 807.3 | G13: 818 | H13: 800.35 | I13: 18326 | J13: 15018170 | K13: 2018-12-27 | L13: 2341 | M13: INE216P01012
A14: ABAN | B14: EQ | C14: 74.4 | D14: 77 | E14: 73.65 | F14: 74.6 | G14: 74.6 | H14: 73.2 | I14: 884427 | J14: 66434639.35 | K14: 2018-12-27 | L14: 7691 | M14: INE421A01028
A15: ABB | B15: EQ | C15: 1310 | D15: 1323 | E15: 1302.45 | F15: 1309 | G15: 1306.5 | H15: 1295.3 | I15: 72902 | J15: 95770167.3 | K15: 2018-12-27 | L15: 5890 | M15: INE117A01022
A16: ABBOTINDIA | B16: EQ | C16: 7507 | D16: 7545.15 | E16: 7460 | F16: 7469.5 | G16: 7465 | H16: 7498.3 | I16: 1743 | J16: 13075444.85 | K16: 2018-12-27 | L16: 465 | M16: INE358A01014
A17: ABCAPITAL | B17: EQ | C17: 97.8 | D17: 98.4 | E17: 97.75 | F17: 98.15 | G17: 98.15 | H17: 97.1 | I17: 868657 | J17: 85151215.5 | K17: 2018-12-27 | L17: 11959 | M17: INE674K01013
A18: ABFRL | B18: EQ | C18: 207.75 | D18: 213.25 | E18: 204 | F18: 204.9 | G18: 205 | H18: 205.9 | I18: 1652016 | J18: 344211107.1 | K18: 2018-12-27 | L18: 15463 | M18: INE647O01011
A19: ABSLNN50ET | B19: EQ | C19: 283 | D19: 329 | E19: 283 | F19: 309.92 | G19: 309.92 | H19: 283.42 | I19: 89 | J19: 26303.66 | K19: 2018-12-27 | L19: 27 | M19: INF209KB1B87
A20: ACC | B20: EQ | C20: 1499 | D20: 1499 | E20: 1453.85 | F20: 1459.2 | G20: 1457.9 | H20: 1479.4 | I20: 554317 | J20: 816848252.4 | K20: 2018-12-27 | L20: 20641 | M20: INE012A01025
A21: ACCELYA | B21: EQ | C21: 950 | D21: 958.7 | E21: 939.75 | F21: 940.7 | G21: 941 | H21: 950 | I21: 2100 | J21: 1986164.55 | K21: 2018-12-27 | L21: 281 | M21: INE793A01012
A22: ACE | B22: EQ | C22: 91.25 | D22: 94.2 | E22: 90.25 | F22: 91.1 | G22: 90.4 | H22: 90.2 | I22: 123885 | J22: 11432380.95 | K22: 2018-12-27 | L22: 2341 | M22: INE731H01025
A23: ADANIENT | B23: EQ | C23: 162.25 | D23: 167.8 | E23: 159.85 | F23: 162.35 | G23: 160.4 | H23: 161.25 | I23: 10882426 | J23: 1785217112 | K23: 2018-12-27 | L23: 44783 | M23: INE423A01024
A24: ADANIGAS | B24: EQ | C24: 101.25 | D24: 102.3 | E24: 99.65 | F24: 100.1 | G24: 99.85 | H24: 100.5 | I24: 455898 | J24: 45943954.3 | K24: 2018-12-27 | L24: 5353 | M24: INE399L01023
A25: ADANIGREEN | B25: EQ | C25: 41.75 | D25: 42.7 | E25: 41.25 | F25: 41.45 | G25: 41.9 | H25: 41.55 | I25: 212220 | J25: 8891500.2 | K25: 2018-12-27 | L25: 1705 | M25: INE364U01010
A26: ADANIPORTS | B26: EQ | C26: 379.25 | D26: 385.8 | E26: 373.65 | F26: 384 | G26: 385 | H26: 376.55 | I26: 5043675 | J26: 1918757460 | K26: 2018-12-27 | L26: 56412 | M26: INE742F01042
A27: ADANIPOWER | B27: EQ | C27: 51.2 | D27: 52 | E27: 51 | F27: 51.35 | G27: 51.2 | H27: 50.85 | I27: 10525643 | J27: 541272031.9 | K27: 2018-12-27 | L27: 15147 | M27: INE814H01011
A28: ADANITRANS | B28: EQ | C28: 199.5 | D28: 200.2 | E28: 195 | F28: 196.15 | G28: 195.75 | H28: 198.2 | I28: 223691 | J28: 44030751.15 | K28: 2018-12-27 | L28: 8940 | M28: INE931S01010
A29: ADFFOODS | B29: EQ | C29: 259.7 | D29: 264.95 | E29: 257.25 | F29: 261.75 | G29: 260.5 | H29: 256.85 | I29: 17641 | J29: 4606683.7 | K29: 2018-12-27 | L29: 932 | M29: INE982B01019
A30: ADHUNIK | B30: EQ | C30: 2.25 | D30: 2.25 | E30: 2.15 | F30: 2.25 | G30: 2.25 | H30: 2.2 | I30: 10065 | J30: 22228.95 | K30: 2018-12-27 | L30: 28 | M30: INE400H01019
A31: ADHUNIKIND | B31: EQ | C31: 45.95 | D31: 46.4 | E31: 44.6 | F31: 45.6 | G31: 46 | H31: 45.75 | I31: 6251 | J31: 286165.8 | K31: 2018-12-27 | L31: 67 | M31: INE452L01012
A32: ADLABS | B32: EQ | C32: 10.95 | D32: 11.25 | E32: 10.65 | F32: 11.2 | G32: 11.1 | H32: 10.95 | I32: 86983 | J32: 969732.65 | K32: 2018-12-27 | L32: 240 | M32: INE172N01012
A33: ADORWELD | B33: EQ | C33: 371.55 | D33: 376.95 | E33: 366.5 | F33: 368.25 | G33: 367.2 | H33: 370.2 | I33: 4464 | J33: 1658896.75 | K33: 2018-12-27 | L33: 363 | M33: INE045A01017
A34: ADROITINFO | B34: EQ | C34: 18.35 | D34: 19 | E34: 17.8 | F34: 17.95 | G34: 17.85 | H34: 17.35 | I34: 2480 | J34: 45720.6 | K34: 2018-12-27 | L34: 20 | M34: INE737B01033
A35: ADSL | B35: EQ | C35: 14.1 | D35: 14.9 | E35: 14.1 | F35: 14.2 | G35: 14.35 | H35: 14.1 | I35: 12488 | J35: 178783.65 | K35: 2018-12-27 | L35: 97 | M35: INE102I01027
A36: ADVANIHOTR | B36: EQ | C36: 65.85 | D36: 65.85 | E36: 62.15 | F36: 63.85 | G36: 64 | H36: 63.4 | I36: 3891 | J36: 247552.85 | K36: 2018-12-27 | L36: 59 | M36: INE199C01026
A37: ADVENZYMES | B37: EQ | C37: 178.95 | D37: 185.3 | E37: 177.45 | F37: 178.9 | G37: 179.5 | H37: 177.3 | I37: 59733 | J37: 10853623.1 | K37: 2018-12-27 | L37: 1526 | M37: INE837H01020
A38: AEGISCHEM | B38: EQ | C38: 195.9 | D38: 198.45 | E38: 188.3 | F38: 189 | G38: 189.5 | H38: 194.4 | I38: 165997 | J38: 31793947.25 | K38: 2018-12-27 | L38: 4692 | M38: INE208C01025
A39: AGARIND | B39: EQ | C39: 218 | D39: 222 | E39: 215.1 | F39: 215.15 | G39: 215.25 | H39: 216.4 | I39: 1008 | J39: 219723.9 | K39: 2018-12-27 | L39: 42 | M39: INE204E01012
A40: AGCNET | B40: EQ | C40: 73.95 | D40: 74.8 | E40: 72 | F40: 72.3 | G40: 72 | H40: 72 | I40: 1550 | J40: 112125.65 | K40: 2018-12-27 | L40: 48 | M40: INE676A01019
A41: AGLSL | B41: EQ | C41: 64.45 | D41: 67 | E41: 59.15 | F41: 62.4 | G41: 62.05 | H41: 64.75 | I41: 99167 | J41: 6127990.25 | K41: 2018-12-27 | L41: 930 | M41: INE517U01013
A42: AGRITECH | B42: BE | C42: 63 | D42: 63.4 | E42: 62.25 | F42: 62.45 | G42: 62.7 | H42: 63.35 | I42: 1503 | J42: 94208.35 | K42: 2018-12-27 | L42: 53 | M42: INE449G01018
A43: AHLEAST | B43: EQ | C43: 243.15 | D43: 247.9 | E43: 238.45 | F43: 245.85 | G43: 245.85 | H43: 239.55 | I43: 1264 | J43: 307552.55 | K43: 2018-12-27 | L43: 272 | M43: INE926K01017
A44: AHLUCONT | B44: EQ | C44: 318.8 | D44: 318.8 | E44: 310.4 | F44: 313.6 | G44: 311.7 | H44: 311.4 | I44: 2891 | J44: 908301.8 | K44: 2018-12-27 | L44: 234 | M44: INE758C01029
A45: AHLWEST | B45: EQ | C45: 295 | D45: 298.2 | E45: 295 | F45: 298 | G45: 298 | H45: 295 | I45: 74 | J45: 22005.55 | K45: 2018-12-27 | L45: 21 | M45: INE915K01010
A46: AIAENG | B46: EQ | C46: 1621 | D46: 1715 | E46: 1621 | F46: 1690.45 | G46: 1679 | H46: 1637.55 | I46: 32339 | J46: 54499484.45 | K46: 2018-12-27 | L46: 3875 | M46: INE212H01026
A47: AIFL | B47: EQ | C47: 26.85 | D47: 26.85 | E47: 26.85 | F47: 26.85 | G47: 26.85 | H47: 28.25 | I47: 32821 | J47: 881243.85 | K47: 2018-12-27 | L47: 176 | M47: INE428O01016
A48: AIONJSW | B48: EQ | C48: 41.4 | D48: 41.4 | E48: 38.05 | F48: 39.65 | G48: 39.65 | H48: 39.85 | I48: 64447 | J48: 2574153.5 | K48: 2018-12-27 | L48: 334 | M48: INE743C01021
A49: AJANTPHARM | B49: EQ | C49: 1139.7 | D49: 1185 | E49: 1126 | F49: 1177.75 | G49: 1179 | H49: 1128.55 | I49: 517054 | J49: 600260233.7 | K49: 2018-12-27 | L49: 18535 | M49: INE031B01049
A50: AJMERA | B50: EQ | C50: 165.5 | D50: 168.7 | E50: 160.5 | F50: 162.2 | G50: 161.5 | H50: 163.8 | I50: 49138 | J50: 8113066.3 | K50: 2018-12-27 | L50: 1768 | M50: INE298G01027
A51: AKSHARCHEM | B51: EQ | C51: 454.8 | D51: 454.85 | E51: 438.2 | F51: 439.8 | G51: 438.5 | H51: 447.8 | I51: 955 | J51: 424447.1 | K51: 2018-12-27 | L51: 80 | M51: INE542B01011
A52: AKSHOPTFBR | B52: EQ | C52: 24.4 | D52: 24.75 | E52: 24.3 | F52: 24.55 | G52: 24.55 | H52: 24.05 | I52: 386052 | J52: 9464011.75 | K52: 2018-12-27 | L52: 1442 | M52: INE523B01011
A53: AKZOINDIA | B53: EQ | C53: 1615.05 | D53: 1644.55 | E53: 1609.95 | F53: 1636.1 | G53: 1639 | H53: 1610.4 | I53: 203293 | J53: 331603424.8 | K53: 2018-12-27 | L53: 1054 | M53: INE133A01011
A54: ALANKIT | B54: EQ | C54: 24 | D54: 24 | E54: 23.65 | F54: 23.9 | G54: 24 | H54: 23.8 | I54: 260133 | J54: 6176757.75 | K54: 2018-12-27 | L54: 1417 | M54: INE914E01040
A55: ALBERTDAVD | B55: EQ | C55: 426.05 | D55: 430 | E55: 403.35 | F55: 409.3 | G55: 404 | H55: 417 | I55: 2241 | J55: 931166.55 | K55: 2018-12-27 | L55: 218 | M55: INE155C01010
A56: ALBK | B56: EQ | C56: 46.5 | D56: 46.65 | E56: 45.5 | F56: 46.45 | G56: 46.65 | H56: 46.05 | I56: 4358492 | J56: 201052041.3 | K56: 2018-12-27 | L56: 10563 | M56: INE428A01015
A57: ALCHEM | B57: BE | C57: 2.4 | D57: 2.4 | E57: 2.4 | F57: 2.4 | G57: 2.4 | H57: 2.3 | I57: 10756 | J57: 25814.4 | K57: 2018-12-27 | L57: 19 | M57: INE964B01033
A58: ALEMBICLTD | B58: EQ | C58: 44.7 | D58: 46.8 | E58: 44.7 | F58: 45.9 | G58: 46.15 | H58: 44.65 | I58: 383473 | J58: 17653773.8 | K58: 2018-12-27 | L58: 2422 | M58: INE426A01027
A59: ALICON | B59: EQ | C59: 589.05 | D59: 594.5 | E59: 555 | F59: 559.6 | G59: 565 | H59: 582.75 | I59: 50996 | J59: 28856356 | K59: 2018-12-27 | L59: 1889 | M59: INE062D01024
A60: ALKALI | B60: EQ | C60: 55 | D60: 55.75 | E60: 54 | F60: 54.6 | G60: 54.6 | H60: 55.3 | I60: 3687 | J60: 201141.95 | K60: 2018-12-27 | L60: 62 | M60: INE773I01017
A61: ALKEM | B61: EQ | C61: 1855.15 | D61: 1884.9 | E61: 1855.15 | F61: 1862.65 | G61: 1862 | H61: 1874.55 | I61: 21154 | J61: 39587520.6 | K61: 2018-12-27 | L61: 4778 | M61: INE540L01014
A62: ALKYLAMINE | B62: EQ | C62: 737.35 | D62: 744.5 | E62: 714.55 | F62: 737.7 | G62: 744.5 | H62: 734.6 | I62: 4173 | J62: 3031556.55 | K62: 2018-12-27 | L62: 340 | M62: INE150B01021
A63: ALLCARGO | B63: EQ | C63: 108.5 | D63: 110.7 | E63: 107.5 | F63: 108.8 | G63: 108.65 | H63: 107.5 | I63: 204315 | J63: 22215459.65 | K63: 2018-12-27 | L63: 2130 | M63: INE418H01029
A64: ALLSEC | B64: EQ | C64: 211.95 | D64: 211.95 | E64: 200.1 | F64: 203.3 | G64: 203.1 | H64: 200.25 | I64: 5642 | J64: 1159279.9 | K64: 2018-12-27 | L64: 238 | M64: INE835G01018
A65: ALMONDZ | B65: EQ | C65: 22.9 | D65: 22.9 | E65: 22.5 | F65: 22.5 | G65: 22.5 | H65: 22.5 | I65: 823 | J65: 18780.3 | K65: 2018-12-27 | L65: 17 | M65: INE326B01027
A66: ALOKTEXT | B66: EQ | C66: 3.75 | D66: 3.8 | E66: 3.65 | F66: 3.7 | G66: 3.7 | H66: 3.7 | I66: 942101 | J66: 3502596 | K66: 2018-12-27 | L66: 521 | M66: INE270A01011
A67: ALPA | B67: EQ | C67: 24.8 | D67: 24.8 | E67: 23.6 | F67: 23.7 | G67: 23.6 | H67: 23.85 | I67: 6654 | J67: 159102.55 | K67: 2018-12-27 | L67: 73 | M67: INE385I01010
A68: ALPHAGEO | B68: EQ | C68: 462.4 | D68: 474.9 | E68: 462 | F68: 472.35 | G68: 474.5 | H68: 460.35 | I68: 4080 | J68: 1916587.35 | K68: 2018-12-27 | L68: 480 | M68: INE137C01018
A69: AMARAJABAT | B69: EQ | C69: 733.2 | D69: 739.7 | E69: 730.3 | F69: 735.9 | G69: 735.5 | H69: 731.8 | I69: 269070 | J69: 197866973.6 | K69: 2018-12-27 | L69: 8211 | M69: INE885A01032
A70: AMBER | B70: EQ | C70: 898 | D70: 929 | E70: 895 | F70: 912.55 | G70: 917.05 | H70: 898.05 | I70: 4265 | J70: 3893108.8 | K70: 2018-12-27 | L70: 726 | M70: INE371P01015
A71: AMBIKCO | B71: EQ | C71: 1170 | D71: 1170 | E71: 1160 | F71: 1165.85 | G71: 1169.95 | H71: 1162.4 | I71: 1194 | J71: 1391624.75 | K71: 2018-12-27 | L71: 148 | M71: INE540G01014
A72: AMBUJACEM | B72: EQ | C72: 217.45 | D72: 222.8 | E72: 216.05 | F72: 216.85 | G72: 216.5 | H72: 221.1 | I72: 1684054 | J72: 367530880.6 | K72: 2018-12-27 | L72: 13827 | M72: INE079A01024
A73: AMDIND | B73: EQ | C73: 22.15 | D73: 22.35 | E73: 21.35 | F73: 21.9 | G73: 21.9 | H73: 21.1 | I73: 3214 | J73: 69909.2 | K73: 2018-12-27 | L73: 32 | M73: INE005I01014
A74: AMJLAND | B74: EQ | C74: 20.5 | D74: 20.7 | E74: 20.25 | F74: 20.4 | G74: 20.25 | H74: 20.45 | I74: 3836 | J74: 78297.2 | K74: 2018-12-27 | L74: 32 | M74: INE606A01024
A75: AMRUTANJAN | B75: EQ | C75: 270.35 | D75: 274.85 | E75: 265.65 | F75: 266.95 | G75: 266 | H75: 267.4 | I75: 28878 | J75: 7804433.6 | K75: 2018-12-27 | L75: 1100 | M75: INE098F01031
A76: ANANTRAJ | B76: EQ | C76: 35.9 | D76: 36 | E76: 35.05 | F76: 35.4 | G76: 35.4 | H76: 35.4 | I76: 228530 | J76: 8114021.55 | K76: 2018-12-27 | L76: 1348 | M76: INE242C01024
A77: ANDHRABANK | B77: EQ | C77: 29.45 | D77: 29.55 | E77: 29.25 | F77: 29.35 | G77: 29.25 | H77: 29.25 | I77: 877715 | J77: 25799413 | K77: 2018-12-27 | L77: 2070 | M77: INE434A01013
A78: ANDHRACEMT | B78: EQ | C78: 5.7 | D78: 6.4 | E78: 5.7 | F78: 5.9 | G78: 6 | H78: 5.75 | I78: 153743 | J78: 920054.25 | K78: 2018-12-27 | L78: 155 | M78: INE666E01012
A79: ANDHRSUGAR | B79: EQ | C79: 324.5 | D79: 335 | E79: 324 | F79: 330.45 | G79: 333 | H79: 324.65 | I79: 17001 | J79: 5627793.9 | K79: 2018-12-27 | L79: 800 | M79: INE715B01013
A80: ANGIND | B80: BE | C80: 1.3 | D80: 1.4 | E80: 1.3 | F80: 1.3 | G80: 1.3 | H80: 1.35 | I80: 7613 | J80: 9998.3 | K80: 2018-12-27 | L80: 27 | M80: INE017D01010
A81: ANIKINDS | B81: EQ | C81: 23.1 | D81: 23.4 | E81: 22.95 | F81: 23 | G81: 23 | H81: 23 | I81: 1350 | J81: 31287.45 | K81: 2018-12-27 | L81: 19 | M81: INE087B01017
A82: ANKITMETAL | B82: BE | C82: 0.45 | D82: 0.45 | E82: 0.4 | F82: 0.45 | G82: 0.45 | H82: 0.45 | I82: 6244 | J82: 2658.7 | K82: 2018-12-27 | L82: 13 | M82: INE106I01010
A83: ANSALAPI | B83: EQ | C83: 11.15 | D83: 11.5 | E83: 11.05 | F83: 11.15 | G83: 11.1 | H83: 11.25 | I83: 14505 | J83: 162897.65 | K83: 2018-12-27 | L83: 107 | M83: INE436A01026
A84: ANSALHSG | B84: EQ | C84: 11 | D84: 11.05 | E84: 10.9 | F84: 10.9 | G84: 11.05 | H84: 10.95 | I84: 15707 | J84: 172100.6 | K84: 2018-12-27 | L84: 106 | M84: INE880B01015
A85: ANTGRAPHIC | B85: BE | C85: 0.45 | D85: 0.5 | E85: 0.45 | F85: 0.5 | G85: 0.5 | H85: 0.5 | I85: 16570 | J85: 7816.6 | K85: 2018-12-27 | L85: 17 | M85: INE414B01021
A86: APARINDS | B86: EQ | C86: 668.05 | D86: 689 | E86: 656.05 | F86: 662.85 | G86: 662.15 | H86: 662.2 | I86: 20897 | J86: 14187670.15 | K86: 2018-12-27 | L86: 1843 | M86: INE372A01015
A87: APCL | B87: EQ | C87: 138.5 | D87: 138.5 | E87: 131.6 | F87: 134.75 | G87: 134.75 | H87: 128.85 | I87: 3112 | J87: 417890.45 | K87: 2018-12-27 | L87: 120 | M87: INE071F01012
A88: APCOTEXIND | B88: EQ | C88: 525 | D88: 530 | E88: 515.4 | F88: 523.25 | G88: 524.8 | H88: 524.5 | I88: 4102 | J88: 2150092.7 | K88: 2018-12-27 | L88: 260 | M88: INE116A01024
A89: APEX | B89: EQ | C89: 380 | D89: 384 | E89: 376 | F89: 379.9 | G89: 380 | H89: 378 | I89: 68480 | J89: 26030698.3 | K89: 2018-12-27 | L89: 4186 | M89: INE346W01013
A90: APLAPOLLO | B90: EQ | C90: 1138.95 | D90: 1138.95 | E90: 1090.05 | F90: 1109.45 | G90: 1115.65 | H90: 1102.25 | I90: 32981 | J90: 36398736.25 | K90: 2018-12-27 | L90: 2431 | M90: INE702C01019
A91: APLLTD | B91: EQ | C91: 568 | D91: 576 | E91: 564.55 | F91: 573.5 | G91: 575 | H91: 564.55 | I91: 31215 | J91: 17859569.65 | K91: 2018-12-27 | L91: 2081 | M91: INE901L01018
A92: APOLLO | B92: EQ | C92: 121.85 | D92: 122.8 | E92: 119.5 | F92: 120.8 | G92: 121.5 | H92: 119.3 | I92: 16031 | J92: 1944694.8 | K92: 2018-12-27 | L92: 504 | M92: INE713T01010
A93: APOLLOHOSP | B93: EQ | C93: 1277 | D93: 1282.5 | E93: 1235.7 | F93: 1242.8 | G93: 1237.9 | H93: 1264.15 | I93: 715199 | J93: 892814865.9 | K93: 2018-12-27 | L93: 26488 | M93: INE437A01024
A94: APOLLOTYRE | B94: EQ | C94: 234.45 | D94: 235.3 | E94: 230.1 | F94: 231.05 | G94: 231.7 | H94: 233.35 | I94: 1916532 | J94: 445479756.4 | K94: 2018-12-27 | L94: 21135 | M94: INE438A01022
A95: APOLSINHOT | B95: EQ | C95: 1200 | D95: 1215 | E95: 1112.6 | F95: 1138.2 | G95: 1137.9 | H95: 1178.9 | I95: 17462 | J95: 20165985.5 | K95: 2018-12-27 | L95: 2073 | M95: INE451F01024
A96: APTECHT | B96: EQ | C96: 195 | D96: 198.7 | E96: 189.05 | F96: 191 | G96: 190.7 | H96: 193.55 | I96: 261757 | J96: 50791750.1 | K96: 2018-12-27 | L96: 4644 | M96: INE266F01018
A97: ARCHIDPLY | B97: EQ | C97: 39.65 | D97: 41.75 | E97: 39.6 | F97: 41.5 | G97: 41.3 | H97: 39.95 | I97: 45593 | J97: 1865778.55 | K97: 2018-12-27 | L97: 569 | M97: INE877I01016
A98: ARCHIES | B98: EQ | C98: 30.6 | D98: 32.7 | E98: 30.6 | F98: 31 | G98: 31 | H98: 30.4 | I98: 143267 | J98: 4528572.05 | K98: 2018-12-27 | L98: 915 | M98: INE731A01020
A99: ARCOTECH | B99: EQ | C99: 7.35 | D99: 7.5 | E99: 7.15 | F99: 7.2 | G99: 7.15 | H99: 7.5 | I99: 54658 | J99: 395637.15 | K99: 2018-12-27 | L99: 179 | M99: INE574I01035
A100: ARIES | B100: EQ | C100: 100.55 | D100: 103.5 | E100: 100 | F100: 101.7 | G100: 101 | H100: 101.15 | I100: 47267 | J100: 4827188.55 | K100: 2018-12-27 | L100: 922 | M100: INE298I01015
A101: ARIHANT | B101: EQ | C101: 31.05 | D101: 33.05 | E101: 31.05 | F101: 33 | G101: 33 | H101: 31.95 | I101: 3003 | J101: 97399.15 | K101: 2018-12-27 | L101: 24 | M101: INE413D01011
A102: ARIHANTSUP | B102: EQ | C102: 60.15 | D102: 61.35 | E102: 57.2 | F102: 60.1 | G102: 59.15 | H102: 58.3 | I102: 41012 | J102: 2478482.15 | K102: 2018-12-27 | L102: 2692 | M102: INE643K01018
A103: ARMANFIN | B103: EQ | C103: 394.95 | D103: 395 | E103: 386.15 | F103: 394.85 | G103: 395 | H103: 391.5 | I103: 1304 | J103: 513804.05 | K103: 2018-12-27 | L103: 58 | M103: INE109C01017
A104: AROGRANITE | B104: EQ | C104: 52.95 | D104: 53.5 | E104: 50.8 | F104: 51.25 | G104: 51 | H104: 52.4 | I104: 7456 | J104: 385447.25 | K104: 2018-12-27 | L104: 170 | M104: INE210C01013
A105: ARROWGREEN | B105: EQ | C105: 121.9 | D105: 124.15 | E105: 121.9 | F105: 124.15 | G105: 124.15 | H105: 118.25 | I105: 6693 | J105: 826708.95 | K105: 2018-12-27 | L105: 63 | M105: INE570D01018
A106: ARROWTEX | B106: EQ | C106: 24.9 | D106: 24.9 | E106: 23.6 | F106: 23.85 | G106: 23.8 | H106: 23.95 | I106: 8025 | J106: 191032.2 | K106: 2018-12-27 | L106: 81 | M106: INE933J01015
A107: ARSHIYA | B107: EQ | C107: 32.1 | D107: 32.6 | E107: 30.1 | F107: 30.6 | G107: 31 | H107: 31.95 | I107: 296789 | J107: 9317788.65 | K107: 2018-12-27 | L107: 1785 | M107: INE968D01022
A108: ARSSINFRA | B108: BE | C108: 31.9 | D108: 31.9 | E108: 30.5 | F108: 30.95 | G108: 31.5 | H108: 30.4 | I108: 18383 | J108: 571636.1 | K108: 2018-12-27 | L108: 62 | M108: INE267I01010
A109: ARVIND | B109: EQ | C109: 98.1 | D109: 98.1 | E109: 96 | F109: 96.35 | G109: 96.7 | H109: 97.1 | I109: 2313882 | J109: 223642519.2 | K109: 2018-12-27 | L109: 14902 | M109: INE034A01011
A110: ARVSMART | B110: EQ | C110: 129.95 | D110: 135 | E110: 127.25 | F110: 129.05 | G110: 127.85 | H110: 129.45 | I110: 30941 | J110: 4071743.3 | K110: 2018-12-27 | L110: 920 | M110: INE034S01021
A111: ASAHIINDIA | B111: EQ | C111: 254 | D111: 254 | E111: 240.55 | F111: 241.2 | G111: 241 | H111: 243.2 | I111: 8085 | J111: 1982000.4 | K111: 2018-12-27 | L111: 314 | M111: INE439A01020
A112: ASAHISONG | B112: EQ | C112: 218.25 | D112: 219.8 | E112: 212.4 | F112: 213 | G112: 213 | H112: 218.2 | I112: 2456 | J112: 526546.6 | K112: 2018-12-27 | L112: 144 | M112: INE228I01012
A113: ASAL | B113: EQ | C113: 64.05 | D113: 65.4 | E113: 63.2 | F113: 64.05 | G113: 63.5 | H113: 64.85 | I113: 1940 | J113: 124713.85 | K113: 2018-12-27 | L113: 43 | M113: INE900C01027
A114: ASHAPURMIN | B114: EQ | C114: 31.7 | D114: 31.7 | E114: 30.6 | F114: 30.95 | G114: 31.1 | H114: 30.55 | I114: 20644 | J114: 639264.95 | K114: 2018-12-27 | L114: 223 | M114: INE348A01023
A115: ASHIANA | B115: EQ | C115: 117.5 | D115: 117.5 | E115: 113.95 | F115: 114.25 | G115: 114.6 | H115: 116.1 | I115: 31469 | J115: 3609293.35 | K115: 2018-12-27 | L115: 664 | M115: INE365D01021
A116: ASHIMASYN | B116: EQ | C116: 16.7 | D116: 17.25 | E116: 16 | F116: 16.3 | G116: 16.25 | H116: 16.25 | I116: 71404 | J116: 1189518.45 | K116: 2018-12-27 | L116: 415 | M116: INE440A01010
A117: ASHOKA | B117: EQ | C117: 123.25 | D117: 128 | E117: 123.25 | F117: 124.05 | G117: 123.9 | H117: 122.95 | I117: 118943 | J117: 15005009.15 | K117: 2018-12-27 | L117: 2821 | M117: INE442H01029
A118: ASHOKLEY | B118: EQ | C118: 104.8 | D118: 105 | E118: 102.7 | F118: 103 | G118: 103 | H118: 103.9 | I118: 10605851 | J118: 1100837813 | K118: 2018-12-27 | L118: 43241 | M118: INE208A01029
A119: ASIANHOTNR | B119: EQ | C119: 150.45 | D119: 154.8 | E119: 145.75 | F119: 147.85 | G119: 147.1 | H119: 147.2 | I119: 415 | J119: 61679.45 | K119: 2018-12-27 | L119: 45 | M119: INE363A01022
A120: ASIANPAINT | B120: EQ | C120: 1360.05 | D120: 1384.75 | E120: 1354.3 | F120: 1372.5 | G120: 1380.05 | H120: 1363 | I120: 2174090 | J120: 2972449025 | K120: 2018-12-27 | L120: 60135 | M120: INE021A01026
A121: ASIANTILES | B121: EQ | C121: 187.5 | D121: 191.35 | E121: 184.15 | F121: 185.1 | G121: 185 | H121: 187.45 | I121: 33603 | J121: 6287848.55 | K121: 2018-12-27 | L121: 1259 | M121: INE022I01019
A122: ASPINWALL | B122: EQ | C122: 177 | D122: 177 | E122: 177 | F122: 177 | G122: 177 | H122: 171.7 | I122: 10 | J122: 1770 | K122: 2018-12-27 | L122: 1 | M122: INE991I01015
A123: ASSAMCO | B123: BE | C123: 1.9 | D123: 2.1 | E123: 1.9 | F123: 2.1 | G123: 2.05 | H123: 2 | I123: 316678 | J123: 637777.45 | K123: 2018-12-27 | L123: 198 | M123: INE442A01024
A124: ASTEC | B124: EQ | C124: 526.8 | D124: 532 | E124: 516.5 | F124: 525.9 | G124: 525 | H124: 526.75 | I124: 6781 | J124: 3561947.45 | K124: 2018-12-27 | L124: 302 | M124: INE563J01010
A125: ASTERDM | B125: EQ | C125: 151.9 | D125: 154 | E125: 147.2 | F125: 148.65 | G125: 147.55 | H125: 149.75 | I125: 95448 | J125: 14305865.4 | K125: 2018-12-27 | L125: 2917 | M125: INE914M01019
A126: ASTRAL | B126: EQ | C126: 1091.5 | D126: 1124.75 | E126: 1066.1 | F126: 1118.15 | G126: 1120 | H126: 1079.6 | I126: 150425 | J126: 165612377.8 | K126: 2018-12-27 | L126: 7132 | M126: INE006I01046
A127: ASTRAMICRO | B127: EQ | C127: 78.8 | D127: 79.8 | E127: 77.2 | F127: 77.5 | G127: 77.65 | H127: 76.75 | I127: 1930862 | J127: 151015641.1 | K127: 2018-12-27 | L127: 2541 | M127: INE386C01029
A128: ASTRAZEN | B128: EQ | C128: 1473.1 | D128: 1530 | E128: 1473.1 | F128: 1504.35 | G128: 1505 | H128: 1475 | I128: 10710 | J128: 16201512.15 | K128: 2018-12-27 | L128: 1249 | M128: INE203A01020
A129: ASTRON | B129: EQ | C129: 109.45 | D129: 109.5 | E129: 106.25 | F129: 107.25 | G129: 107.45 | H129: 108.9 | I129: 48341 | J129: 5178688.55 | K129: 2018-12-27 | L129: 1004 | M129: INE646X01014
A130: ATFL | B130: EQ | C130: 581.85 | D130: 593.5 | E130: 572.1 | F130: 583.9 | G130: 585 | H130: 576.1 | I130: 18559 | J130: 10818477.65 | K130: 2018-12-27 | L130: 662 | M130: INE209A01019
A131: ATLANTA | B131: EQ | C131: 22.5 | D131: 22.5 | E131: 21.8 | F131: 22 | G131: 22.3 | H131: 21.8 | I131: 143682 | J131: 3178305.45 | K131: 2018-12-27 | L131: 3795 | M131: INE285H01022
A132: ATLASCYCLE | B132: BE | C132: 79.8 | D132: 79.8 | E132: 76 | F132: 78.45 | G132: 78.5 | H132: 77.45 | I132: 2341 | J132: 181372.05 | K132: 2018-12-27 | L132: 47 | M132: INE446A01025
A133: ATUL | B133: EQ | C133: 3456.2 | D133: 3470 | E133: 3420 | F133: 3432.45 | G133: 3427.95 | H133: 3434.75 | I133: 6695 | J133: 23036555.5 | K133: 2018-12-27 | L133: 1544 | M133: INE100A01010
A134: ATULAUTO | B134: EQ | C134: 287 | D134: 287.7 | E134: 284 | F134: 285 | G134: 286.2 | H134: 286.35 | I134: 6829 | J134: 1952421.05 | K134: 2018-12-27 | L134: 516 | M134: INE951D01028
A135: AUBANK | B135: EQ | C135: 602.8 | D135: 608.4 | E135: 586 | F135: 595.45 | G135: 594.9 | H135: 592.05 | I135: 89749 | J135: 53719980.5 | K135: 2018-12-27 | L135: 6651 | M135: INE949L01017
A136: AURIONPRO | B136: EQ | C136: 129.5 | D136: 135.75 | E136: 126.8 | F136: 127.15 | G136: 127.9 | H136: 131.05 | I136: 23909 | J136: 3100943.75 | K136: 2018-12-27 | L136: 482 | M136: INE132H01018
A137: AUROPHARMA | B137: EQ | C137: 723 | D137: 727 | E137: 710.05 | F137: 711.85 | G137: 711.85 | H137: 718.5 | I137: 2232649 | J137: 1606330321 | K137: 2018-12-27 | L137: 52386 | M137: INE406A01037
A138: AUSOMENT | B138: EQ | C138: 42 | D138: 43 | E138: 40.35 | F138: 41.85 | G138: 41.85 | H138: 41.3 | I138: 1190 | J138: 49824.25 | K138: 2018-12-27 | L138: 88 | M138: INE218C01016
A139: AUTOAXLES | B139: EQ | C139: 1360 | D139: 1393 | E139: 1338 | F139: 1381.5 | G139: 1375.1 | H139: 1349.05 | I139: 18021 | J139: 24626964.2 | K139: 2018-12-27 | L139: 1506 | M139: INE449A01011
A140: AUTOIND | B140: EQ | C140: 66 | D140: 66.25 | E140: 63.7 | F140: 63.9 | G140: 63.7 | H140: 65.6 | I140: 14848 | J140: 956206.45 | K140: 2018-12-27 | L140: 201 | M140: INE718H01014
A141: AUTOLITIND | B141: EQ | C141: 39.8 | D141: 40.55 | E141: 39.35 | F141: 39.7 | G141: 39.35 | H141: 39.65 | I141: 3671 | J141: 146419.55 | K141: 2018-12-27 | L141: 106 | M141: INE448A01013
A142: AVADHSUGAR | B142: EQ | C142: 377.9 | D142: 381.1 | E142: 367.1 | F142: 369.7 | G142: 370 | H142: 374 | I142: 12764 | J142: 4767624.7 | K142: 2018-12-27 | L142: 581 | M142: INE349W01017
A143: AVANTIFEED | B143: EQ | C143: 385.05 | D143: 395.8 | E143: 381.25 | F143: 385.95 | G143: 385.95 | H143: 379.2 | I143: 467800 | J143: 182285741.4 | K143: 2018-12-27 | L143: 13035 | M143: INE871C01038
A144: AVTNPL | B144: EQ | C144: 26.3 | D144: 26.65 | E144: 26 | F144: 26.55 | G144: 26.35 | H144: 26.05 | I144: 10224 | J144: 269111.85 | K144: 2018-12-27 | L144: 103 | M144: INE488D01021
A145: AXISBANK | B145: EQ | C145: 623.55 | D145: 626 | E145: 615.6 | F145: 617.55 | G145: 616.4 | H145: 619.5 | I145: 12304812 | J145: 7632920007 | K145: 2018-12-27 | L145: 127552 | M145: INE238A01034
A146: AXISCADES | B146: EQ | C146: 82.5 | D146: 83.9 | E146: 81.45 | F146: 81.85 | G146: 81.7 | H146: 82.55 | I146: 29934 | J146: 2473243.95 | K146: 2018-12-27 | L146: 543 | M146: INE555B01013
A147: AXISGOLD | B147: EQ | C147: 2747 | D147: 2779 | E147: 2747 | F147: 2779 | G147: 2779 | H147: 2760 | I147: 29 | J147: 80213.95 | K147: 2018-12-27 | L147: 13 | M147: INF846K01347
A148: AXISNIFTY | B148: EQ | C148: 1103.71 | D148: 1103.71 | E148: 1102.66 | F148: 1102.66 | G148: 1102.66 | H148: 1095.11 | I148: 2 | J148: 2206.37 | K148: 2018-12-27 | L148: 2 | M148: INF846K01ZL0
A149: AYMSYNTEX | B149: EQ | C149: 42 | D149: 43.35 | E149: 41.2 | F149: 42.8 | G149: 43 | H149: 41 | I149: 9504 | J149: 401522.15 | K149: 2018-12-27 | L149: 111 | M149: INE193B01039
A150: BAFNAPHARM | B150: EQ | C150: 11.35 | D150: 11.5 | E150: 11 | F150: 11.35 | G150: 11.4 | H150: 11.45 | I150: 8762 | J150: 98512.45 | K150: 2018-12-27 | L150: 144 | M150: INE878I01014
A151: BAGFILMS | B151: EQ | C151: 4.95 | D151: 5 | E151: 4.8 | F151: 4.85 | G151: 4.8 | H151: 4.9 | I151: 85375 | J151: 419220.15 | K151: 2018-12-27 | L151: 199 | M151: INE116D01028
A152: BAJAJ-AUTO | B152: EQ | C152: 2763.9 | D152: 2764 | E152: 2696.6 | F152: 2737 | G152: 2735.45 | H152: 2734.6 | I152: 558049 | J152: 1522805354 | K152: 2018-12-27 | L152: 38111 | M152: INE917I01010
A153: BAJAJCORP | B153: EQ | C153: 362.45 | D153: 365.25 | E153: 358.3 | F153: 359.9 | G153: 360 | H153: 361.9 | I153: 10521 | J153: 3808857.6 | K153: 2018-12-27 | L153: 510 | M153: INE933K01021
A154: BAJAJELEC | B154: EQ | C154: 508.7 | D154: 514.8 | E154: 491 | F154: 494.4 | G154: 493 | H154: 495.4 | I154: 277928 | J154: 139731646.2 | K154: 2018-12-27 | L154: 20978 | M154: INE193E01025
A155: BAJAJFINSV | B155: EQ | C155: 6500 | D155: 6550 | E155: 6350 | F155: 6405.05 | G155: 6381 | H155: 6439.05 | I155: 297717 | J155: 1920530888 | K155: 2018-12-27 | L155: 30379 | M155: INE918I01018
A156: BAJAJHIND | B156: EQ | C156: 8.8 | D156: 8.9 | E156: 8.7 | F156: 8.75 | G156: 8.75 | H156: 8.7 | I156: 1146506 | J156: 10101216.4 | K156: 2018-12-27 | L156: 1670 | M156: INE306A01021
A157: BAJAJHLDNG | B157: EQ | C157: 2872 | D157: 2988.8 | E157: 2871.05 | F157: 2950.05 | G157: 2940.8 | H157: 2859.45 | I157: 59145 | J157: 173633770.6 | K157: 2018-12-27 | L157: 6368 | M157: INE118A01012
A158: BAJFINANCE | B158: EQ | C158: 2598.85 | D158: 2626.75 | E158: 2570 | F158: 2587.15 | G158: 2595 | H158: 2567.4 | I158: 1626301 | J158: 4207634093 | K158: 2018-12-27 | L158: 58180 | M158: INE296A01024
A159: BALAJITELE | B159: EQ | C159: 92.8 | D159: 93.4 | E159: 90.1 | F159: 90.85 | G159: 91.5 | H159: 90.65 | I159: 25812 | J159: 2371241.6 | K159: 2018-12-27 | L159: 896 | M159: INE794B01026
A160: BALAMINES | B160: EQ | C160: 449.3 | D160: 455 | E160: 444.6 | F160: 447.85 | G160: 449.9 | H160: 447.55 | I160: 8085 | J160: 3626931.85 | K160: 2018-12-27 | L160: 458 | M160: INE050E01027
A161: BALKRISHNA | B161: EQ | C161: 50.1 | D161: 51.5 | E161: 49.2 | F161: 49.3 | G161: 49.45 | H161: 49.4 | I161: 12299 | J161: 613012.75 | K161: 2018-12-27 | L161: 256 | M161: INE875R01011
A162: BALKRISIND | B162: EQ | C162: 915 | D162: 917.2 | E162: 896 | F162: 902.55 | G162: 906 | H162: 907.6 | I162: 536421 | J162: 485082256.6 | K162: 2018-12-27 | L162: 14077 | M162: INE787D01026
A163: BALLARPUR | B163: EQ | C163: 5.5 | D163: 5.6 | E163: 5.35 | F163: 5.4 | G163: 5.45 | H163: 5.5 | I163: 513211 | J163: 2804231.2 | K163: 2018-12-27 | L163: 755 | M163: INE294A01037
A164: BALMLAWRIE | B164: EQ | C164: 211 | D164: 212 | E164: 201.2 | F164: 202.45 | G164: 202 | H164: 202.8 | I164: 107321 | J164: 22063599.1 | K164: 2018-12-27 | L164: 2832 | M164: INE164A01016
A165: BALPHARMA | B165: EQ | C165: 81.85 | D165: 81.9 | E165: 78.2 | F165: 78.35 | G165: 78.3 | H165: 80.1 | I165: 22777 | J165: 1802278.2 | K165: 2018-12-27 | L165: 392 | M165: INE083D01012
A166: BALRAMCHIN | B166: EQ | C166: 102 | D166: 102.4 | E166: 100.5 | F166: 100.9 | G166: 100.65 | H166: 101.35 | I166: 882371 | J166: 89384654.55 | K166: 2018-12-27 | L166: 6265 | M166: INE119A01028
A167: BANARBEADS | B167: EQ | C167: 47.6 | D167: 51 | E167: 45.6 | F167: 47.35 | G167: 47.35 | H167: 48.55 | I167: 83 | J167: 3947.2 | K167: 2018-12-27 | L167: 18 | M167: INE655B01011
A168: BANARISUG | B168: EQ | C168: 1500 | D168: 1500 | E168: 1466 | F168: 1473 | G168: 1473 | H168: 1470.55 | I168: 370 | J168: 547229.45 | K168: 2018-12-27 | L168: 68 | M168: INE459A01010
A169: BANCOINDIA | B169: EQ | C169: 186.7 | D169: 186.95 | E169: 183.15 | F169: 184.5 | G169: 184.2 | H169: 184.9 | I169: 87918 | J169: 16286278.55 | K169: 2018-12-27 | L169: 948 | M169: INE213C01025
A170: BANDHANBNK | B170: EQ | C170: 550 | D170: 557.65 | E170: 537 | F170: 540.6 | G170: 538 | H170: 545.35 | I170: 653631 | J170: 356976535.4 | K170: 2018-12-27 | L170: 25123 | M170: INE545U01014
A171: BANG | B171: EQ | C171: 56 | D171: 59.7 | E171: 55.5 | F171: 57.25 | G171: 56 | H171: 56.8 | I171: 178109 | J171: 10213028.7 | K171: 2018-12-27 | L171: 1280 | M171: INE863I01016
A172: BANKBARODA | B172: EQ | C172: 119.2 | D172: 119.4 | E172: 115.8 | F172: 116.4 | G172: 116.1 | H172: 117.7 | I172: 14432390 | J172: 1698626156 | K172: 2018-12-27 | L172: 49801 | M172: INE028A01039
A173: BANKBEES | B173: EQ | C173: 2757.35 | D173: 2770.56 | E173: 2732.5 | F173: 2741.98 | G173: 2736.59 | H173: 2755.8 | I173: 88167 | J173: 243826190.1 | K173: 2018-12-27 | L173: 369 | M173: INF732E01078
A174: BANKINDIA | B174: EQ | C174: 103.1 | D174: 103.7 | E174: 101.05 | F174: 101.8 | G174: 101.85 | H174: 100.65 | I174: 20801965 | J174: 2123549962 | K174: 2018-12-27 | L174: 64630 | M174: INE084A01016
A175: BANSWRAS | B175: EQ | C175: 82 | D175: 82.25 | E175: 77 | F175: 78.85 | G175: 79.8 | H175: 79.9 | I175: 264 | J175: 21054.1 | K175: 2018-12-27 | L175: 37 | M175: INE629D01012
A176: BARTRONICS | B176: EQ | C176: 7.15 | D176: 7.25 | E176: 7.1 | F176: 7.1 | G176: 7.1 | H176: 7.15 | I176: 28776 | J176: 205121.7 | K176: 2018-12-27 | L176: 44 | M176: INE855F01034
A177: BASF | B177: EQ | C177: 1575.05 | D177: 1603 | E177: 1543 | F177: 1566.35 | G177: 1556 | H177: 1585.4 | I177: 15928 | J177: 24919471.15 | K177: 2018-12-27 | L177: 1587 | M177: INE373A01013
A178: BASML | B178: EQ | C178: 214.8 | D178: 214.8 | E178: 207.05 | F178: 207.05 | G178: 207.05 | H178: 210.4 | I178: 237 | J178: 49183.1 | K178: 2018-12-27 | L178: 15 | M178: INE186H01014
A179: BATAINDIA | B179: EQ | C179: 1102.1 | D179: 1136.95 | E179: 1102.1 | F179: 1129.9 | G179: 1134 | H179: 1096.65 | I179: 1529162 | J179: 1716414660 | K179: 2018-12-27 | L179: 32618 | M179: INE176A01028
A180: BAYERCROP | B180: EQ | C180: 4221.1 | D180: 4262 | E180: 4209.75 | F180: 4244.8 | G180: 4215 | H180: 4248.55 | I180: 4630 | J180: 19607580.7 | K180: 2018-12-27 | L180: 1792 | M180: INE462A01022
A181: BBL | B181: EQ | C181: 1145.05 | D181: 1174.6 | E181: 1127.25 | F181: 1149.2 | G181: 1146.45 | H181: 1144.9 | I181: 4495 | J181: 5191534.2 | K181: 2018-12-27 | L181: 685 | M181: INE464A01028
A182: BBTC | B182: EQ | C182: 1272.15 | D182: 1294.95 | E182: 1272 | F182: 1274.8 | G182: 1272 | H182: 1266.2 | I182: 38249 | J182: 48982597.65 | K182: 2018-12-27 | L182: 2974 | M182: INE050A01025
A183: BCG | B183: EQ | C183: 2.85 | D183: 2.85 | E183: 2.6 | F183: 2.65 | G183: 2.6 | H183: 2.75 | I183: 455942 | J183: 1229282.75 | K183: 2018-12-27 | L183: 296 | M183: INE425B01027
A184: BDL | B184: EQ | C184: 275 | D184: 277.65 | E184: 274 | F184: 275 | G184: 274.6 | H184: 275.75 | I184: 6624 | J184: 1824107.05 | K184: 2018-12-27 | L184: 662 | M184: INE171Z01018
A185: BEARDSELL | B185: EQ | C185: 24 | D185: 24.5 | E185: 23.75 | F185: 24.35 | G185: 24.35 | H185: 23.75 | I185: 847 | J185: 20254.95 | K185: 2018-12-27 | L185: 17 | M185: INE520H01022
A186: BEDMUTHA | B186: BE | C186: 20.1 | D186: 20.1 | E186: 19.5 | F186: 19.8 | G186: 19.75 | H186: 20.05 | I186: 1278 | J186: 25299.8 | K186: 2018-12-27 | L186: 10 | M186: INE844K01012
A187: BEL | B187: EQ | C187: 90.25 | D187: 90.5 | E187: 85.65 | F187: 86.15 | G187: 86.6 | H187: 88.7 | I187: 24898982 | J187: 2170337358 | K187: 2018-12-27 | L187: 72175 | M187: INE263A01024
A188: BEML | B188: EQ | C188: 918 | D188: 922.1 | E188: 894.05 | F188: 899.95 | G188: 902 | H188: 899.8 | I188: 3989019 | J188: 3610041633 | K188: 2018-12-27 | L188: 76906 | M188: INE258A01016
A189: BEPL | B189: EQ | C189: 93.4 | D189: 93.4 | E189: 90.3 | F189: 90.85 | G189: 90.55 | H189: 90.85 | I189: 397453 | J189: 36495394.7 | K189: 2018-12-27 | L189: 4111 | M189: INE922A01025
A190: BERGEPAINT | B190: EQ | C190: 325.15 | D190: 331.2 | E190: 325.15 | F190: 328.35 | G190: 328 | H190: 328.3 | I190: 425546 | J190: 139552656.7 | K190: 2018-12-27 | L190: 11012 | M190: INE463A01038
A191: BFINVEST | B191: EQ | C191: 238.8 | D191: 241.8 | E191: 234.1 | F191: 235.75 | G191: 235.4 | H191: 236.5 | I191: 53383 | J191: 12720473.45 | K191: 2018-12-27 | L191: 2028 | M191: INE878K01010
A192: BFUTILITIE | B192: EQ | C192: 208.95 | D192: 210.55 | E192: 205.3 | F192: 206.5 | G192: 206.2 | H192: 207.9 | I192: 236136 | J192: 49194534.75 | K192: 2018-12-27 | L192: 6107 | M192: INE243D01012
A193: BGLOBAL | B193: BE | C193: 2.85 | D193: 3 | E193: 2.85 | F193: 2.85 | G193: 2.85 | H193: 3 | I193: 2222 | J193: 6360.9 | K193: 2018-12-27 | L193: 18 | M193: INE224M01013
A194: BGRENERGY | B194: EQ | C194: 59.45 | D194: 61.5 | E194: 59.2 | F194: 60.35 | G194: 60.1 | H194: 59.85 | I194: 53120 | J194: 3221806.85 | K194: 2018-12-27 | L194: 825 | M194: INE661I01014
A195: BHAGERIA | B195: EQ | C195: 287.1 | D195: 288.95 | E195: 282.05 | F195: 284.5 | G195: 284 | H195: 282.55 | I195: 3255 | J195: 926682.8 | K195: 2018-12-27 | L195: 150 | M195: INE354C01027
A196: BHAGYANGR | B196: EQ | C196: 29.65 | D196: 29.85 | E196: 29.05 | F196: 29.3 | G196: 29.25 | H196: 29.6 | I196: 11680 | J196: 344109.15 | K196: 2018-12-27 | L196: 46 | M196: INE458B01036
A197: BHAGYAPROP | B197: EQ | C197: 29.85 | D197: 29.85 | E197: 27.5 | F197: 28.2 | G197: 28.45 | H197: 28 | I197: 553 | J197: 15614.55 | K197: 2018-12-27 | L197: 16 | M197: INE363W01018
A198: BHANDARI | B198: EQ | C198: 2 | D198: 2.1 | E198: 2 | F198: 2 | G198: 2.05 | H198: 2.05 | I198: 111394 | J198: 225101.4 | K198: 2018-12-27 | L198: 135 | M198: INE474E01029
A199: BHARATFIN | B199: EQ | C199: 1001 | D199: 1008.25 | E199: 995.15 | F199: 999.9 | G199: 1002 | H199: 990.7 | I199: 796468 | J199: 796866460.6 | K199: 2018-12-27 | L199: 13112 | M199: INE180K01011
A200: BHARATFORG | B200: EQ | C200: 509 | D200: 513.5 | E200: 498.15 | F200: 500.2 | G200: 500.2 | H200: 505.45 | I200: 1464279 | J200: 738432134 | K200: 2018-12-27 | L200: 24760 | M200: INE465A01025
... 1433 more rows

Sheet Sheet1 (hidden)
